Workbook

Sheet INICIO
C1: Dirección Nacional de Planificación de Transporte de Cargas y Logística
B2: COSFER v3: Modelo de Estimación de Costos Ferroviarios de Carga
B6: El COSFER es una herramienta que permite simular distintos escenarios de operación de transporte ferroviario de cargas. A partir de la determinación de ciertos parámetros básicos, el modelo calcula en forma dinámica los costos asociados, discriminados en tres grupos: w Costos de Movilidad w Costos de Inversión en Infraestructura w Costos de Mantenimiento de la Infraestructura En la pestaña "Instrucciones" se especifican las principales consideraciones, mientras que en "Ingreso de datos" se inicia la simulación. ¡¡¡ SE DEBEN HABILITAR LAS MACRO !!!
D7: Instrucciones
D9: Ingreso de datos
D11: Resultados
D13: Registro de cálculos
D15: Parámetros
D17: Movilidad
D19: Mantenimiento de vía
D21: Infraestructura
B24: Aclaración
B25: Esta es una tercera versión que se encuentra en proceso de mejora y busca nutrirse del aporte de terceros. Si usted tiene acceso a datos más actualizados o quiere aportar información, por favor contáctenos:
B27: pcl@transporte.gob.ar

Sheet Instrucciones
A5: 1 | B5: El modelo permite calcular los costos asociados a la operación de transporte ferroviario de carga, discriminando los mismos en: w Costos de Movilidad w Costos de Inversión en Infraestructura w Costos de Mantenimiento de la Infraestructura
A6: =1+A5 -> 2 | B6: En la pestaña "INGRESO DE DATOS", se deben escoger los parámetros de la red, corredor o tramo que se desee costear: Zona geográfica, trocha, longitud de vía, distancia media de transporte, carga anual, participación relativa por grupo de producto, topografía, velocidad de circulación, capacidad portante de la vía, cantidad de obras de arte (ODA), pasos a nivel (PAN), aparatos de vía (ADV), intervención propuesta en la infraestructura (renovación, mejoramiento liviano, semipesado, pesado) y el tipo de mantenimiento.
A7: 3 | B7: Por defecto, se incluyeron los datos relativos a las características físicas de las redes de los distintos operadores, en forma agregada, pero existe la opción de generar OTRO sector de la red, corredor o tramo, real o ficticio, para lo cual habrá que determinar toda la información detallada en el punto anterior.
A8: 4 | B8: También se incorpora la posibilidad de elegir el periodo mensual que se desee costear. Se incluyen los datos para el periodo diciembre 2016 - marzo 2019
A9: 5 | B9: En caso de que exista alguna incompatibilidad en la elección de dichos parámetros, se desplegará un mensaje de error o advertencia que indique cómo subsanarlo.
A10: 6 | B10: Finalmente, se debe apretar el botón "CALCULAR" a fin de dar inicio a una rutina automática que realizará en forma dinámica todos los cálculos necesarios, y nos enviará a la pestaña "RESULTADOS" con un resumen de los resultados obtenidos (costo por rubro en centavos de dólar, características del corredor y la empresa simulada, etc), y un análisis de sensibilidad del costo respecto a ciertas variables (carga transportada, velocidad de circulación, tiempo de espera en cabeceras y distancia media).
A11: 7 | B11: Asimismo, en la pestaña "RESULTADOS" se incluye un botón de "GRABAR RESULTADOS" que selecciona y copia en la pestaña "RGISTROS" los parámetros y resultados principales, a fin de simplificar las comparaciones cuando se realiza alguna variación en la elección de datos de entrada, precios, rendimientos, u otros.
A12: 8 | B12: En la pestaña "PARÁMETROS", se listan los precios, consumos específicos y rendimientos que utiliza el modelo.
A13: 9 | B13: El resto de las pestañas, que no son modificables, permiten observar los cálculos, relaciones y supuestos implícitos en el modelo.

Sheet Ingreso_de_datos
H1: Periodo | J1: 2019-03-01
A5: 0 | B5: TROCHA | C5: =+IF(A5=1,"ANCHA",IF(A5=2,"ANGOSTA",IF(A5=3,"MEDIA","ELEGIR"))) -> ELEGIR
B6: LONGITUD DE VIA | C6: 0 | D6: Km.
A7: 0 | B7: DISTANCIA MEDIA DE VIAJE | C7: =+A7*ParaGraficos!$K$158 -> 0 | D7: Km.
A8: 0 | B8: ZONA | C8: =+IFERROR(VLOOKUP(A8,Renovacion!A48:B52,2,FALSE),"ELEGIR") -> ELEGIR
A9: =SUM(A10:A12) -> 0 | B9: TOPOGRAFIA DE LA TRAZA
A10: 0 | B10: Llana | C10: =+A10/100 -> 0 | D10: % | I10: =+IF(SUM(C10:C12)=1,0,"LA SUMA DEBE DAR 100%") -> LA SUMA DEBE DAR 100%
A11: 0 | B11: Montañosa | C11: =+A11/100 -> 0 | D11: %
A12: 0 | B12: Ondulada | C12: =+A12/100 -> 0 | D12: %
B13: CAPACIDAD PORTANTE DE LA VIA | C13: 0 | D13: ton/eje | I13: =+IF(AND(SUM(C13)>22,$A$5=2),"LA TROCHA ANGOSTA, INCLUSO RENOVADA, SE DEBERÍA ESTABLECER EN UN MÁXIMO DE 22 TON/EJE",0) -> 0
A14: 0 | B14: VELOCIDAD DE CIRCULACIÓN | C14: =+$A$14*ParaGraficos!$K$76 -> 0 | D14: Km/hora
B15: VAGONES POR TREN | C15: 40 | D15: Unidades
B16: PROPORCIÓN DE VIAJES DE RETORNO CON CARGA | C16: 0 | D16: %
B18: INTERVENCIÓN EN VÍA
A19: 0 | B19: Renovación | C19: =+A19/100 -> 0 | D19: % | I19: =+IF(SUM(C19:C23)>1,"LA SUMA NO DEBE SUPERAR EL 100%",0) -> 0
A20: 0 | B20: Mejoramiento Liviano | C20: =+A20/100 -> 0 | D20: %
A21: 0 | B21: Mejoramiento Semi Pesado | C21: =+A21/100 -> 0 | D21: %
A22: 0 | B22: Mejoramiento Pesado | C22: =+A22/100 -> 0 | D22: %
A23: 0 | B23: Mejoramiento a definir por el usuario | C23: =+A23/100 -> 0 | D23: %
B24: ODAs (Obras de Arte)
B25: De menos de 5m | C25: 0 | D25: Mts
B26: De entre 5m y 15m | C26: 0 | D26: Mts
B27: De entre 15m y 100m | C27: 0 | D27: Mts
A28: 0 | B28: De más de 100m | C28: 0 | D28: Mts
A29: 0 | B29: Proporción de ODAs que se interviene | C29: =+A29/100 -> 0 | D29: %
B30: PAN (Pasos a Nivel)
B31: Cantidad de PAN de Tierra | C31: 0 | D31: Unidades
A32: 0 | B32: Cantidad de PAN de Pavimento | C32: 0 | D32: Unidades
A33: 0 | B33: Proporción de PAN que se interviene | C33: =+A33/100 -> 0 | D33: %
B34: ADVs (Aparatos de Vía)
A35: 0 | B35: Cantidad | C35: 0 | D35: Unidades
A36: 0 | B36: Proporción de ADVs que se interviene | C36: =+A36/100 -> 0 | D36: %
A38: 100 | B38: TIPO DE MANTENIMIENTO DE VÍA
A39: 0 | B39: Manual (durm. madera) - Pers. propio | C39: =+A39/100 -> 0 | D39: % | I39: =+IF(SUM(C39:C42)>1,"LA SUMA NO DEBE SUPERAR EL 100%",0) -> 0
A40: 0 | B40: Manual (durm. madera) - Pers. contratado | C40: =+A40/100 -> 0 | D40: %
A41: 0 | B41: Mecanizado (durm. madera) - Pers. propio | C41: =+A41/100 -> 0 | D41: %
A42: 0 | B42: Mecanizado (durm. hormigón) - Pers. propio | C42: =+A42/100 -> 0 | D42: %
B44: TONELADAS TRANSPORTADAS
A45: 0 | B45: Por año | C45: =+A45*2000*ParaGraficos!$K$40 -> 0 | D45: Toneladas
B46: Por mes | C46: =+C45/12 -> 0 | D46: Toneladas
B47: Por viaje | C47: =+IFERROR(C45/Recursos!$B$27*2,0) -> 0 | D47: Toneladas
B48: TONELADAS - KM
B49: Por año | C49: =+C45*C7 -> 0 | D49: Ton-km
B50: Por mes | C50: =+C49/12 -> 0 | D50: Ton-km
B51: Por viaje | C51: =+IFERROR(C49/Recursos!$B$27,0) -> 0 | D51: Ton-km
A52: =+SUM(A53:A59) -> 0 | B52: PRODUCTOS
A53: 0 | B53: Industrializados | C53: =+A53/100 -> 0 | D53: % | I53: =+IF(SUM(C53:C59)=1,0,"LA SUMA DEBE DAR 100%") -> LA SUMA DEBE DAR 100%
A54: 0 | B54: Granos | C54: 0 | D54: %
A55: 0 | B55: Semiterminados | C55: 0 | D55: %
A56: 0 | B56: Mineria | C56: 0 | D56: %
A57: 0 | B57: Regionales | C57: 0 | D57: %
A58: 0 | B58: Combustible | C58: 0 | D58: %
A59: 0 | B59: Carnes | C59: 0 | D59: %
B61: CICLO DE ROTACIÓN DE VAGONES
B62: Recorrido medio anual por vagón | C62: =IFERROR(Recorrido_anual_por_vagon,"-") -> - | D62: km
A63: 1 | C63: =IF(A63=1,IFERROR(Recursos!H18,"-"),IF(Ingreso_de_datos!A63=3,Recursos!H19,IF(A63=2,Recursos!H20,"error"))) -> - | D63: días | I63: =+IF(J63=0,0,"Aumentar el ciclo de rotación") -> 0 | J63: =+IF(A63=1,0,IF(Recorrido_anual_por_vagon<60000,0,1)) -> 0
B64: Espera en Origen | C64: =+IF(A63=1,"-",IF(A63=3,"-",Recursos!H21)) -> - | D64: Horas | J64: =+IFERROR(IF(A63=1,0,IF(Recorrido_anual_por_vagon>100000,1,0)),0) -> 0
B65: Espera en Destino | C65: =+IF(A63=1,"-",IF(A63=3,"-",Recursos!H22)) -> - | D65: Horas
B69: LOCOMOTORAS
B70: Cantidad de locomotoras operativos | C70: =+Recursos!B41 ->  | D70: unidades
B71: Cantidad de locomotoras de reserva | C71: =+Recursos!B43-Recursos!B41 ->  | D71: unidades
B72: Recorrido anual por locomotora | C72: =+Recursos!B31 ->  | D72: km-año
B73: VAGONES
B74: Cantidad de vagones operativos | C74: =+Recursos!B19 ->  | D74: unidades
B75: Cantidad de vagones de reserva | C75: =+Recursos!B21-Recursos!B19 ->  | D75: unidades
B76: Recorrido anual por vagón | C76: =+Recursos!B33 ->  | D76: km-año
B77: Ancha | C77: =+IF($A$5=1,$C$6,0) -> 0 | D77: km
B78: Media | C78: =+IF($A$5=3,$C$6,0) -> 0 | D78: km
B79: Angosta | C79: =+IF($A$5=2,$C$6,0) -> 0 | D79: km
B80: Llanura | C80: =+C10*$C$6 -> 0 | D80: km
B81: Montaña | C81: =+C11*$C$6 -> 0 | D81: km
B82: Semi montaña | C82: =+C12*$C$6 -> 0 | D82: km
B83: Industrializados | C83: =+C53*$C$45 -> 0 | D83: Toneladas-año
B84: Granos | C84: =+C54*$C$45 -> 0 | D84: Toneladas-año
B85: Semiterminados | C85: 0 | D85: Toneladas-año
B86: Mineria | C86: 0 | D86: Toneladas-año
B87: Regionales | C87: 0 | D87: Toneladas-año
B88: Combustible | C88: 0 | D88: Toneladas-año
B89: Carnes | C89: 0 | D89: Toneladas-año

Sheet ParaGraficos (hidden)
A1: NO MODIFICAR NADA DE ESTA PESTAÑA !!!!!! PORQUE DEJAN DE FUNCIONAR LAS MACRO | V1: NCA | W1: FEPSA | X1: FERROSUR | Y1: BELGRANO | Z1: SAN MARTIN | AA1: URQUIZA | AB1: OTRO | AE1: 0.05 | AF1: Tasa de descuento
C2: =+RANK(E2,$E$2:$E$18,0) ->  | D2: =+Movilidad!C6 -> COMBUSTIBLE | E2: =+Movilidad!G6 ->  | F2: 1 | G2: =+VLOOKUP(F2,$C$2:$E$18,2,FALSE) ->  | H2: =+IFERROR(VLOOKUP(F2,$C$2:$E$18,3,FALSE),0) -> 0 | K2: =+Mantenimiento!$I$14 -> 0 | L2: =+Mantenimiento!$I$15 -> 0 | M2: =+Mantenimiento!$I$16 -> 0 | N2: =+Mantenimiento!$I$17 -> 0 | U2: TROCHA | V2: 1 | W2: 1 | X2: 1 | Y2: 2 | Z2: 1 | AA2: 3 | AB2: 0 | AE2: 15.8296 | AF2: Tipo de cambio
D3: =+Movilidad!C7 -> LUBRICANTES | E3: =+Movilidad!G7 ->  | F3: 2 | H3: 0 | J3: Personal | K3: =+Mantenimiento!D30 ->  | L3: =+Mantenimiento!D46 ->  | M3: =+Mantenimiento!D74+((SUM(Mantenimiento!B65:D65)/Mantenimiento!I61)+(SUM(Mantenimiento!E65)/Mantenimiento!I62)+(SUM(Mantenimiento!F65)/Mantenimiento!I63))*Mantenimiento!I77 ->  | N3: =+Mantenimiento!D109+((SUM(Mantenimiento!B100:D100)/Mantenimiento!I96)+(SUM(Mantenimiento!E100)/Mantenimiento!I97)+(SUM(Mantenimiento!F100)/Mantenimiento!I98))*Mantenimiento!I110 ->  | O3: =SUM(K3:N3) ->  | U3: LONGITUD DE VIA | V3: 3203 | W3: 2817 | X3: 2907.073 | Y3: 4897 | Z3: 2655 | AA3: 1486 | AB3: 0 | AE3: 0.006 | AF3: Impuesto a los créditos
D4: =+Movilidad!C8 -> REPARACION Y MANTENIMIENTO DEL MATERIAL RODANTE | E4: =+Movilidad!G8 ->  | F4: 3 | H4: 0 | J4: Vehículos y Máquinas | K4: =+Mantenimiento!D33 ->  | M4: =+((SUM(Mantenimiento!B62:D64)/Mantenimiento!I61)+(SUM(Mantenimiento!E62:E64)/Mantenimiento!I62)+(SUM(Mantenimiento!F62:F64)/Mantenimiento!I63))*Mantenimiento!I77+Mantenimiento!D79 ->  | N4: =+((SUM(Mantenimiento!B97:D99)/Mantenimiento!I96)+(SUM(Mantenimiento!E97:E99)/Mantenimiento!I97)+(SUM(Mantenimiento!F97:F99)/Mantenimiento!I98))*Mantenimiento!I110+Mantenimiento!D114 ->  | O4: =SUM(K4:N4) ->  | U4: DISTANCIA MEDIA DE VIAJE | V4: 429.6920211 | W4: 416.5528864 | X4: 368.8562695 | Y4: 786.4374333 | Z4: 660.7742301 | AA4: 620.7373262 | AB4: 0 | AE4: 0.006 | AF4: Impuesto a los débitos
D5: =+Movilidad!C11 -> CAE Material Rodante | E5: =+Movilidad!G11 ->  | F5: 4 | H5: 0 | J5: Materiales | K5: =+Mantenimiento!D40 ->  | L5: =+SUM(Mantenimiento!D48:D53) ->  | M5: =+Mantenimiento!D87 ->  | N5: =+Mantenimiento!D119 ->  | O5: =SUM(K5:N5) ->  | U5: ZONA | V5: 1 | W5: 1 | X5: 1 | Y5: 2 | Z5: 4 | AA5: 3 | AB5: 0 | AE5: 0.015 | AF5: Impuesto a los IIBB
D6: =+Movilidad!C14 -> SALARIOS DEL PERSONAL | E6: =+Movilidad!G14 ->  | F6: 5 | H6: 0 | K6: =SUM(K3:K5) ->  | L6: =SUM(L3:L5) ->  | M6: =SUM(M3:M5) ->  | N6: =SUM(N3:N5) ->  | O6: =SUM(K6:N6) ->  | S6: =+NOW() -> 2019-06-19T12:47:18.770 | U6: TOPOGRAFIA DE LA TRAZA | AE6: 0.66 | AF6: Valuación fiscal / valuación venal (%)
D7: =+Movilidad!C20 -> OTROS GASTOS DE PERSONAL | E7: =+Movilidad!G20 ->  | F7: 6 | H7: 0 | U7: Llanura | V7: 75 | W7: 80 | X7: 60 | Y7: 40 | Z7: 50 | AA7: 100 | AB7: 0 | AE7: 0.0032 | AF7: Alumbrado barrido y limpieza (%)
D8: =+Movilidad!C22 -> SEGUROS | E8: =+Movilidad!G22 ->  | F8: 7 | H8: 0 | K8: =+Mantenimiento!$I$14 -> 0 | L8: =+Mantenimiento!$I$15 -> 0 | M8: =+Mantenimiento!$I$16 -> 0 | N8: =+Mantenimiento!$I$17 -> 0 | S8: =+Ingreso_de_datos!$J$1 -> 2019-03-01 | U8: Montaña | V8: 5 | W8: 0 | X8: 5 | Y8: 20 | Z8: 15 | AA8: 0 | AB8: 0 | AE8: 0.0044 | AF8: Contribución territorial (%)
D9: =+Movilidad!C21 -> MOVILIDAD DEL PERSONAL DE A BORDO | E9: =+Movilidad!G21 ->  | G9: RESTO | H9: =1-SUM(H2:H8) -> 1 | J9: PERSONAL | K9: =+K3/K$6 ->  | M9: =+ParaGraficos!M3/M$6 ->  | N9: =+ParaGraficos!N3/N$6 ->  | O9: =+IF(Ingreso_de_datos!$C$38="MA2",CONCATENATE(ParaGraficos!J9," - ",ParaGraficos!J10),ParaGraficos!J9) -> PERSONAL | P9: =+ParaGraficos!O3/O$6 ->  | S9: =+Parametros!$E$6 -> 41.3624 | U9: Ondulado | V9: 20 | W9: 20 | X9: 35 | Y9: 40 | Z9: 35 | AA9: 0 | AB9: 0 | AE9: 0.04 | AF9: Gasto en seguridad en relación al gasto en personal
D10: =+Movilidad!C25 -> SEGURIDAD | E10: =+Movilidad!G25 ->  | F10: 8 | G10: =+VLOOKUP(F10,$C$2:$E$18,2,FALSE) ->  | H10: =+IFERROR(VLOOKUP(F10,$C$2:$E$18,3,FALSE),0) -> 0 | J10: VEHÍCULOS Y MAQUINARIA | M10: =+ParaGraficos!M4/M$6 ->  | N10: =+ParaGraficos!N4/N$6 ->  | O10: =+IF(Ingreso_de_datos!$C$38="MA2","-",ParaGraficos!J10) -> VEHÍCULOS Y MAQUINARIA | P10: =+ParaGraficos!O4/O$6 ->  | S10: =+Parametros!$E$35/12 -> 93206.68572 | U10: CAPACIDAD PORTANTE DE LA VIA | V10: 18 | W10: 18 | X10: 18 | Y10: 18 | Z10: 18 | AA10: 18 | AB10: 0 | AE10: 100000 | AF10: Monto asegurado responsabilidad civil $
D11: =+Movilidad!C26 -> MÁQUINAS y HERRAMIENTAS | E11: =+Movilidad!G26 ->  | F11: 9 | H11: 0 | J11: MATERIALES | M11: =+M5/M$6 ->  | N11: =+N5/N$6 ->  | O11: =+J11 -> MATERIALES | P11: =+ParaGraficos!O5/O$6 ->  | S11: =+Parametros!$E$33 -> 34.769 | U11: VELOCIDAD DE CIRCULACIÓN | V11: 20 | W11: 20 | X11: 20 | Y11: 15 | Z11: 15 | AA11: 10 | AB11: 0 | AE11: 0.03 | AF11: Responsabilidad Civil (prima sobre monto asegurado)
A12: Industr. | B12: =+IF(Ingreso_de_datos!C83=0,NA(),Ingreso_de_datos!C83) ->  | D12: =+Movilidad!C29 -> INMUEBLES | E12: =+Movilidad!G29 ->  | F12: 10 | H12: 0 | S12: =+SUMPRODUCT(Parametros!$E$72:$E$79,Parametros!$E$80:$E$87) -> 1755000 | AE12: 0.03 | AF12: Coeficiente de Cauciones varias
A13: Granos | B13: =+IF(Ingreso_de_datos!C84=0,NA(),Ingreso_de_datos!C84) ->  | D13: =+Movilidad!C32 -> IMPUESTOS Y TASAS MUNICIPALES | E13: =+Movilidad!G32 ->  | F13: 11 | H13: 0 | S13: =+SUMPRODUCT(MatRod!$B$15:$I$15,MatRod!$B$21:$I$21) ->  | U13: INTERVENCIÓN EN VÍA | AE13: 0.03 | AF13: Gastos generales
A14: Semiter. | B14: =+IF(Ingreso_de_datos!C85=0,NA(),Ingreso_de_datos!C85) ->  | D14: =+Movilidad!C33 -> PEAJES | E14: =+Movilidad!G33 ->  | F14: 12 | H14: 0 | J14: =+Resultados!B7 -> MOVILIDAD | K14: =+Resultados!$C$7*Recursos!B9/100 ->  | S14: =+Parametros!E5 -> 0.05 | U14: Renovación | V14: 0 | W14: 0 | X14: 0 | Y14: 0 | Z14: 0 | AA14: 0 | AB14: 0 | AF14: Carga neta por vagón (toneladas)
A15: Mineria | B15: =+IF(Ingreso_de_datos!C86=0,NA(),Ingreso_de_datos!C86) ->  | F15: 13 | H15: 0 | J15: =+Resultados!B8 -> MANTENIMIENTO DE INFRAESTRUCTURA | K15: =+Mantenimiento!H22 ->  | U15: Mejoramiento Liviano | V15: 0 | W15: 0 | X15: 0 | Y15: 0 | Z15: 0 | AA15: 0 | AB15: 0 | AE15: 1.15 | AF15: Factor de estacionalidad de la carga
A16: Regionales | B16: =+IF(Ingreso_de_datos!C87=0,NA(),Ingreso_de_datos!C87) ->  | D16: =+Movilidad!C34 -> GASTOS GENERALES | E16: =+Movilidad!G34 ->  | F16: 14 | H16: 0 | J16: =+Resultados!B9 -> INVERSIÓN EN INFRAESTRUCTURA | K16: =+Infraestructura!J17 -> 0 | S16: =+Ingreso_de_datos!C45 -> 0 | U16: Mejoramiento Semi Pesado | V16: 0 | W16: 0 | X16: 0 | Y16: 0 | Z16: 0 | AA16: 0 | AB16: 0 | AE16: 0.03 | AF16: Recorrido y Tiempo extra de locomotoras respecto a trenes
A17: Combust. | B17: =+IF(Ingreso_de_datos!C88=0,NA(),Ingreso_de_datos!C88) ->  | D17: =+Movilidad!C36 -> IMPUESTOS NACIONALES Y PROVINCIALES | E17: =+Movilidad!G36 ->  | F17: 15 | H17: 0 | S17: =+Ingreso_de_datos!C49 -> 0 | U17: Mejoramiento Pesado | V17: 0 | W17: 0 | X17: 0 | Y17: 0 | Z17: 0 | AA17: 0 | AB17: 0 | AE17: 36 | AF17: Espera en origen de locomotoras (hs)
A18: Carnes | B18: =+IF(Ingreso_de_datos!C89=0,NA(),Ingreso_de_datos!C89) ->  | D18: =+Movilidad!C38 -> Impuesto a los Ingresos Brutos | E18: =+Movilidad!G38 ->  | F18: 16 | H18: 0 | S18: =+Ingreso_de_datos!C16/100 -> 0 | U18: Mejoramiento a Definir por Usuario | V18: 0 | W18: 0 | X18: 0 | Y18: 0 | Z18: 0 | AA18: 0 | AB18: 0 | AE18: 36 | AF18: Espera en destino de locomotoras (hs)
F19: 17 | H19: 0 | S19: =+Ingreso_de_datos!C5 -> ELEGIR | U19: ODAs (Obras de Arte) | AE19: 2 | AF19: Tiempo de maniobras por tren (hs)
S20: =+Ingreso_de_datos!C6 -> 0 | U20: De menos de 5m | V20: 180 | W20: 411 | X20: 30 | Y20: 171 | AB20: 0 | AE20: 1 | AF20: Cantidad de locomotoras por tren en llanura
S21: =+Ingreso_de_datos!C7 -> 0 | U21: De entre 5m y 15m | V21: 1566 | W21: 1329 | X21: 1759 | Y21: 1093 | Z21: 811 | AB21: 0 | AE21: 1.5 | AF21: Cantidad de locomotoras por tren en montaña
B22: SENSIBILIDAD A LAS TONELADAS | S22: =+Ingreso_de_datos!C13 -> 0 | U22: De entre 15m y 100m | V22: 3796 | W22: 1197 | X22: 1723 | Y22: 4274 | Z22: 1855 | AB22: 0 | AE22: 1.25 | AF22: Cantidad de locomotoras por tren en ondulado
B23: VARIACION | C23: =+Resultados!B7 -> MOVILIDAD | D23: =+Resultados!B8 -> MANTENIMIENTO DE INFRAESTRUCTURA | E23: =+Resultados!B9 -> INVERSIÓN EN INFRAESTRUCTURA | F23: =+C23 -> MOVILIDAD | G23: =+D23 -> MANTENIMIENTO DE INFRAESTRUCTURA | H23: =+E23 -> INVERSIÓN EN INFRAESTRUCTURA | S23: =+Ingreso_de_datos!C14 -> 0 | U23: De más de 100m | V23: 4425 | W23: 281 | X23: 874 | Y23: 5343 | Z23: 655 | AB23: 0 | AE23: 6 | AF23: Consumo de combustible (lts/km) en llanura
B24: -0.75 | C24: 2.518594186 | D24: 3.511545189 | E24: 0.1404801634 | F24: =+C24/C$39-1 -> 0.1220647829 | G24: =+D24/D$39-1 -> 2 | H24: =+E24/E$39-1 -> 3 | J24: =+B24 -> -0.75 | K24: =+C24 -> 2.518594186 | L24: =+D24 -> 3.511545189 | M24: =+E24 -> 0.1404801634 | S24: =+Ingreso_de_datos!C15 -> 40 | U24: Proporción de ODAs que se interviene | V24: 0 | W24: 0 | X24: 0 | Y24: 0 | Z24: 0 | AA24: 0 | AB24: 0 | AE24: 0.2 | AF24: Consumo adicional de combustible (lts/km) en montaña respecto a llanura
C25: =+NA() ->  | D25: =+NA() ->  | E25: =+NA() ->  | F25: =+NA() ->  | G25: =+NA() ->  | H25: =+NA() ->  | J25: =+B29 -> -0.5 | K25: =+C29 -> 2.335935896 | L25: =+D29 -> 1.755772595 | M25: =+E29 -> 0.07024008171 | S25: =+Ingreso_de_datos!C53 -> 0 | U25: PAN (Pasos a Nivel) | AE25: 0.1 | AF25: Consumo adicional de combustible (lts/km) en ondulado respecto a llanura
C26: =+NA() ->  | D26: =+NA() ->  | E26: =+NA() ->  | F26: =+NA() ->  | G26: =+NA() ->  | H26: =+NA() ->  | J26: =+B34 -> -0.25 | K26: =+C34 -> 2.275049799 | L26: =+D34 -> 1.560686751 | M26: =+E34 -> 0.04682672114 | S26: =+Ingreso_de_datos!C54 -> 0 | U26: Cantidad de Tierra | V26: 1393 | W26: 1187.9 | X26: 809.2 | Y26: 3374 | Z26: 1283.8 | AA26: 713.3 | AB26: 0 | AE26: 0.07 | AF26: Consumo de lubricante (lts/km) en llanura
C27: =+NA() ->  | D27: =+NA() ->  | E27: =+NA() ->  | F27: =+NA() ->  | G27: =+NA() ->  | H27: =+NA() ->  | J27: =+B36 -> -0.15 | K27: 2.260723659 | L27: 1.377076545 | M27: 0.04131769512 | S27: =+Ingreso_de_datos!C55 -> 0 | U27: Cantidad de Pavimento | V27: 597 | W27: 509.1 | X27: 346.8 | Y27: 1446 | Z27: 550.2 | AA27: 305.7 | AB27: 0 | AE27: 0.2 | AF27: Consumo adicional de lubricante (lts/km) en montaña respecto a llanura
C28: =+NA() ->  | D28: =+NA() ->  | E28: =+NA() ->  | F28: =+NA() ->  | G28: =+NA() ->  | H28: =+NA() ->  | J28: -0.1 | K28: 2.254754433 | L28: 1.300572292 | M28: 0.03902226762 | S28: =+Ingreso_de_datos!C56 -> 0 | U28: Proporción de PAN que se interviene | V28: 0 | W28: 0 | X28: 0 | Y28: 0 | Z28: 0 | AA28: 0 | AB28: 0 | AE28: 0.1 | AF28: Consumo adicional de lubricante (lts/km) en ondulado respecto a llanura
B29: -0.5 | C29: 2.335935896 | D29: 1.755772595 | E29: 0.07024008171 | F29: =+C29/C$39-1 -> 0.04068826097 | G29: =+D29/D$39-1 -> 0.5 | H29: =+E29/E$39-1 -> 1 | J29: -0.05 | K29: 2.249413548 | L29: 1.232121119 | M29: 0.03696846406 | S29: =+Ingreso_de_datos!C57 -> 0 | U29: ADVs (Aparatos de Vía) | AE29: 14.0163 | AF29: Precio del gasoil ($/lt)
C30: =+NA() ->  | D30: =+NA() ->  | E30: =+NA() ->  | F30: =+NA() ->  | G30: =+NA() ->  | H30: =+NA() ->  | J30: BASE | K30: 2.244606751 | L30: 1.170515063 | M30: 0.03512004085 | S30: =+Ingreso_de_datos!C58 -> 0 | U30: Cantidad | V30: 231 | Y30: 290 | AB30: 0 | AE30: 37.22308791 | AF30: Precio del lubricante ($/lt)
C31: =+NA() ->  | D31: =+NA() ->  | E31: =+NA() ->  | F31: =+NA() ->  | G31: =+NA() ->  | H31: =+NA() ->  | J31: 0.05 | K31: 2.240257744 | L31: 1.114776251 | M31: 0.03344765796 | S31: =+Ingreso_de_datos!C59 -> 0 | U31: Proporción de ADVs que se interviene | V31: 0 | W31: 0 | X31: 0 | Y31: 0 | Z31: 0 | AA31: 0 | AB31: 0 | AE31: 637172.503 | AF31: Conductor (salario bruto anual)
C32: =+NA() ->  | D32: =+NA() ->  | E32: =+NA() ->  | F32: =+NA() ->  | G32: =+NA() ->  | H32: =+NA() ->  | J32: 0.1 | K32: 2.236304101 | L32: 1.064104603 | M32: 0.03192730987 | AE32: 567662.7641 | AF32: Ayudante Autorizado (salario bruto anual)
C33: =+NA() ->  | D33: =+NA() ->  | E33: =+NA() ->  | F33: =+NA() ->  | G33: =+NA() ->  | H33: =+NA() ->  | J33: 0.15 | K33: 2.232694253 | L33: 1.017839185 | M33: 0.03053916596 | S33: =+Recursos!B27 ->  | U33: TIPO DE MANTENIMIENTO | AE33: 512915.794 | AF33: Ayudante Conductor (salario bruto anual)
B34: -0.25 | C34: 2.275049799 | D34: 1.560686751 | E34: 0.04682672114 | F34: =+C34/C$39-1 -> 0.01356275366 | G34: =+D34/D$39-1 -> 0.3333333333 | H34: =+E34/E$39-1 -> 0.3333333333 | J34: =+B44 -> 0.25 | K34: =+C44 -> 2.226340922 | L34: =+D44 -> 0.9364120505 | M34: =+E44 -> 0.02809603268 | S34: =+Recursos!B23 ->  | U34: Manual (durm. madera) - Pers. propio | V34: =100-V37-V36 -> 100 | W34: =100-W37-W36 -> 100 | X34: 100 | Y34: 100 | Z34: 100 | AA34: 100 | AB34: 0 | AE34: 348174.7808 | AF34: Auxiliar de tráfico (salario bruto anual)
C35: =+NA() ->  | D35: =+NA() ->  | E35: =+NA() ->  | F35: =+NA() ->  | G35: =+NA() ->  | H35: =+NA() ->  | J35: =+B49 -> 0.5 | K35: =+C49 -> 2.214163702 | L35: =+D49 -> 0.7803433754 | M35: =+E49 -> 0.02341336057 | S35: =+Recursos!B24 ->  | U35: Manual (durm. madera) - Pers. contratado | V35: 0 | W35: 0 | X35: 0 | Y35: 0 | Z35: 0 | AA35: 0 | AB35: 0 | AE35: 357148.7976 | AF35: Ayudante de trafico (salario bruto anual)
B36: -0.15 | C36: 2.260723659 | D36: 1.377076545 | E36: 0.04131769512 | F36: =+C36/C$39-1 -> 0.007180281347 | G36: =+D36/D$39-1 -> 0.1764705882 | H36: =+E36/E$39-1 -> 0.1764705882 | J36: =+B54 -> 0.75 | K36: =+C54 -> 2.205465688 | L36: =+D54 -> 0.6688657503 | M36: =+E54 -> 0.02006859477 | S36: =+Recursos!B26 ->  | U36: Mecanizado (durm. madera) - Pers. propio | V36: =+SUM(V15:V18) -> 0 | W36: 0 | X36: 0 | Y36: 0 | Z36: 0 | AA36: 0 | AB36: 0 | AE36: 385455.6359 | AF36: Operador de trafico (salario bruto anual)
B37: -0.1 | C37: 2.254754433 | D37: 1.300572292 | E37: 0.03902226762 | F37: 0.004520917885 | G37: 0.1111111111 | H37: 0.1111111111 | S37: =+Recursos!B35 ->  | U37: Mecanizado (durm. hormigón) - Pers. propio | V37: =+V14 -> 0 | W37: 0 | X37: 0 | Y37: 0 | Z37: 0 | AA37: 0 | AB37: 0 | AE37: 402568.9293 | AF37: Coordinador de tráfico (salario bruto anual)
B38: -0.05 | C38: 2.249413548 | D38: 1.232121119 | E38: 0.03696846406 | F38: 0.002141487419 | G38: 0.05263157895 | H38: 0.05263157895 | S38: =+Ingreso_de_datos!C63 -> - | AE38: 442325.794 | AF38: Coordinador de trafico A (salario bruto anual)
B39: BASE | C39: 2.244606751 | D39: 1.170515063 | E39: 0.03512004085 | F39: 0 | G39: 0 | H39: 0 | S39: =+Recursos!B21 ->  | U39: TONELADAS TRANSPORTADAS | AE39: 329226.1365 | AF39: Peón general (salario bruto anual)
B40: 0.05 | C40: 2.240257744 | D40: 1.114776251 | E40: 0.03344765796 | F40: -0.001937536237 | G40: -0.04761904762 | H40: -0.04761904762 | J40: base | K40: =+VLOOKUP(J40,J42:K54,2,FALSE) -> 1 | S40: =+Recursos!B40 ->  | U40: Por año | V40: =+V60/2000 -> 3688.44879 | W40: 1756.000227 | X40: 2536.565785 | Y40: 420.84028 | Z40: 779.125 | AA40: 63.162 | AB40: 0 | AE40: 381880.5581 | AF40: Ayudante taller/medio oficial de taller/ayudante mecánica (fpsa) (salario bruto anual)
B41: 0.1 | C41: 2.236304101 | D41: 1.064104603 | E41: 0.03192730987 | F41: -0.003698932815 | G41: -0.09090909091 | H41: -0.09090909091 | S41: =+Recursos!B43 ->  | U41: Por mes | AE41: 404661.5713 | AF41: Oficial C de taller (salario bruto anual)
B42: 0.15 | C42: 2.232694253 | D42: 1.017839185 | E42: 0.03053916596 | F42: -0.005307164474 | G42: -0.1304347826 | H42: -0.1304347826 | J42: =+J24 -> -0.75 | K42: =1+J42 -> 0.25 | S42: =+ROUNDUP(SUM(SUM(Recursos!B58:B59),Recursos!B61,MatRod!B81,Recursos!B60),0) ->  | U42: Por viaje | AE42: 437419.1737 | AF42: Oficial B mecánico/electricista (salario bruto anual)
C43: =+NA() ->  | D43: =+NA() ->  | E43: =+NA() ->  | F43: =+NA() ->  | G43: =+NA() ->  | H43: =+NA() ->  | J43: =+J25 -> -0.5 | K43: =1+J43 -> 0.5 | S43: =+SUM(Recursos!B58:B59)/$S$42 ->  | U43: TONELADAS - KM | AE43: 481163.3485 | AF43: Oficial A electromecánico (salario bruto anual)
B44: 0.25 | C44: 2.226340922 | D44: 0.9364120505 | E44: 0.02809603268 | F44: =+C44/C$39-1 -> -0.008137652193 | G44: =+D44/D$39-1 -> -0.2 | H44: =+E44/E$39-1 -> -0.2 | J44: =+J26 -> -0.25 | K44: 0.75 | S44: =+Recursos!B61/$S$42 ->  | U44: Por año | AE44: 329226.1365 | AF44: Auxiliar administrativo (salario bruto anual)
C45: =+NA() ->  | D45: =+NA() ->  | E45: =+NA() ->  | F45: =+NA() ->  | G45: =+NA() ->  | H45: =+NA() ->  | J45: -0.15 | K45: 0.85 | S45: =+MatRod!B81/$S$42 ->  | U45: Por mes | AE45: 355160.218 | AF45: Auxiliar administrativo de 1era (salario bruto anual)
C46: =+NA() ->  | D46: =+NA() ->  | E46: =+NA() ->  | F46: =+NA() ->  | G46: =+NA() ->  | H46: =+NA() ->  | J46: -0.1 | K46: 0.9 | S46: =+Recursos!B60/$S$42 ->  | U46: Por viaje | AE46: 270 | AF46: Jornadas anuales por agente (días)
C47: =+NA() ->  | D47: =+NA() ->  | E47: =+NA() ->  | F47: =+NA() ->  | G47: =+NA() ->  | H47: =+NA() ->  | J47: -0.05 | K47: 0.95 | U47: PRODUCTOS | AE47: 8 | AF47: Tiempo diario por agente (hs)
C48: =+NA() ->  | D48: =+NA() ->  | E48: =+NA() ->  | F48: =+NA() ->  | G48: =+NA() ->  | H48: =+NA() ->  | J48: BASE | K48: 1 | S48: =+Resultados!$C$10*ParaGraficos!$S$9/100 -> 0 | U48: Industrializados | V48: 40 | W48: 10 | X48: 0 | Y48: 6 | Z48: 41 | AA48: 24 | AB48: 0 | AE48: 0.75 | AF48: Factor de aprovechamiento conducción locomotoras de línea
B49: 0.5 | C49: 2.214163702 | D49: 0.7803433754 | E49: 0.02341336057 | F49: =+C49/C$39-1 -> -0.01356275366 | G49: =+D49/D$39-1 -> -0.3333333333 | H49: =+E49/E$39-1 -> -0.3333333333 | J49: 0.05 | K49: 1.05 | S49: =+S52+S70+S85 ->  | U49: Granos | V49: 46 | W49: 86 | X49: 4 | Y49: 75 | Z49: 35 | AA49: 0 | AB49: 0 | AE49: 0.9 | AF49: Factor de aprovechamiento conducción locomotoras de maniobra
C50: =+NA() ->  | D50: =+NA() ->  | E50: =+NA() ->  | F50: =+NA() ->  | G50: =+NA() ->  | H50: =+NA() ->  | J50: 0.1 | K50: 1.1 | S50: =+S49*$S$17/100 ->  | U50: Semiterminados | V50: 4 | W50: 0 | X50: 41 | Y50: 11 | Z50: 3 | AA50: 6 | AB50: 0 | AE50: 0.8 | AF50: Factor de aprovechamiento personal de taller
C51: =+NA() ->  | D51: =+NA() ->  | E51: =+NA() ->  | F51: =+NA() ->  | G51: =+NA() ->  | H51: =+NA() ->  | J51: 0.15 | K51: 1.15 | U51: Mineria | V51: 9 | W51: 4 | X51: 55 | Y51: 0 | Z51: 11 | AA51: 70 | AB51: 0 | AE51: 0.25 | AF51: Peón general
C52: =+NA() ->  | D52: =+NA() ->  | E52: =+NA() ->  | F52: =+NA() ->  | G52: =+NA() ->  | H52: =+NA() ->  | J52: 0.25 | K52: 1.25 | S52: =+Resultados!$C$7 -> - | U52: Regionales | V52: 1 | W52: 0 | X52: 0 | Y52: 8 | Z52: 10 | AA52: 0 | AB52: 0 | AE52: 0.3 | AF52: Ayudante taller/medio oficial de taller/ayudante mecánica (fpsa)
C53: =+NA() ->  | D53: =+NA() ->  | E53: =+NA() ->  | F53: =+NA() ->  | G53: =+NA() ->  | H53: =+NA() ->  | J53: 0.5 | K53: 1.5 | S53: =+S52*$S$17/100 ->  | U53: Combustible | V53: 0 | W53: 0 | X53: 0 | Y53: 0 | Z53: 0 | AA53: 0 | AB53: 0 | AE53: 0.25 | AF53: Oficial C de taller
B54: 0.75 | C54: 2.205465688 | D54: 0.6688657503 | E54: 0.02006859477 | F54: =+C54/C$39-1 -> -0.01743782613 | G54: =+D54/D$39-1 -> -0.4285714286 | H54: =+E54/E$39-1 -> -0.4285714286 | J54: 0.75 | K54: 1.75 | S54: =+Movilidad!F6*100 ->  | U54: Carnes | V54: 0 | W54: 0 | X54: 0 | Y54: 0 | Z54: 0 | AA54: 0 | AB54: 0 | AE54: 0.15 | AF54: Oficial B mecánico/electricista
S55: =+Movilidad!F7*100 ->  | AE55: 0.05 | AF55: Oficial A electromecánico
C56: =+Resultados!C7 -> - | D56: =+Resultados!C8 -> - | E56: =+Resultados!C9 -> - | S56: =+Movilidad!F8*100 ->  | U56: VAGONES POR TREN | V56: 40 | W56: 40 | X56: 40 | Y56: 40 | Z56: 40 | AA56: 40 | AB56: 40 | AE56: 120 | AF56: Dotación de administración según NCA
S57: =+Movilidad!F11*100 ->  | U57: PROPORCIÓN DE VIAJES DE RETORNO CON CARGA | V57: 0 | W57: 0 | X57: 0 | Y57: 0 | Z57: 0 | AA57: 0 | AB57: 0 | AE57: 7684425.316 | AF57: Volumen de carga de NCA promedio 5 años en Ton
B58: SENSIBILIDAD A LA VELOCIDAD | S58: =+Movilidad!F14*100 ->  | AE58: 131.5 | AF58: Dotación de tráfico según NCA
B59: VARIACION | C59: =+C23 -> MOVILIDAD | D59: =+D23 -> MANTENIMIENTO DE INFRAESTRUCTURA | E59: =+E23 -> INVERSIÓN EN INFRAESTRUCTURA | F59: =+C59 -> MOVILIDAD | G59: =+D59 -> MANTENIMIENTO DE INFRAESTRUCTURA | H59: =+E59 -> INVERSIÓN EN INFRAESTRUCTURA | S59: =+Movilidad!F20*100 ->  | AE59: 2500 | AF59: Red operativa de NCA en Kms
B60: -0.75 | C60: 3.510088964 | D60: 1.170515063 | E60: 0.03512004085 | F60: =+C60/C$39-1 -> 0.5637879387 | G60: =+D60/D$39-1 -> 0 | H60: =+E60/E$39-1 -> 0 | J60: =+B60 -> -0.75 | K60: =+C60 -> 3.510088964 | L60: =+D60 -> 1.170515063 | M60: =+E60 -> 0.03512004085 | S60: =+Movilidad!F21*100 ->  | V60: 7376897.58 | W60: 3512000.455 | X60: 5073131.569 | Y60: 841680.56 | Z60: 1558250 | AA60: 126324 | AB60: 0 | AE60: 0.04 | AF60: Coeficiente personal jerárquico
C61: =+NA() ->  | D61: =+NA() ->  | E61: =+NA() ->  | F61: =+NA() ->  | G61: =+NA() ->  | H61: =+NA() ->  | J61: =+B65 -> -0.5 | K61: =+C65 -> 2.666434155 | L61: =+D65 -> 1.170515063 | M61: =+E65 -> 0.03512004085 | S61: =+Movilidad!F22*100 ->  | AE61: 0.03 | AF61: Otros gastos de personal
C62: =+NA() ->  | D62: =+NA() ->  | E62: =+NA() ->  | F62: =+NA() ->  | G62: =+NA() ->  | H62: =+NA() ->  | J62: =+B70 -> -0.25 | K62: =+C70 -> 2.385215885 | L62: =+D70 -> 1.170515063 | M62: =+E70 -> 0.03512004085 | S62: =+Movilidad!F25*100 ->  | AE62: 300 | AF62: Costo promedio movilidad remis (en s)
C63: =+NA() ->  | D63: =+NA() ->  | E63: =+NA() ->  | F63: =+NA() ->  | G63: =+NA() ->  | H63: =+NA() ->  | J63: =+B72 -> -0.15 | K63: 2.319046881 | L63: 1.170515063 | M63: 0.03512004085 | S63: =+Movilidad!F26*100 ->  | AE63: 0.7 | AF63: Factor de uso de remis
C64: =+NA() ->  | D64: =+NA() ->  | E64: =+NA() ->  | F64: =+NA() ->  | G64: =+NA() ->  | H64: =+NA() ->  | J64: -0.1 | K64: 2.291476462 | L64: 1.170515063 | M64: 0.03512004085 | S64: =+Movilidad!F29*100 ->  | AE64: 30 | AF64: Vida útil locomotoras (años)
B65: -0.5 | C65: 2.666434155 | D65: 1.170515063 | E65: 0.03512004085 | F65: =+C65/C$39-1 -> 0.1879293129 | G65: =+D65/D$39-1 -> 0 | H65: =+E65/E$39-1 -> 0 | J65: -0.05 | K65: 2.266808193 | L65: 1.170515063 | M65: 0.03512004085 | S65: =+Movilidad!F32*100 ->  | AE65: 50 | AF65: Vida útil vagones (años)
C66: =+NA() ->  | D66: =+NA() ->  | E66: =+NA() ->  | F66: =+NA() ->  | G66: =+NA() ->  | H66: =+NA() ->  | J66: BASE | K66: 2.244606751 | L66: 1.170515063 | M66: 0.03512004085 | S66: =+Movilidad!F33*100 -> 0 | AE66: 0.1 | AF66: Valor residual locomotoras
C67: =+NA() ->  | D67: =+NA() ->  | E67: =+NA() ->  | F67: =+NA() ->  | G67: =+NA() ->  | H67: =+NA() ->  | J67: 0.05 | K67: 2.224519731 | L67: 1.170515063 | M67: 0.03512004085 | S67: =+Movilidad!F34*100 ->  | AE67: 0.1 | AF67: Valor residual vagones
C68: =+NA() ->  | D68: =+NA() ->  | E68: =+NA() ->  | F68: =+NA() ->  | G68: =+NA() ->  | H68: =+NA() ->  | J68: 0.1 | K68: 2.206258805 | L68: 1.170515063 | M68: 0.03512004085 | S68: =+Movilidad!F36*100 ->  | AE68: 1975000 | AF68: Precio Locomotora 1 en u$s
C69: =+NA() ->  | D69: =+NA() ->  | E69: =+NA() ->  | F69: =+NA() ->  | G69: =+NA() ->  | H69: =+NA() ->  | J69: 0.15 | K69: 2.189585785 | L69: 1.170515063 | M69: 0.03512004085 | AE69: 1550000 | AF69: Precio Locomotora 2 en u$s
B70: -0.25 | C70: 2.385215885 | D70: 1.170515063 | E70: 0.03512004085 | F70: =+C70/C$39-1 -> 0.0626431043 | G70: =+D70/D$39-1 -> 0 | H70: =+E70/E$39-1 -> 0 | J70: =+B80 -> 0.25 | K70: =+C80 -> 2.16024127 | L70: =+D80 -> 1.170515063 | M70: =+E80 -> 0.03512004085 | S70: =+Resultados!$C$8 -> - | AE70: 2750000 | AF70: Precio Locomotora 3 en u$s
C71: =+NA() ->  | D71: =+NA() ->  | E71: =+NA() ->  | F71: =+NA() ->  | G71: =+NA() ->  | H71: =+NA() ->  | J71: =+B85 -> 0.5 | K71: =+C85 -> 2.103997616 | L71: =+D85 -> 1.170515063 | M71: =+E85 -> 0.03512004085 | S71: =+S70*$S$17/100 ->  | AE71: 2750000 | AF71: Precio Locomotora 4 en u$s
B72: -0.15 | C72: 2.319046881 | D72: 1.170515063 | E72: 0.03512004085 | F72: =+C72/C$39-1 -> 0.0331639964 | G72: =+D72/D$39-1 -> 0 | H72: =+E72/E$39-1 -> 0 | J72: =+B90 -> 0.75 | K72: =+C90 -> 2.063823577 | L72: =+D90 -> 1.170515063 | M72: =+E90 -> 0.03512004085 | S72: =+Ingreso_de_datos!C39 -> 0 | AE72: 2450000 | AF72: Precio Locomotora 5 en u$s
B73: -0.1 | C73: 2.291476462 | D73: 1.170515063 | E73: 0.03512004085 | F73: 0.02088103477 | G73: 0 | H73: 0 | S73: =+Ingreso_de_datos!C40 -> 0 | AE73: 960000 | AF73: Precio Locomotora 6 en u$s
B74: -0.05 | C74: 2.266808193 | D74: 1.170515063 | E74: 0.03512004085 | F74: 0.009891016469 | G74: 0 | H74: 0 | S74: =+Ingreso_de_datos!C41 -> 0 | AE74: 540000 | AF74: Precio Locomotora 7 en u$s
B75: BASE | C75: 2.244606751 | D75: 1.170515063 | E75: 0.03512004085 | F75: 0 | G75: 0 | H75: 0 | S75: =+Ingreso_de_datos!C42 -> 0 | AE75: 660000 | AF75: Precio Locomotora 8 en u$s
B76: 0.05 | C76: 2.224519731 | D76: 1.170515063 | E76: 0.03512004085 | F76: -0.0089490149 | G76: 0 | H76: 0 | J76: base | K76: =+VLOOKUP(J76,J78:K90,2,FALSE) -> 1 | S76: =+Mantenimiento!D42/$S$9 -> 0 | AE76: 0.2 | AF76: Parque de locomotora 1 respecto a parque total
B77: 0.1 | C77: 2.206258805 | D77: 1.170515063 | E77: 0.03512004085 | F77: -0.01708448299 | G77: 0 | H77: 0 | S77: =+Mantenimiento!D55/$S$9 -> 0 | AE77: 0.2 | AF77: Parque de locomotora 2 respecto a parque total
B78: 0.15 | C78: 2.189585785 | D78: 1.170515063 | E78: 0.03512004085 | F78: -0.02451251908 | G78: 0 | H78: 0 | J78: =+J60 -> -0.75 | K78: =1+J78 -> 0.25 | S78: =+Mantenimiento!D90/$S$9 -> 0 | AE78: 0.2 | AF78: Parque de locomotora 3 respecto a parque total
C79: =+NA() ->  | D79: =+NA() ->  | E79: =+NA() ->  | F79: =+NA() ->  | G79: =+NA() ->  | H79: =+NA() ->  | J79: =+J61 -> -0.5 | K79: 0.5 | S79: =+Mantenimiento!D122/$S$9 -> 0 | AE79: 0.1 | AF79: Parque de locomotora 4 respecto a parque total
B80: 0.25 | C80: 2.16024127 | D80: 1.170515063 | E80: 0.03512004085 | F80: =+C80/C$39-1 -> -0.03758586258 | G80: =+D80/D$39-1 -> 0 | H80: =+E80/E$39-1 -> 0 | J80: -0.25 | K80: 0.75 | S80: =+Mantenimiento!D41*100/ParaGraficos!$S$17/ParaGraficos!$S$9 ->  | AE80: 0 | AF80: Parque de locomotora 5 respecto a parque total
C81: =+NA() ->  | D81: =+NA() ->  | E81: =+NA() ->  | F81: =+NA() ->  | G81: =+NA() ->  | H81: =+NA() ->  | J81: -0.15 | K81: 0.85 | S81: =+Mantenimiento!D54*100/ParaGraficos!$S$17/ParaGraficos!$S$9 ->  | AE81: 0.15 | AF81: Parque de locomotora 6 respecto a parque total
C82: =+NA() ->  | D82: =+NA() ->  | E82: =+NA() ->  | F82: =+NA() ->  | G82: =+NA() ->  | H82: =+NA() ->  | J82: -0.1 | K82: 0.9 | S82: =+Mantenimiento!D89*100/ParaGraficos!$S$17/ParaGraficos!$S$9 ->  | AE82: 0.15 | AF82: Parque de locomotora 7 respecto a parque total
C83: =+NA() ->  | D83: =+NA() ->  | E83: =+NA() ->  | F83: =+NA() ->  | G83: =+NA() ->  | H83: =+NA() ->  | J83: -0.05 | K83: 0.95 | S83: =+Mantenimiento!D121*100/ParaGraficos!$S$17/ParaGraficos!$S$9 ->  | AE83: 0 | AF83: Parque de locomotora 8 respecto a parque total
C84: =+NA() ->  | D84: =+NA() ->  | E84: =+NA() ->  | F84: =+NA() ->  | G84: =+NA() ->  | H84: =+NA() ->  | J84: BASE | K84: 1 | AE84: 150000 | AF84: Precio Vagón Refrigerado en u$s
B85: 0.5 | C85: 2.103997616 | D85: 1.170515063 | E85: 0.03512004085 | F85: =+C85/C$39-1 -> -0.0626431043 | G85: =+D85/D$39-1 -> 0 | H85: =+E85/E$39-1 -> 0 | J85: 0.05 | K85: =1+J85 -> 1.05 | S85: =+Resultados!C9 -> - | AE85: 129376.3333 | AF85: Precio Vagón Tolva grano en u$s
C86: =+NA() ->  | D86: =+NA() ->  | E86: =+NA() ->  | F86: =+NA() ->  | G86: =+NA() ->  | H86: =+NA() ->  | J86: 0.1 | K86: 1.1 | S86: =+S85*$S$17/100 ->  | AE86: 117913.6667 | AF86: Precio Vagón Tolva minero en u$s
C87: =+NA() ->  | D87: =+NA() ->  | E87: =+NA() ->  | F87: =+NA() ->  | G87: =+NA() ->  | H87: =+NA() ->  | J87: 0.15 | K87: 1.15 | S87: =+Ingreso_de_datos!C19 -> 0 | AE87: 130000 | AF87: Precio Vagón Tanque en u$s
C88: =+NA() ->  | D88: =+NA() ->  | E88: =+NA() ->  | F88: =+NA() ->  | G88: =+NA() ->  | H88: =+NA() ->  | J88: 0.25 | K88: 1.25 | S88: =+Ingreso_de_datos!C20 -> 0 | AE88: 107359.5 | AF88: Precio Vagón PC - Plataforma en u$s
C89: =+NA() ->  | D89: =+NA() ->  | E89: =+NA() ->  | F89: =+NA() ->  | G89: =+NA() ->  | H89: =+NA() ->  | J89: 0.5 | K89: 1.5 | S89: =+Ingreso_de_datos!C21 -> 0 | AE89: 126162.375 | AF89: Precio Vagón Varios en u$s
B90: 0.75 | C90: 2.063823577 | D90: 1.170515063 | E90: 0.03512004085 | F90: =+C90/C$39-1 -> -0.0805411341 | G90: =+D90/D$39-1 -> 0 | H90: =+E90/E$39-1 -> 0 | J90: 0.75 | K90: 1.75 | S90: =+Ingreso_de_datos!C22 -> 0 | AE90: 0 | AF90: Precio Vagón 7 en u$s
S91: =+Ingreso_de_datos!C23 -> 0 | AE91: 0 | AF91: Precio Vagón 8 en u$s
C92: =+Resultados!C7 -> - | D92: =+Resultados!C8 -> - | E92: =+Resultados!C9 -> - | S92: =+SUM(Ingreso_de_datos!$C$25:$C$28)*Ingreso_de_datos!C29 -> 0 | AE92: 80 | AF92: Carga bruta Vagón Refrigerado
S93: =+SUM(Ingreso_de_datos!C31:C32)*Ingreso_de_datos!C33 -> 0 | AE93: 80 | AF93: Carga bruta Vagón Tolva grano
B94: SENSIBILIDAD A LA ESPERA EN CABECERAS | S94: =+Ingreso_de_datos!C35*Ingreso_de_datos!C36 -> 0 | AE94: 80 | AF94: Carga bruta Vagón Tolva minero
B95: VARIACION | C95: =+C59 -> MOVILIDAD | D95: =+D59 -> MANTENIMIENTO DE INFRAESTRUCTURA | E95: =+E59 -> INVERSIÓN EN INFRAESTRUCTURA | F95: =+C95 -> MOVILIDAD | G95: =+D95 -> MANTENIMIENTO DE INFRAESTRUCTURA | H95: =+E95 -> INVERSIÓN EN INFRAESTRUCTURA | S95: =Infraestructura!$B$17 -> 0 | AE95: 80 | AF95: Carga bruta Vagón Tanque
B96: -0.75 | C96: 1.519130893 | D96: 1.170515063 | E96: 0.03512004085 | F96: =+C96/C$39-1 -> -0.323208445 | G96: =+D96/D$39-1 -> 0 | H96: =+E96/E$39-1 -> 0 | J96: =+B96 -> -0.75 | K96: =+C96 -> 1.519130893 | L96: =+D96 -> 1.170515063 | M96: =+E96 -> 0.03512004085 | S96: =Infraestructura!$C$17 -> 0 | AE96: 80 | AF96: Carga bruta Vagón PC - Plataforma
C97: =+NA() ->  | D97: =+NA() ->  | E97: =+NA() ->  | F97: =+NA() ->  | G97: =+NA() ->  | H97: =+NA() ->  | J97: =+B101 -> -0.5 | K97: =+C101 -> 1.760956179 | L97: =+D101 -> 1.170515063 | M97: =+E101 -> 0.03512004085 | S97: =Infraestructura!$D$17 -> 0 | AE97: 80 | AF97: Carga bruta Vagón Varios
C98: =+NA() ->  | D98: =+NA() ->  | E98: =+NA() ->  | F98: =+NA() ->  | G98: =+NA() ->  | H98: =+NA() ->  | J98: =+B106 -> -0.25 | K98: =+C106 -> 2.002781465 | L98: =+D106 -> 1.170515063 | M98: =+E106 -> 0.03512004085 | S98: =Infraestructura!$E$17 -> 0 | AE98: 0 | AF98: Carga bruta Vagón 7
C99: =+NA() ->  | D99: =+NA() ->  | E99: =+NA() ->  | F99: =+NA() ->  | G99: =+NA() ->  | H99: =+NA() ->  | J99: =+B108 -> -0.15 | K99: 2.099511579 | L99: 1.170515063 | M99: 0.03512004085 | S99: =Infraestructura!$F$17 -> 0 | AE99: 0 | AF99: Carga bruta Vagón 8
C100: =+NA() ->  | D100: =+NA() ->  | E100: =+NA() ->  | F100: =+NA() ->  | G100: =+NA() ->  | H100: =+NA() ->  | J100: -0.1 | K100: 2.147876636 | L100: 1.170515063 | M100: 0.03512004085 | S100: =Infraestructura!$G$17 -> 0 | AE100: 30 | AF100: Tara Vagón Refrigerado
B101: -0.5 | C101: 1.760956179 | D101: 1.170515063 | E101: 0.03512004085 | F101: =+C101/C$39-1 -> -0.2154722967 | G101: =+D101/D$39-1 -> 0 | H101: =+E101/E$39-1 -> 0 | J101: -0.05 | K101: 2.196241693 | L101: 1.170515063 | M101: 0.03512004085 | S101: =Infraestructura!$H$17 -> 0 | AE101: 23.9 | AF101: Tara Vagón Tolva grano
C102: =+NA() ->  | D102: =+NA() ->  | E102: =+NA() ->  | F102: =+NA() ->  | G102: =+NA() ->  | H102: =+NA() ->  | J102: BASE | K102: 2.244606751 | L102: 1.170515063 | M102: 0.03512004085 | S102: =Infraestructura!$I$17 -> 0 | AE102: 21.6 | AF102: Tara Vagón Tolva minero
C103: =+NA() ->  | D103: =+NA() ->  | E103: =+NA() ->  | F103: =+NA() ->  | G103: =+NA() ->  | H103: =+NA() ->  | J103: 0.05 | K103: 2.292971808 | L103: 1.170515063 | M103: 0.03512004085 | S103: =100*Infraestructura!$B$17/ParaGraficos!$S$17 ->  | AE103: 27 | AF103: Tara Vagón Tanque
C104: =+NA() ->  | D104: =+NA() ->  | E104: =+NA() ->  | F104: =+NA() ->  | G104: =+NA() ->  | H104: =+NA() ->  | J104: 0.1 | K104: 2.341336865 | L104: 1.170515063 | M104: 0.03512004085 | S104: =100*Infraestructura!$C$17/ParaGraficos!$S$17 ->  | AE104: 19.8 | AF104: Tara Vagón PC - Plataforma
C105: =+NA() ->  | D105: =+NA() ->  | E105: =+NA() ->  | F105: =+NA() ->  | G105: =+NA() ->  | H105: =+NA() ->  | J105: 0.15 | K105: 2.389701922 | L105: 1.170515063 | M105: 0.03512004085 | S105: =100*Infraestructura!$D$17/ParaGraficos!$S$17 ->  | AE105: 30 | AF105: Tara Vagón Varios
B106: -0.25 | C106: 2.002781465 | D106: 1.170515063 | E106: 0.03512004085 | F106: =+C106/C$39-1 -> -0.1077361483 | G106: =+D106/D$39-1 -> 0 | H106: =+E106/E$39-1 -> 0 | J106: =+B116 -> 0.25 | K106: =+C116 -> 2.486432036 | L106: =+D116 -> 1.170515063 | M106: =+E116 -> 0.03512004085 | S106: =100*Infraestructura!$E$17/ParaGraficos!$S$17 ->  | AE106: 0 | AF106: Tara Vagón 7
C107: =+NA() ->  | D107: =+NA() ->  | E107: =+NA() ->  | F107: =+NA() ->  | G107: =+NA() ->  | H107: =+NA() ->  | J107: =+B121 -> 0.5 | K107: =+C121 -> 2.728257322 | L107: =+D121 -> 1.170515063 | M107: =+E121 -> 0.03512004085 | S107: =100*Infraestructura!$F$17/ParaGraficos!$S$17 ->  | AE107: 0 | AF107: Tara Vagón 8
B108: -0.15 | C108: 2.099511579 | D108: 1.170515063 | E108: 0.03512004085 | F108: =+C108/C$39-1 -> -0.06464168901 | G108: =+D108/D$39-1 -> 0 | H108: =+E108/E$39-1 -> 0 | J108: =+B126 -> 0.75 | K108: =+C126 -> 2.970082608 | L108: =+D126 -> 1.170515063 | M108: =+E126 -> 0.03512004085 | S108: =100*Infraestructura!$G$17/ParaGraficos!$S$17 ->  | AE108: 25000 | AF108: Recorrido anual por vagón Refrigerado
B109: -0.1 | C109: 2.147876636 | D109: 1.170515063 | E109: 0.03512004085 | F109: -0.04309445934 | G109: 0 | H109: 0 | S109: =100*Infraestructura!$H$17/ParaGraficos!$S$17 ->  | AE109: 40380.35928 | AF109: Recorrido anual por vagón Tolva grano
B110: -0.05 | C110: 2.196241693 | D110: 1.170515063 | E110: 0.03512004085 | F110: -0.02154722967 | G110: 0 | H110: 0 | S110: =100*Infraestructura!$I$17/ParaGraficos!$S$17 ->  | AE110: 31555.07435 | AF110: Recorrido anual por vagón Tolva minero
B111: BASE | C111: 2.244606751 | D111: 1.170515063 | E111: 0.03512004085 | F111: 0 | G111: 0 | H111: 0 | AE111: 21412.04594 | AF111: Recorrido anual por vagón Tanque
B112: 0.05 | C112: 2.292971808 | D112: 1.170515063 | E112: 0.03512004085 | F112: 0.02154722967 | G112: 0 | H112: 0 | J112: base | K112: =+VLOOKUP(J112,J114:K126,2,FALSE) -> 1 | AE112: 30726.74755 | AF112: Recorrido anual por vagón PC-Plataforma
B113: 0.1 | C113: 2.341336865 | D113: 1.170515063 | E113: 0.03512004085 | F113: 0.04309445934 | G113: 0 | H113: 0 | AE113: 28066.74774 | AF113: Recorrido anual por vagón Varios
B114: 0.15 | C114: 2.389701922 | D114: 1.170515063 | E114: 0.03512004085 | F114: 0.06464168901 | G114: 0 | H114: 0 | J114: =+J96 -> -0.75 | K114: =1+J114 -> 0.25 | AE114: 0 | AF114: Recorrido anual por vagón 7
C115: =+NA() ->  | D115: =+NA() ->  | E115: =+NA() ->  | F115: =+NA() ->  | G115: =+NA() ->  | H115: =+NA() ->  | J115: =+J97 -> -0.5 | K115: 0.5 | AE115: 0 | AF115: Recorrido anual por vagón 8
B116: 0.25 | C116: 2.486432036 | D116: 1.170515063 | E116: 0.03512004085 | F116: =+C116/C$39-1 -> 0.1077361483 | G116: =+D116/D$39-1 -> 0 | H116: =+E116/E$39-1 -> 0 | J116: -0.25 | K116: 0.75 | AF116: Recorrido anual por locomotora
C117: =+NA() ->  | D117: =+NA() ->  | E117: =+NA() ->  | F117: =+NA() ->  | G117: =+NA() ->  | H117: =+NA() ->  | J117: -0.15 | K117: 0.85 | AF117: Recorrido anual por vagón
C118: =+NA() ->  | D118: =+NA() ->  | E118: =+NA() ->  | F118: =+NA() ->  | G118: =+NA() ->  | H118: =+NA() ->  | J118: -0.1 | K118: 0.9 | AE118: PC - Plataforma | AF118: Industrializados
C119: =+NA() ->  | D119: =+NA() ->  | E119: =+NA() ->  | F119: =+NA() ->  | G119: =+NA() ->  | H119: =+NA() ->  | J119: -0.05 | K119: 0.95 | AE119: Tolva grano | AF119: Granos
C120: =+NA() ->  | D120: =+NA() ->  | E120: =+NA() ->  | F120: =+NA() ->  | G120: =+NA() ->  | H120: =+NA() ->  | J120: BASE | K120: 1 | AE120: Tolva minero | AF120: Semiterminados
B121: 0.5 | C121: 2.728257322 | D121: 1.170515063 | E121: 0.03512004085 | F121: =+C121/C$39-1 -> 0.2154722967 | G121: =+D121/D$39-1 -> 0 | H121: =+E121/E$39-1 -> 0 | J121: 0.05 | K121: =1+J121 -> 1.05 | AE121: Tolva minero | AF121: Minería
C122: =+NA() ->  | D122: =+NA() ->  | E122: =+NA() ->  | F122: =+NA() ->  | G122: =+NA() ->  | H122: =+NA() ->  | J122: 0.1 | K122: 1.1 | AE122: Varios | AF122: Regionales
C123: =+NA() ->  | D123: =+NA() ->  | E123: =+NA() ->  | F123: =+NA() ->  | G123: =+NA() ->  | H123: =+NA() ->  | J123: 0.15 | K123: 1.15 | AE123: Tanque | AF123: Combustible
C124: =+NA() ->  | D124: =+NA() ->  | E124: =+NA() ->  | F124: =+NA() ->  | G124: =+NA() ->  | H124: =+NA() ->  | J124: 0.25 | K124: 1.25 | AE124: Refrigerado | AF124: Carnes
C125: =+NA() ->  | D125: =+NA() ->  | E125: =+NA() ->  | F125: =+NA() ->  | G125: =+NA() ->  | H125: =+NA() ->  | J125: 0.5 | K125: 1.5 | AE125: 2400000 | AF125: Kilometraje x ciclo
B126: 0.75 | C126: 2.970082608 | D126: 1.170515063 | E126: 0.03512004085 | F126: =+C126/C$39-1 -> 0.323208445 | G126: =+D126/D$39-1 -> 0 | H126: =+E126/E$39-1 -> 0 | J126: 0.75 | K126: 1.75 | AE126: 0.2 | AF126: Factor accidental con via SIN OBRA
AE127: 0.05 | AF127: Factor accidental con via CON OBRA
C128: =+Resultados!C7 -> - | D128: =+Resultados!C8 -> - | E128: =+Resultados!C9 -> - | AE128: 0.35 | AF128: Horas Hombre respecto a preventivo
AE129: 12 | AF129: Años x ciclo
AE130: 0.25 | AF130: Horas Hombre respecto a preventivo
AE131: 180 | AF131: Horas/mes por trabajador de taller
AE132: 0.1 | AF132: Inversión en maq.y herr./ inv. en Material Rodante (%)
AF133: Inversión en maq.y herr en $
AE134: 0.03 | AF134: Conservación maq.y herr./ inv. Maq.y herr. (%)
AE135: 20 | AF135: Vida útil máquinas y herramientas (años)
AE136: 0.1 | AF136: Valor residual máquinas y herramientas (%)
AE137: 1606.06 | AF137: Precio del metro cuadrado de taller ($/m²)
AE138: 2470.91 | AF138: Precio del metro cuadrado de administ. ($/m²)
AE139: 1000 | AF139: Precio del metro cuadrado de terreno ($/m²)
B140: SENSIBILIDAD A LA DISTANCIA | AF140: Costo de taller ($/m²)
B141: VARIACION | C141: =+C105 ->  | D141: =+D105 ->  | E141: =+E105 ->  | F141: =+C141 ->  | G141: =+D141 ->  | H141: =+E141 ->  | AF141: Costo de administ. ($/m²)
B142: -0.75 | C142: 5.809336428 | D142: 4.682060252 | E142: 0.1404801634 | F142: =+C142/C$39-1 -> 1.588131051 | G142: =+D142/D$39-1 -> 3 | H142: =+E142/E$39-1 -> 3 | J142: =+B142 -> -0.75 | K142: =+C142 -> 5.809336428 | L142: =+D142 -> 4.682060252 | M142: =+E142 -> 0.1404801634 | AF142: Costo de terreno ($/m²)
C143: =+NA() ->  | D143: =+NA() ->  | E143: =+NA() ->  | F143: =+NA() ->  | G143: =+NA() ->  | H143: =+NA() ->  | J143: =+B147 -> -0.5 | K143: =+C147 -> 3.432849976 | L143: =+D147 -> 2.341030126 | M143: =+E147 -> 0.07024008171 | AE143: 150 | AF143: Metros cuadrados de taller/locomotora
C144: =+NA() ->  | D144: =+NA() ->  | E144: =+NA() ->  | F144: =+NA() ->  | G144: =+NA() ->  | H144: =+NA() ->  | J144: =+B152 -> -0.25 | K144: =+C152 -> 2.640687826 | L144: =+D152 -> 1.560686751 | M144: =+E152 -> 0.04682672114 | AE144: 3.5 | AF144: Metros cuadrados de taller/vagon
C145: =+NA() ->  | D145: =+NA() ->  | E145: =+NA() ->  | F145: =+NA() ->  | G145: =+NA() ->  | H145: =+NA() ->  | J145: =+B154 -> -0.15 | K145: =+C154 -> 2.454296732 | L145: =+D154 -> 1.377076545 | M145: =+E154 -> 0.04131769512 | AE145: 750 | AF145: Metros cuadrados administración/locomotora
C146: =+NA() ->  | D146: =+NA() ->  | E146: =+NA() ->  | F146: =+NA() ->  | G146: =+NA() ->  | H146: =+NA() ->  | J146: -0.1 | K146: 2.376633776 | L146: 1.300572292 | M146: 0.03902226762 | AE146: 20000 | AF146: Metros cuadrados de terreno/locomotora
B147: -0.5 | C147: 3.432849976 | D147: 2.341030126 | E147: 0.07024008171 | F147: =+C147/C$39-1 -> 0.5293770169 | G147: =+D147/D$39-1 -> 1 | H147: =+E147/E$39-1 -> 1 | J147: -0.05 | K147: 2.307145868 | L147: 1.232121119 | M147: 0.03696846406 | AF147: Superficie destinada a taller (m²) (locomotoras)
C148: =+NA() ->  | D148: =+NA() ->  | E148: =+NA() ->  | F148: =+NA() ->  | G148: =+NA() ->  | H148: =+NA() ->  | J148: BASE | K148: 2.244606751 | L148: 1.170515063 | M148: 0.03512004085 | AF148: Superficie destinada a taller (m²) (vagones)
C149: =+NA() ->  | D149: =+NA() ->  | E149: =+NA() ->  | F149: =+NA() ->  | G149: =+NA() ->  | H149: =+NA() ->  | J149: 0.05 | K149: 2.18802374 | L149: 1.114776251 | M149: 0.03344765796 | AF149: Superficie destinada a administración (m²)
C150: =+NA() ->  | D150: =+NA() ->  | E150: =+NA() ->  | F150: =+NA() ->  | G150: =+NA() ->  | H150: =+NA() ->  | J150: 0.1 | K150: 2.136584639 | L150: 1.064104603 | M150: 0.03192730987 | AF150: Superficie destinada a terreno (m²)
C151: =+NA() ->  | D151: =+NA() ->  | E151: =+NA() ->  | F151: =+NA() ->  | G151: =+NA() ->  | H151: =+NA() ->  | J151: 0.15 | K151: 2.089618504 | L151: 1.017839185 | M151: 0.03053916596 | AE151: 0.03 | AF151: Coeficiente de conservación de edificios
B152: -0.25 | C152: 2.640687826 | D152: 1.560686751 | E152: 0.04682672114 | F152: =+C152/C$39-1 -> 0.1764590056 | G152: =+D152/D$39-1 -> 0.3333333333 | H152: =+E152/E$39-1 -> 0.3333333333 | J152: =+B162 -> 0.25 | K152: =+C162 -> 2.006958105 | L152: =+D162 -> 0.9364120505 | M152: =+E162 -> 0.02809603268 | AE152: 0.0075 | AF152: Coeficiente de conservación de terrenos
C153: =+NA() ->  | D153: =+NA() ->  | E153: =+NA() ->  | F153: =+NA() ->  | G153: =+NA() ->  | H153: =+NA() ->  | J153: =+B167 -> 0.5 | K153: =+C167 -> 1.848525675 | L153: =+D167 -> 0.7803433754 | M153: =+E167 -> 0.02341336057 | AE153: 50 | AF153: Vida util del edificio en años
B154: -0.15 | C154: 2.454296732 | D154: 1.377076545 | E154: 0.04131769512 | F154: =+C154/C$39-1 -> 0.09341947358 | G154: =+D154/D$39-1 -> 0.1764705882 | H154: =+E154/E$39-1 -> 0.1764705882 | J154: =+B172 -> 0.75 | K154: =+C172 -> 1.735359654 | L154: =+D172 -> 0.6688657503 | M154: =+E172 -> 0.02006859477 | AE154: 0.2 | AF154: Valor residual edificio (%)
B155: -0.1 | C155: 2.376633776 | D155: 1.300572292 | E155: 0.03902226762 | F155: 0.05881966855 | G155: 0.1111111111 | H155: 0.1111111111 | AE155: 40 | AF155: Vida útil Renovación (años)
B156: -0.05 | C156: 2.307145868 | D156: 1.232121119 | E156: 0.03696846406 | F156: 0.02786194826 | G156: 0.05263157895 | H156: 0.05263157895 | AE156: 7 | AF156: Vida útil Mejoramiento Liviano (años)
B157: BASE | C157: 2.244606751 | D157: 1.170515063 | E157: 0.03512004085 | F157: 0 | G157: 0 | H157: 0 | AE157: 10 | AF157: Vida útil Mejoramiento Semipesado (años)
B158: 0.05 | C158: 2.18802374 | D158: 1.114776251 | E158: 0.03344765796 | F158: -0.02520842938 | G158: -0.04761904762 | H158: -0.04761904762 | J158: base | K158: =+VLOOKUP(J158,J160:K172,2,FALSE) -> 1 | AE158: 15 | AF158: Vida útil Mejoramiento Pesado (años)
B159: 0.1 | C159: 2.136584639 | D159: 1.064104603 | E159: 0.03192730987 | F159: -0.04812518336 | G159: -0.09090909091 | H159: -0.09090909091 | AE159: 10 | AF159: Vida útil Mejoramiento definido por usuario (años)
B160: 0.15 | C160: 2.089618504 | D160: 1.017839185 | E160: 0.03053916596 | F160: -0.06904917612 | G160: -0.1304347826 | H160: -0.1304347826 | J160: =+J142 -> -0.75 | K160: =1+J160 -> 0.25 | AE160: 50 | AF160: Vida útil ODA (años)
C161: =+NA() ->  | D161: =+NA() ->  | E161: =+NA() ->  | F161: =+NA() ->  | G161: =+NA() ->  | H161: =+NA() ->  | J161: =+J143 -> -0.5 | K161: 0.5 | AE161: 20 | AF161: Vida útil PAN (años)
B162: 0.25 | C162: 2.006958105 | D162: 0.9364120505 | E162: 0.02809603268 | F162: =+C162/C$39-1 -> -0.1058754034 | G162: =+D162/D$39-1 -> -0.2 | H162: =+E162/E$39-1 -> -0.2 | J162: -0.25 | K162: 0.75 | AE162: 40 | AF162: Vida útil ADV (años)
C163: =+NA() ->  | D163: =+NA() ->  | E163: =+NA() ->  | F163: =+NA() ->  | G163: =+NA() ->  | H163: =+NA() ->  | J163: -0.15 | K163: 0.85 | AE163: 0.05 | AF163: Valor residual vía renovada
C164: =+NA() ->  | D164: =+NA() ->  | E164: =+NA() ->  | F164: =+NA() ->  | G164: =+NA() ->  | H164: =+NA() ->  | J164: -0.1 | K164: 0.9 | AE164: 0 | AF164: Valor residual vía mejorada
C165: =+NA() ->  | D165: =+NA() ->  | E165: =+NA() ->  | F165: =+NA() ->  | G165: =+NA() ->  | H165: =+NA() ->  | J165: -0.05 | K165: 0.95 | AE165: 0.05 | AF165: Valor residual ODA, PAN, ADV
C166: =+NA() ->  | D166: =+NA() ->  | E166: =+NA() ->  | F166: =+NA() ->  | G166: =+NA() ->  | H166: =+NA() ->  | J166: BASE | K166: 1 | AE166: 56 | AF166: Precio durmiente hormigón trocha angosta en u$s
B167: 0.5 | C167: 1.848525675 | D167: 0.7803433754 | E167: 0.02341336057 | F167: =+C167/C$39-1 -> -0.1764590056 | G167: =+D167/D$39-1 -> -0.3333333333 | H167: =+E167/E$39-1 -> -0.3333333333 | J167: 0.05 | K167: =1+J167 -> 1.05 | AE167: 85 | AF167: Precio durmiente hormigón trocha ancha en u$s
C168: =+NA() ->  | D168: =+NA() ->  | E168: =+NA() ->  | F168: =+NA() ->  | G168: =+NA() ->  | H168: =+NA() ->  | J168: 0.1 | K168: 1.1 | AE168: 15.21 | AF168: Precio fijaciones en u$s
C169: =+NA() ->  | D169: =+NA() ->  | E169: =+NA() ->  | F169: =+NA() ->  | G169: =+NA() ->  | H169: =+NA() ->  | J169: 0.15 | K169: 1.15 | AE169: 50850.87788 | AF169: Kilómetro de riel 54E1 en u$s
C170: =+NA() ->  | D170: =+NA() ->  | E170: =+NA() ->  | F170: =+NA() ->  | G170: =+NA() ->  | H170: =+NA() ->  | J170: 0.25 | K170: 1.25 | AE170: 16805.12 | AF170: ODA en u$s por ml si ml <5
C171: =+NA() ->  | D171: =+NA() ->  | E171: =+NA() ->  | F171: =+NA() ->  | G171: =+NA() ->  | H171: =+NA() ->  | J171: 0.5 | K171: 1.5 | AE171: 48298.14762 | AF171: ODA en u$s por ml si ml 5<L<15
B172: 0.75 | C172: 1.735359654 | D172: 0.6688657503 | E172: 0.02006859477 | F172: =+C172/C$39-1 -> -0.2268758644 | G172: =+D172/D$39-1 -> -0.4285714286 | H172: =+E172/E$39-1 -> -0.4285714286 | J172: 0.75 | K172: 1.75 | AE172: 34570.45111 | AF172: ODA en u$s por ml si ml 15<L<100
AE173: 25316.59028 | AF173: ODA en u$s por ml si ml >100
C174: =+Resultados!C7 -> - | D174: =+Resultados!C8 -> - | E174: =+Resultados!C9 -> - | AE174: 98568.61458 | AF174: ADV 1:10 R300 Trocha ancha y media en u$s
AE175: 78854.89166 | AF175: ADV 1:10 R300 Trocha angosta en u$s
AE176: 134474.0643 | AF176: ADV 1:12 R500 Trocha ancha y media en u$s
AE177: 107579.2515 | AF177: ADV 1:12 R500 Trocha angosta en u$s
AE178: 28844.8 | AF178: PAN tierra en u$s
AE179: 57564.2 | AF179: PAN pavimento en u$s
AE180: 1231175 | AF180: Mejoramiento - Relevamiento, Proyecto Ejecutivo y Replanteo + Conducción
AE181: 28.19 | AF181: Limpieza de zona de vía - desmalezado
AE182: 14589696.57 | AF182: Cambio de Fijaciones
AE183: 1583.74 | AF183: Cambio de Durmientes con Fijaciones Gauge Lock
AE184: 55514367 | AF184: Tratamiento de juntas
AE185: 21776000 | AF185: Tratamiento mecanizado pesado con aporte de balasto 1000 tn/km
AE186: 237.1 | AF186: Despunte de rieles
AE187: 1468.54 | AF187: Soldadura Aluminotérmica*
AE188: 2893447.864 | AF188: Cambio de rieles
AE189: 1888929.718 | AF189: Obrador
AE190: 1772 | AF190: Durmientes por kilómetro existente
AE191: 0.8 | AF191: Fijaciones a cambiar
AE192: 0.5 | AF192: Cambio de durmientes con PGL
AE193: 12 | AF193: Longitud barras existente
AE194: 12 | AF194: Longitud barras futura
AE195: 0.6 | AF195: Juntas futuras a tratar
AE196: 0.6 | AF196: Reemplazo de eclisas de las juntas a tratar
AE197: 800 | AF197: Aporte de balasto del mecanizado
AE198: 0.6 | AF198: Reemplazo de barras de rieles
AE199: 10 | AF199: Vida Útil Infraestructura
AE200: 0.4 | AF200: Producción media por cuadrilla (kms por mes ) - M1
... 36 more rows

Sheet Resultados
B6: Costo por ton-km en centavos de u$s | F6: CARACTERÍSTICAS PRINCIPALES
B7: MOVILIDAD | C7: =IFERROR(Movilidad!F39*100,"-") -> - | D7: =IFERROR(C7/$C$10,"-") -> -
B8: MANTENIMIENTO DE INFRAESTRUCTURA | C8: =IFERROR(Mantenimiento!H22*100/Recursos!B9,"-") -> - | D8: =IFERROR(C8/$C$10,"-") -> - | F8: =+CONCATENATE(Ingreso_de_datos!B5," ",Ingreso_de_datos!C5," - ",Ingreso_de_datos!B6,": ",TEXT(Ingreso_de_datos!C6,"#.##")," - ",Ingreso_de_datos!B7,": ",TEXT(Ingreso_de_datos!C7,"#.##")) -> TROCHA ELEGIR - LONGITUD DE VIA: - DISTANCIA MEDIA DE VIAJE:
B9: INVERSIÓN EN INFRAESTRUCTURA | C9: =IFERROR(Infraestructura!J17*100/Recursos!B9,"-") -> - | D9: =IFERROR(C9/$C$10,"-") -> - | F9: =+IF(SUM(Ingreso_de_datos!C19:C22)>0,CONCATENATE("OBRA INCLUIDA: ",Ingreso_de_datos!B19,": ",IF(Ingreso_de_datos!C19=0,0,TEXT(Ingreso_de_datos!A19,"#.##"))," ",Ingreso_de_datos!D19," - Mejoramiento: ",IF(SUM(Ingreso_de_datos!C20:C22)=0,0,TEXT(SUM(Ingreso_de_datos!A20:A22),"#.##"))," ",Ingreso_de_datos!D20),"NO SE INCLUYE NINGÚN TIPO DE INTERVENCIÓN EN LA INFRAESTRUCTURA") -> NO SE INCLUYE NINGÚN TIPO DE INTERVENCIÓN EN LA INFRAESTRUCTURA
B10: TOTAL | C10: =SUM(C7:C9) -> 0 | D10: =IFERROR(C10/$C$10,"-") -> - | F10: =+CONCATENATE("MANTENIMIENTO DE VÍA: ",IF(Ingreso_de_datos!C39=0,"",CONCATENATE(TEXT(Ingreso_de_datos!C39*100,0%),"% ",Ingreso_de_datos!B39)),,IF(Ingreso_de_datos!C40=0,"",CONCATENATE(" // ",TEXT(Ingreso_de_datos!C40*100,0%),"% ",Ingreso_de_datos!B40)),IF(Ingreso_de_datos!C41=0,"",CONCATENATE(" // ",TEXT(Ingreso_de_datos!C41*100,0%),"% ",Ingreso_de_datos!B41)),IF(Ingreso_de_datos!C42=0,"",CONCATENATE(" // ",TEXT(Ingreso_de_datos!C42*100,0%),"% ",Ingreso_de_datos!B42))) -> MANTENIMIENTO DE VÍA:
F11: =+CONCATENATE(Ingreso_de_datos!B14,": ",ROUNDUP(Ingreso_de_datos!C14,0)," ",Ingreso_de_datos!D14," - ","CAPACIDAD PORTANTE: ",Ingreso_de_datos!C13," ",Ingreso_de_datos!D13) -> VELOCIDAD DE CIRCULACIÓN: 0 Km/hora - CAPACIDAD PORTANTE: 0 ton/eje
F12: =+CONCATENATE("CARGA: ",TEXT(ROUNDUP(Ingreso_de_datos!C45,0),"#.##")," Ton y ",TEXT(ROUNDUP(Ingreso_de_datos!C49,0),"#.##")," Ton-Km") -> CARGA: Ton y Ton-Km
F13: =+CONCATENATE("PARQUE MÓVIL (operativo + reserva): ",ROUNDUP(SUM(Ingreso_de_datos!C70:C71),0)," Locomotoras y ",TEXT(ROUNDUP(SUM(Ingreso_de_datos!C74:C75),0),"#.##")," Vagones") -> 
F14: =+CONCATENATE("TRENES DIARIOS MES PICO: ",ROUND(Recursos!B35,1)) -> 
F15: =+CONCATENATE("PERSONAL: ",TEXT(ROUNDUP(SUM(SUM(Recursos!B58:B59),Recursos!B61,MatRod!B81,Recursos!B60),0),"#.##")," Trabajadores") -> 
F16: =+CONCATENATE("PERSONAL: ",TEXT(SUM(Recursos!B58:B59)*100/SUM(SUM(Recursos!B58:B59),Recursos!B61,MatRod!B81,Recursos!B60),0%),"% Conducción - ",TEXT(Recursos!B61*100/SUM(SUM(Recursos!B58:B59),Recursos!B61,MatRod!B81,Recursos!B60),0%),"% Tráfico - ",TEXT(MatRod!B81*100/SUM(SUM(Recursos!B58:B59),Recursos!B61,MatRod!B81,Recursos!B60),0%),"% Taller - ",TEXT(Recursos!B60*100/SUM(SUM(Recursos!B58:B59),Recursos!B61,MatRod!B81,Recursos!B60),0%),"% Administración") -> 
I41: Variación del costo ante variaciones en la carga transportada | N41: Sensibilidad del costo ante variaciones en la carga transportada
I42: Variación de la carga | J42: Variación del Costo por UDT | N42: Variación de la carga | O42: Costo en centavos de u$s
J43: Movilidad | K43: Mantenimiento de Infraestructura | L43: Inversión en Infraestructura | O43: Movilidad | P43: =+K43 -> Mantenimiento de Infraestructura | Q43: Inversión en Infraestructura
I44: =+ParaGraficos!J24 -> -0.75 | J44: =+IFERROR(O44/O$50-1,"-") -> 0.1220647829 | K44: =+IFERROR(P44/P$50-1,"-") -> 2 | L44: =+IFERROR(Q44/Q$50-1,"-") -> 3 | N44: =+ParaGraficos!J24 -> -0.75 | O44: =+ParaGraficos!K24 -> 2.518594186 | P44: =+ParaGraficos!L24 -> 3.511545189 | Q44: =+ParaGraficos!M24 -> 0.1404801634
I45: =+ParaGraficos!J25 -> -0.5 | J45: =+IFERROR(O45/O$50-1,"-") -> 0.04068826097 | K45: =+IFERROR(P45/P$50-1,"-") -> 0.5 | L45: =+IFERROR(Q45/Q$50-1,"-") -> 1 | N45: =+ParaGraficos!J25 -> -0.5 | O45: =+ParaGraficos!K25 -> 2.335935896 | P45: =+ParaGraficos!L25 -> 1.755772595 | Q45: =+ParaGraficos!M25 -> 0.07024008171
I46: =+ParaGraficos!J26 -> -0.25 | J46: 0.01356275366 | K46: 0.3333333333 | L46: 0.3333333333 | N46: =+ParaGraficos!J26 -> -0.25 | O46: =+ParaGraficos!K26 -> 2.275049799 | P46: =+ParaGraficos!L26 -> 1.560686751 | Q46: =+ParaGraficos!M26 -> 0.04682672114
I47: =+ParaGraficos!J27 -> -0.15 | J47: 0.007180281347 | K47: 0.1764705882 | L47: 0.1764705882 | N47: =+ParaGraficos!J27 -> -0.15 | O47: =+ParaGraficos!K27 -> 2.260723659 | P47: =+ParaGraficos!L27 -> 1.377076545 | Q47: =+ParaGraficos!M27 -> 0.04131769512
I48: =+ParaGraficos!J28 -> -0.1 | J48: 0.004520917885 | K48: 0.1111111111 | L48: 0.1111111111 | N48: =+ParaGraficos!J28 -> -0.1 | O48: =+ParaGraficos!K28 -> 2.254754433 | P48: =+ParaGraficos!L28 -> 1.300572292 | Q48: =+ParaGraficos!M28 -> 0.03902226762
I49: =+ParaGraficos!J29 -> -0.05 | J49: 0.002141487419 | K49: 0.05263157895 | L49: 0.05263157895 | N49: =+ParaGraficos!J29 -> -0.05 | O49: =+ParaGraficos!K29 -> 2.249413548 | P49: =+ParaGraficos!L29 -> 1.232121119 | Q49: =+ParaGraficos!M29 -> 0.03696846406
I50: =+ParaGraficos!J30 -> BASE | J50: 0 | K50: 0 | L50: 0 | N50: =+ParaGraficos!J30 -> BASE | O50: =+ParaGraficos!K30 -> 2.244606751 | P50: =+ParaGraficos!L30 -> 1.170515063 | Q50: =+ParaGraficos!M30 -> 0.03512004085
I51: =+ParaGraficos!J31 -> 0.05 | J51: -0.001937536237 | K51: -0.04761904762 | L51: -0.04761904762 | N51: =+ParaGraficos!J31 -> 0.05 | O51: =+ParaGraficos!K31 -> 2.240257744 | P51: =+ParaGraficos!L31 -> 1.114776251 | Q51: =+ParaGraficos!M31 -> 0.03344765796
I52: =+ParaGraficos!J32 -> 0.1 | J52: -0.003698932815 | K52: -0.09090909091 | L52: -0.09090909091 | N52: =+ParaGraficos!J32 -> 0.1 | O52: =+ParaGraficos!K32 -> 2.236304101 | P52: =+ParaGraficos!L32 -> 1.064104603 | Q52: =+ParaGraficos!M32 -> 0.03192730987
I53: =+ParaGraficos!J33 -> 0.15 | J53: -0.005307164474 | K53: -0.1304347826 | L53: -0.1304347826 | N53: =+ParaGraficos!J33 -> 0.15 | O53: =+ParaGraficos!K33 -> 2.232694253 | P53: =+ParaGraficos!L33 -> 1.017839185 | Q53: =+ParaGraficos!M33 -> 0.03053916596
I54: =+ParaGraficos!J34 -> 0.25 | J54: -0.008137652193 | K54: -0.2 | L54: -0.2 | N54: =+ParaGraficos!J34 -> 0.25 | O54: =+ParaGraficos!K34 -> 2.226340922 | P54: =+ParaGraficos!L34 -> 0.9364120505 | Q54: =+ParaGraficos!M34 -> 0.02809603268
I55: =+ParaGraficos!J35 -> 0.5 | J55: -0.01356275366 | K55: -0.3333333333 | L55: -0.3333333333 | N55: =+ParaGraficos!J35 -> 0.5 | O55: =+ParaGraficos!K35 -> 2.214163702 | P55: =+ParaGraficos!L35 -> 0.7803433754 | Q55: =+ParaGraficos!M35 -> 0.02341336057
I56: =+ParaGraficos!J36 -> 0.75 | J56: -0.01743782613 | K56: -0.4285714286 | L56: -0.4285714286 | N56: =+ParaGraficos!J36 -> 0.75 | O56: =+ParaGraficos!K36 -> 2.205465688 | P56: =+ParaGraficos!L36 -> 0.6688657503 | Q56: =+ParaGraficos!M36 -> 0.02006859477
I61: Variación del costo ante variaciones en la velocidad de circulación | N61: Sensibilidad del costo ante variaciones en la velocidad de circulación
I62: Variación de la velocidad | J62: Variación del Costo por UDT | N62: Variación de la velocidad | O62: Costo en centavos de u$s
J63: Movilidad | K63: =+K43 -> Mantenimiento de Infraestructura | L63: Inversión en Infraestructura | O63: Movilidad | P63: =+K63 -> Mantenimiento de Infraestructura | Q63: Inversión en Infraestructura
I64: =+ParaGraficos!J60 -> -0.75 | J64: =+IFERROR(O64/O$70-1,"-") -> 0.5637879387 | K64: =+IFERROR(P64/P$70-1,"-") -> 0 | L64: =+IFERROR(Q64/Q$70-1,"-") -> 0 | N64: =+ParaGraficos!J60 -> -0.75 | O64: =+ParaGraficos!K60 -> 3.510088964 | P64: =+ParaGraficos!L60 -> 1.170515063 | Q64: =+ParaGraficos!M60 -> 0.03512004085
I65: =+ParaGraficos!J61 -> -0.5 | J65: =+IFERROR(O65/O$70-1,"-") -> 0.1879293129 | K65: =+IFERROR(P65/P$70-1,"-") -> 0 | L65: =+IFERROR(Q65/Q$70-1,"-") -> 0 | N65: =+ParaGraficos!J61 -> -0.5 | O65: =+ParaGraficos!K61 -> 2.666434155 | P65: =+ParaGraficos!L61 -> 1.170515063 | Q65: =+ParaGraficos!M61 -> 0.03512004085
I66: =+ParaGraficos!J62 -> -0.25 | J66: 0.0626431043 | K66: 0 | L66: 0 | N66: =+ParaGraficos!J62 -> -0.25 | O66: =+ParaGraficos!K62 -> 2.385215885 | P66: =+ParaGraficos!L62 -> 1.170515063 | Q66: =+ParaGraficos!M62 -> 0.03512004085
I67: =+ParaGraficos!J63 -> -0.15 | J67: 0.0331639964 | K67: 0 | L67: 0 | N67: =+ParaGraficos!J63 -> -0.15 | O67: =+ParaGraficos!K63 -> 2.319046881 | P67: =+ParaGraficos!L63 -> 1.170515063 | Q67: =+ParaGraficos!M63 -> 0.03512004085
I68: =+ParaGraficos!J64 -> -0.1 | J68: 0.02088103477 | K68: 0 | L68: 0 | N68: =+ParaGraficos!J64 -> -0.1 | O68: =+ParaGraficos!K64 -> 2.291476462 | P68: =+ParaGraficos!L64 -> 1.170515063 | Q68: =+ParaGraficos!M64 -> 0.03512004085
I69: =+ParaGraficos!J65 -> -0.05 | J69: 0.009891016469 | K69: 0 | L69: 0 | N69: =+ParaGraficos!J65 -> -0.05 | O69: =+ParaGraficos!K65 -> 2.266808193 | P69: =+ParaGraficos!L65 -> 1.170515063 | Q69: =+ParaGraficos!M65 -> 0.03512004085
I70: =+ParaGraficos!J66 -> BASE | J70: 0 | K70: 0 | L70: 0 | N70: =+ParaGraficos!J66 -> BASE | O70: =+ParaGraficos!K66 -> 2.244606751 | P70: =+ParaGraficos!L66 -> 1.170515063 | Q70: =+ParaGraficos!M66 -> 0.03512004085
I71: =+ParaGraficos!J67 -> 0.05 | J71: -0.0089490149 | K71: 0 | L71: 0 | N71: =+ParaGraficos!J67 -> 0.05 | O71: =+ParaGraficos!K67 -> 2.224519731 | P71: =+ParaGraficos!L67 -> 1.170515063 | Q71: =+ParaGraficos!M67 -> 0.03512004085
I72: =+ParaGraficos!J68 -> 0.1 | J72: -0.01708448299 | K72: 0 | L72: 0 | N72: =+ParaGraficos!J68 -> 0.1 | O72: =+ParaGraficos!K68 -> 2.206258805 | P72: =+ParaGraficos!L68 -> 1.170515063 | Q72: =+ParaGraficos!M68 -> 0.03512004085
I73: =+ParaGraficos!J69 -> 0.15 | J73: -0.02451251908 | K73: 0 | L73: 0 | N73: =+ParaGraficos!J69 -> 0.15 | O73: =+ParaGraficos!K69 -> 2.189585785 | P73: =+ParaGraficos!L69 -> 1.170515063 | Q73: =+ParaGraficos!M69 -> 0.03512004085
I74: =+ParaGraficos!J70 -> 0.25 | J74: -0.03758586258 | K74: 0 | L74: 0 | N74: =+ParaGraficos!J70 -> 0.25 | O74: =+ParaGraficos!K70 -> 2.16024127 | P74: =+ParaGraficos!L70 -> 1.170515063 | Q74: =+ParaGraficos!M70 -> 0.03512004085
I75: =+ParaGraficos!J71 -> 0.5 | J75: -0.0626431043 | K75: 0 | L75: 0 | N75: =+ParaGraficos!J71 -> 0.5 | O75: =+ParaGraficos!K71 -> 2.103997616 | P75: =+ParaGraficos!L71 -> 1.170515063 | Q75: =+ParaGraficos!M71 -> 0.03512004085
I76: =+ParaGraficos!J72 -> 0.75 | J76: -0.0805411341 | K76: 0 | L76: 0 | N76: =+ParaGraficos!J72 -> 0.75 | O76: =+ParaGraficos!K72 -> 2.063823577 | P76: =+ParaGraficos!L72 -> 1.170515063 | Q76: =+ParaGraficos!M72 -> 0.03512004085
I81: Variación del costo ante variaciones en la espera en cabeceras | N81: Sensibilidad del costo ante variaciones en la espera en cabeceras
I82: Variación de la espera | J82: Variación del Costo por UDT | N82: Variación de la espera | O82: Costo en centavos de u$s
J83: Movilidad | K83: =+K63 -> Mantenimiento de Infraestructura | L83: Inversión en Infraestructura | O83: Movilidad | P83: =+K83 -> Mantenimiento de Infraestructura | Q83: Inversión en Infraestructura
I84: =+N84 -> -0.75 | J84: =+IFERROR(O84/O$90-1,"-") -> -0.323208445 | K84: =+IFERROR(P84/P$90-1,"-") -> 0 | L84: =+IFERROR(Q84/Q$90-1,"-") -> 0 | N84: =+ParaGraficos!J96 -> -0.75 | O84: =+ParaGraficos!K96 -> 1.519130893 | P84: =+ParaGraficos!L96 -> 1.170515063 | Q84: =+ParaGraficos!M96 -> 0.03512004085
I85: =+N85 -> -0.5 | J85: =+IFERROR(O85/O$90-1,"-") -> -0.2154722967 | K85: =+IFERROR(P85/P$90-1,"-") -> 0 | L85: =+IFERROR(Q85/Q$90-1,"-") -> 0 | N85: =+ParaGraficos!J97 -> -0.5 | O85: =+ParaGraficos!K97 -> 1.760956179 | P85: =+ParaGraficos!L97 -> 1.170515063 | Q85: =+ParaGraficos!M97 -> 0.03512004085
I86: -0.25 | J86: -0.1077361483 | K86: 0 | L86: 0 | N86: =+ParaGraficos!J98 -> -0.25 | O86: =+ParaGraficos!K98 -> 2.002781465 | P86: =+ParaGraficos!L98 -> 1.170515063 | Q86: =+ParaGraficos!M98 -> 0.03512004085
I87: -0.15 | J87: -0.06464168901 | K87: 0 | L87: 0 | N87: =+ParaGraficos!J99 -> -0.15 | O87: =+ParaGraficos!K99 -> 2.099511579 | P87: =+ParaGraficos!L99 -> 1.170515063 | Q87: =+ParaGraficos!M99 -> 0.03512004085
I88: -0.1 | J88: -0.04309445934 | K88: 0 | L88: 0 | N88: =+ParaGraficos!J100 -> -0.1 | O88: =+ParaGraficos!K100 -> 2.147876636 | P88: =+ParaGraficos!L100 -> 1.170515063 | Q88: =+ParaGraficos!M100 -> 0.03512004085
I89: -0.05 | J89: -0.02154722967 | K89: 0 | L89: 0 | N89: =+ParaGraficos!J101 -> -0.05 | O89: =+ParaGraficos!K101 -> 2.196241693 | P89: =+ParaGraficos!L101 -> 1.170515063 | Q89: =+ParaGraficos!M101 -> 0.03512004085
I90: BASE | J90: 0 | K90: 0 | L90: 0 | N90: =+ParaGraficos!J102 -> BASE | O90: =+ParaGraficos!K102 -> 2.244606751 | P90: =+ParaGraficos!L102 -> 1.170515063 | Q90: =+ParaGraficos!M102 -> 0.03512004085
I91: 0.05 | J91: 0.02154722967 | K91: 0 | L91: 0 | N91: =+ParaGraficos!J103 -> 0.05 | O91: =+ParaGraficos!K103 -> 2.292971808 | P91: =+ParaGraficos!L103 -> 1.170515063 | Q91: =+ParaGraficos!M103 -> 0.03512004085
I92: 0.1 | J92: 0.04309445934 | K92: 0 | L92: 0 | N92: =+ParaGraficos!J104 -> 0.1 | O92: =+ParaGraficos!K104 -> 2.341336865 | P92: =+ParaGraficos!L104 -> 1.170515063 | Q92: =+ParaGraficos!M104 -> 0.03512004085
I93: 0.15 | J93: 0.06464168901 | K93: 0 | L93: 0 | N93: =+ParaGraficos!J105 -> 0.15 | O93: =+ParaGraficos!K105 -> 2.389701922 | P93: =+ParaGraficos!L105 -> 1.170515063 | Q93: =+ParaGraficos!M105 -> 0.03512004085
I94: 0.25 | J94: 0.1077361483 | K94: 0 | L94: 0 | N94: =+ParaGraficos!J106 -> 0.25 | O94: =+ParaGraficos!K106 -> 2.486432036 | P94: =+ParaGraficos!L106 -> 1.170515063 | Q94: =+ParaGraficos!M106 -> 0.03512004085
I95: 0.5 | J95: 0.2154722967 | K95: 0 | L95: 0 | N95: =+ParaGraficos!J107 -> 0.5 | O95: =+ParaGraficos!K107 -> 2.728257322 | P95: =+ParaGraficos!L107 -> 1.170515063 | Q95: =+ParaGraficos!M107 -> 0.03512004085
I96: 0.75 | J96: 0.323208445 | K96: 0 | L96: 0 | N96: =+ParaGraficos!J108 -> 0.75 | O96: =+ParaGraficos!K108 -> 2.970082608 | P96: =+ParaGraficos!L108 -> 1.170515063 | Q96: =+ParaGraficos!M108 -> 0.03512004085
I101: Variación del costo ante variaciones en la distancia media | N101: Sensibilidad del costo ante variaciones en la distancia media
I102: Variación de la distancia | J102: Variación del Costo por UDT | N102: Variación de la distancia | O102: Costo en centavos de u$s
J103: Movilidad | K103: =+K83 -> Mantenimiento de Infraestructura | L103: Inversión en Infraestructura | O103: Movilidad | P103: =+K103 -> Mantenimiento de Infraestructura | Q103: Inversión en Infraestructura
I104: =+N104 -> -0.25 | J104: =+IFERROR(O104/O$110-1,"-") -> 1.588131051 | K104: =+IFERROR(P104/P$110-1,"-") -> 3 | L104: =+IFERROR(Q104/Q$110-1,"-") -> 3 | N104: =+ParaGraficos!J116 -> -0.25 | O104: =+ParaGraficos!K142 -> 5.809336428 | P104: =+ParaGraficos!L142 -> 4.682060252 | Q104: =+ParaGraficos!M142 -> 0.1404801634
I105: =+N105 -> -0.15 | J105: =+IFERROR(O105/O$110-1,"-") -> 0.5293770169 | K105: =+IFERROR(P105/P$110-1,"-") -> 1 | L105: =+IFERROR(Q105/Q$110-1,"-") -> 1 | N105: =+ParaGraficos!J117 -> -0.15 | O105: =+ParaGraficos!K143 -> 3.432849976 | P105: =+ParaGraficos!L143 -> 2.341030126 | Q105: =+ParaGraficos!M143 -> 0.07024008171
I106: -0.1 | J106: 0.1764590056 | K106: 0.3333333333 | L106: 0.3333333333 | N106: =+ParaGraficos!J118 -> -0.1 | O106: =+ParaGraficos!K144 -> 2.640687826 | P106: =+ParaGraficos!L144 -> 1.560686751 | Q106: =+ParaGraficos!M144 -> 0.04682672114
I107: -0.05 | J107: 0.09341947358 | K107: 0.1764705882 | L107: 0.1764705882 | N107: =+ParaGraficos!J119 -> -0.05 | O107: =+ParaGraficos!K145 -> 2.454296732 | P107: =+ParaGraficos!L145 -> 1.377076545 | Q107: =+ParaGraficos!M145 -> 0.04131769512
I108: BASE | J108: 0.05881966855 | K108: 0.1111111111 | L108: 0.1111111111 | N108: =+ParaGraficos!J120 -> BASE | O108: =+ParaGraficos!K146 -> 2.376633776 | P108: =+ParaGraficos!L146 -> 1.300572292 | Q108: =+ParaGraficos!M146 -> 0.03902226762
I109: 0.05 | J109: 0.02786194826 | K109: 0.05263157895 | L109: 0.05263157895 | N109: =+ParaGraficos!J121 -> 0.05 | O109: =+ParaGraficos!K147 -> 2.307145868 | P109: =+ParaGraficos!L147 -> 1.232121119 | Q109: =+ParaGraficos!M147 -> 0.03696846406
I110: 0.1 | J110: 0 | K110: 0 | L110: 0 | N110: =+ParaGraficos!J122 -> 0.1 | O110: =+ParaGraficos!K148 -> 2.244606751 | P110: =+ParaGraficos!L148 -> 1.170515063 | Q110: =+ParaGraficos!M148 -> 0.03512004085
I111: 0.15 | J111: -0.02520842938 | K111: -0.04761904762 | L111: -0.04761904762 | N111: =+ParaGraficos!J123 -> 0.15 | O111: =+ParaGraficos!K149 -> 2.18802374 | P111: =+ParaGraficos!L149 -> 1.114776251 | Q111: =+ParaGraficos!M149 -> 0.03344765796
I112: 0.25 | J112: -0.04812518336 | K112: -0.09090909091 | L112: -0.09090909091 | N112: =+ParaGraficos!J124 -> 0.25 | O112: =+ParaGraficos!K150 -> 2.136584639 | P112: =+ParaGraficos!L150 -> 1.064104603 | Q112: =+ParaGraficos!M150 -> 0.03192730987
I113: 0.5 | J113: -0.06904917612 | K113: -0.1304347826 | L113: -0.1304347826 | N113: =+ParaGraficos!J125 -> 0.5 | O113: =+ParaGraficos!K151 -> 2.089618504 | P113: =+ParaGraficos!L151 -> 1.017839185 | Q113: =+ParaGraficos!M151 -> 0.03053916596
I114: 0.75 | J114: -0.1058754034 | K114: -0.2 | L114: -0.2 | N114: =+ParaGraficos!J126 -> 0.75 | O114: =+ParaGraficos!K152 -> 2.006958105 | P114: =+ParaGraficos!L152 -> 0.9364120505 | Q114: =+ParaGraficos!M152 -> 0.02809603268
I115: 0 | J115: -0.1764590056 | K115: -0.3333333333 | L115: -0.3333333333 | N115: =+ParaGraficos!J127 -> 0 | O115: =+ParaGraficos!K153 -> 1.848525675 | P115: =+ParaGraficos!L153 -> 0.7803433754 | Q115: =+ParaGraficos!M153 -> 0.02341336057
I116: 0 | J116: -0.2268758644 | K116: -0.4285714286 | L116: -0.4285714286 | N116: =+ParaGraficos!J128 -> 0 | O116: =+ParaGraficos!K154 -> 1.735359654 | P116: =+ParaGraficos!L154 -> 0.6688657503 | Q116: =+ParaGraficos!M154 -> 0.02006859477

Sheet Registro
A6: Fecha y hora del cálculo
A7: Principales parámetros
A8: Periodo
A9: Tipo de cambio | B9: ARS/USD
A10: Salario bruto mensual del personal de conducción | B10: ARS/persona-mes
A11: Precio del combustible por litro | B11: ARS/litro
A12: Valor promedio del parque de locomotoras | B12: USD/unidad
A13: Valor promedio del parque de vagones | B13: USD/unidad
A14: Tasa de descuento | B14: %
A15: Aspectos físicos y operativos
A16: Toneladas anuales | B16: Ton
A17: Toneladas-km | B17: Ton-Km.
A18: Proporción de viajes de retorno con carga | B18: %
A19: Trocha | B19: Tipo
A20: Longitud de vía | B20: Kms
A21: Distancia media de viaje | B21: Kms
A22: Capacidad portante de la via | B22: Ton-Eje
A23: Velocidad de circulación | B23: Kms/h
A24: Vagones por tren | B24: Unidades
A25: Participación de productos Industrializados | B25: %
A26: Participación de productos Granos | B26: %
A27: Participación de productos Semiterminados | B27: %
A28: Participación de productos Mineria | B28: %
A29: Participación de productos Regionales | B29: %
A30: Participación de productos Combustible | B30: %
A31: Participación de productos Carnes | B31: %
A32: Cálculo de recursos
A33: Trenes anuales totales (suma ambos sentidos) | B33: Cantidad
A34: Trenes anuales cargados en sentido A | B34: Cantidad
A35: Trenes anuales cargados en sentido B | B35: Cantidad
A36: Trenes anuales vacíos en ambos sentidos | B36: Cantidad
A37: Total trenes diarios de mes pico | B37: Cantidad
A38: Ciclo rotación de vagones | B38: Días
A39: Total vagones necesarios | B39: Unidades
A40: Ciclo rotación de lococomotoras | B40: Días
A41: Total locomotoras necesarias | B41: Unidades
A42: Personal Total | B42: Trabajadores
A43: Participación de personal de conducción | B43: %
A44: Participación de personal de tráfico | B44: %
A45: Participación de personal de taller | B45: %
A46: Participación de personal de administración | B46: %
A47: Resultados
A48: Costo por ton-km total (ARS) | B48: ARS/ton-km
A49: Costo por ton-km total (USD) | B49: Cvos. USD/ton-km
A50: Costo total anual (USD) | B50: USD
A52: Costo de movilidad | B52: Cvos. USD/ton-km
A53: Costo de movilidad anual | B53: USD
A54: Combustible | B54: Cvos. USD/ton-km
A55: Lubricantes | B55: Cvos. USD/ton-km
A56: Reparación y mantenimiento del material rodante | B56: Cvos. USD/ton-km
A57: CAE material rodante | B57: Cvos. USD/ton-km
A58: Salarios del personal | B58: Cvos. USD/ton-km
A59: Otros gastos de personal | B59: Cvos. USD/ton-km
A60: Movilidad del personal de a bordo | B60: Cvos. USD/ton-km
A61: Seguros | B61: Cvos. USD/ton-km
A62: Seguridad | B62: Cvos. USD/ton-km
A63: Máquinas y herramientas | B63: Cvos. USD/ton-km
A64: Inmuebles | B64: Cvos. USD/ton-km
A65: Impuestos y tasas municipales | B65: Cvos. USD/ton-km
A66: Peajes | B66: Cvos. USD/ton-km
A67: Gastos generales | B67: Cvos. USD/ton-km
A68: Impuestos nacionales y provinciales | B68: Cvos. USD/ton-km
A70: Costo de mantenimiento de vía | B70: Cvos. USD/ton-km
A71: Costo de mantenimiento de vía anual | B71: USD
A72: Manual (durm. madera) - Pers. propio | B72: %
A73: Manual (durm. madera) - Pers. contratado | B73: %
A74: Mecanizado (durm. madera) - Pers. propio | B74: %
A75: Mecanizado (durm. hormigón) - Pers. propio | B75: %
A76: Manual (durm. madera) - Pers. propio | B76: USD/km
A77: Manual (durm. madera) - Pers. contratado | B77: USD/km
A78: Mecanizado (durm. madera) - Pers. propio | B78: USD/km
A79: Mecanizado (durm. hormigón) - Pers. propio | B79: USD/km
A80: Manual (durm. madera) - Pers. propio | B80: Cvos. USD/ton-km
A81: Manual (durm. madera) - Pers. contratado | B81: Cvos. USD/ton-km
A82: Mecanizado (durm. madera) - Pers. propio | B82: Cvos. USD/ton-km
A83: Mecanizado (durm. hormigón) - Pers. propio | B83: Cvos. USD/ton-km
A85: Costo de inversión en infraestructura | B85: Cvos. USD/ton-km
A86: Costo de inversión en infraestructura anual | B86: USD
A87: Renovación (% de longitud de vía) | B87: %
A88: Mejoramiento Liviano (% de longitud de vía) | B88: %
A89: Mejoramiento Semi Pesado (% de longitud de vía) | B89: %
A90: Mejoramiento Pesado (% de longitud de vía) | B90: %
A91: Mejoramiento definido por usuario (% de longitud de vía) | B91: %
A92: ODAs (Obras de Arte) que se interviene | B92: Metros
A93: PAN (Pasos a Nivel) que se interviene | B93: Cantidad
A94: ADVs (Aparatos de Vía) que se interviene | B94: Cantidad
A95: CAE Renovación | B95: USD
A96: CAE Mejoramiento Liviano | B96: USD
A97: CAE Mejoramiento Semi Pesado | B97: USD
A98: CAE Mejoramiento Pesado | B98: USD
A99: CAE Mejoramiento definido por usuario | B99: USD
A100: CAE ODAs (Obras de Arte) | B100: USD
A101: CAE PAN (Pasos a Nivel) | B101: USD
A102: CAE ADVs (Aparatos de Vía) | B102: USD
A103: Renovación | B103: Cvos. USD/ton-km
A104: Mejoramiento Liviano | B104: Cvos. USD/ton-km
A105: Mejoramiento Semi Pesado | B105: Cvos. USD/ton-km
A106: Mejoramiento Pesado | B106: Cvos. USD/ton-km
A107: Mejoramiento definido por usuario | B107: Cvos. USD/ton-km
A108: ODAs (Obras de Arte) | B108: Cvos. USD/ton-km
A109: PAN (Pasos a Nivel) | B109: Cvos. USD/ton-km
A110: ADVs (Aparatos de Vía) | B110: Cvos. USD/ton-km

Sheet Parametros
K1: Si | L1: No
B4: RUBRO | C4: CONCEPTO | D4: UNIDAD | E4: VALOR UTILIZADO | F4: VALOR BASE O INGRESO MANUAL | G4: ACTUALIZA? | H4: OBSERVACIONES
B5: VARIOS | C5: Tasa de descuento | D5: % | E5: =+F5 -> 0.05 | F5: 0.05 | K5: =+IF(G5="Si",0,1) -> 1
C6: Tipo de cambio | D6: $/U$D | E6: =+IF(G6="Si",L6,F6) -> 41.3624 | F6: 15.8296 | G6: Si | H6: Cotización promedio mensual del BCRA – Comunicación “A” 3500. | K6: =+IF(G6="Si",0,1) -> 0 | L6: =+HLOOKUP(Ingreso_de_datos!$J$1,'Actualización de parámetros'!B1:AF78,'Actualización de parámetros'!A3,FALSE) -> 41.3624
C7: Impuesto a los créditos | D7: % | E7: =+F7 -> 0.006 | F7: 0.006 | K7: =+IF(G7="Si",0,1) -> 1
C8: Impuesto a los débitos | D8: % | E8: 0.006 | F8: 0.006 | K8: 1
C9: Impuesto a los IIBB | D9: % | E9: 0.015 | F9: 0.015 | K9: =+IF(G9="Si",0,1) -> 1
C10: Valuación fiscal / valuación venal (%) | D10: % | E10: 0.66 | F10: 0.66 | K10: 1
C11: Alumbrado barrido y limpieza (%) | D11: % | E11: 0.0032 | F11: 0.0032 | K11: 1
C12: Contribución territorial (%) | D12: % | E12: 0.0044 | F12: 0.0044 | K12: 1
C13: Gasto en seguridad en relación al gasto en personal | D13: % | E13: 0.04 | F13: 0.04 | H13: Predios y pasos a nivel (fijos) y trenes (móviles) | K13: 1
C14: Monto asegurado responsabilidad civil $ | D14: $ | E14: 100000 | F14: 100000 | K14: 1
C15: Responsabilidad Civil (prima sobre monto asegurado) | D15: % | E15: 0.03 | F15: 0.03 | K15: 1
C16: Coeficiente de Cauciones varias | D16: % | E16: 0.03 | F16: 0.03 | K16: 1
C17: Gastos generales | D17: % | E17: 0.03 | F17: 0.03 | K17: 1
B18: RECURSOS | C18: Carga neta por vagón (toneladas) | D18: tn | E18: =+MatRod!B27*HLOOKUP(MatRod!B26,MatRod!$B$14:$I$23,10,FALSE)+MatRod!C27*HLOOKUP(MatRod!C26,MatRod!$B$14:$I$23,10,FALSE)+MatRod!D27*HLOOKUP(MatRod!D26,MatRod!$B$14:$I$23,10,FALSE)+MatRod!E27*HLOOKUP(MatRod!E26,MatRod!$B$14:$I$23,10,FALSE)+MatRod!F27*HLOOKUP(MatRod!F26,MatRod!$B$14:$I$23,10,FALSE)+MatRod!G27*HLOOKUP(MatRod!G26,MatRod!$B$14:$I$23,10,FALSE)+MatRod!H27*HLOOKUP(MatRod!H26,MatRod!$B$14:$I$23,10,FALSE) ->  | H18: Depende del parque de vagones y de la capacidad portante de la vía | K18: 0
C19: Factor de estacionalidad de la carga | D19: - | E19: =+F19 -> 1.15 | F19: 1.15 | K19: =+IF(G19="Si",0,1) -> 1
C20: Recorrido y Tiempo extra de locomotoras respecto a trenes | D20: % | E20: 0.03 | F20: 0.03 | K20: 1
C21: Espera en origen de locomotoras (hs) | D21: hs | E21: 36 | F21: 36 | K21: 1
C22: Espera en destino de locomotoras (hs) | D22: hs | E22: 36 | F22: 36 | K22: 1
C23: Tiempo de maniobras por tren (hs) | D23: hs | E23: 2 | F23: 2 | K23: 1
C24: Cantidad de locomotoras por tren en llanura | D24: U | E24: 1 | F24: 1 | H24: Más locomotoras por tren equivale a trenes más cortos con una única locomotora | K24: 1
C25: Cantidad de locomotoras por tren en montaña | D25: U | E25: 1.5 | F25: 1.5 | K25: 1
C26: Cantidad de locomotoras por tren en ondulado | D26: U | E26: 1.25 | F26: 1.25 | K26: 1
B27: COMBUSTIBLES Y LUBRICANTES | C27: Consumo de combustible (lts/km) en llanura | D27: l/km | E27: 6 | F27: 6 | K27: 1 | L27: =+E27 -> 6
C28: Consumo adicional de combustible (lts/km) en montaña respecto a llanura | D28: % | E28: 0.2 | F28: 0.2 | H28: 20% más que en llanura | K28: 1 | L28: =+E27*(1+E28) -> 7.2
C29: Consumo adicional de combustible (lts/km) en ondulado respecto a llanura | D29: % | E29: 0.1 | F29: 0.1 | H29: 10% más que en llanura | K29: 1 | L29: =+E27*(1+E29) -> 6.6
C30: Consumo de lubricante (lts/km) en llanura | D30: l/km | E30: 0.07 | F30: 0.07 | K30: 1 | L30: =+E30 -> 0.07
C31: Consumo adicional de lubricante (lts/km) en montaña respecto a llanura | D31: % | E31: 0.2 | F31: 0.2 | H31: 20% más que en llanura | K31: 1 | L31: =+E30*(1+E31) -> 0.084
C32: Consumo adicional de lubricante (lts/km) en ondulado respecto a llanura | D32: % | E32: 0.1 | F32: 0.1 | H32: 10% más que en llanura | K32: 1 | L32: =+E30*(1+E32) -> 0.077
C33: Precio del gasoil ($/lt) | D33: $/l | E33: =+IF(G33="Si",L33,F33) -> 34.769 | F33: 14.0163 | G33: Si | H33: MINEM Precio mayorista promedio Gas Oil grado 2 Olavarria - Rosario - BB Marzo 2017 | K33: 0 | L33: =+HLOOKUP(Ingreso_de_datos!$J$1,'Actualización de parámetros'!B1:AF78,'Actualización de parámetros'!A4,FALSE) -> 34.769
C34: Precio del lubricante ($/lt) | D34: $/l | E34: 92.3360333 | F34: 37.22308791 | G34: Si | H34: Aceite YPF Hd Suplemento 1 40 Marzo 2017 (es una proporción del precio del gasoil) | K34: 0 | L34: =+L33*2.6557 -> 92.3360333
B35: PERSONAL Y MOVILIDAD DEL PERSONAL | C35: Conductor (salario bruto anual) | D35: $/año | E35: 1118480.229 | F35: 637172.503 | G35: Si | H35: Corresponde a NCA (convenio vigente al 31/12/2016). Actualizado según convenios hasta el vigente (dic-18 a abr-19) | K35: 0 | L35: =+HLOOKUP(Ingreso_de_datos!$J$1,'Actualización de parámetros'!$B$1:$AF$178,'Actualización de parámetros'!A9,FALSE) -> 1118480.229
C36: Ayudante Autorizado (salario bruto anual) | D36: $/año | E36: 989894.6815 | F36: 567662.7641 | G36: Si | K36: 0 | L36: =+HLOOKUP(Ingreso_de_datos!$J$1,'Actualización de parámetros'!$B$1:$AF$178,'Actualización de parámetros'!A10,FALSE) -> 989894.6815
C37: Ayudante Conductor (salario bruto anual) | D37: $/año | E37: 888927.9711 | F37: 512915.794 | G37: Si | K37: 0 | L37: =+HLOOKUP(Ingreso_de_datos!$J$1,'Actualización de parámetros'!$B$1:$AF$178,'Actualización de parámetros'!A11,FALSE) -> 888927.9711
C38: Auxiliar de tráfico (salario bruto anual) | D38: $/año | E38: 589506.8275 | F38: 348174.7808 | G38: Si | K38: 0 | L38: =+HLOOKUP(Ingreso_de_datos!$J$1,'Actualización de parámetros'!$B$1:$AF$178,'Actualización de parámetros'!A12,FALSE) -> 589506.8275
C39: Ayudante de trafico (salario bruto anual) | D39: $/año | E39: 606201.6678 | F39: 357148.7976 | G39: Si | K39: 0 | L39: =+HLOOKUP(Ingreso_de_datos!$J$1,'Actualización de parámetros'!$B$1:$AF$178,'Actualización de parámetros'!A13,FALSE) -> 606201.6678
C40: Operador de trafico (salario bruto anual) | D40: $/año | E40: 659173.4895 | F40: 385455.6359 | G40: Si | K40: 0 | L40: =+HLOOKUP(Ingreso_de_datos!$J$1,'Actualización de parámetros'!$B$1:$AF$178,'Actualización de parámetros'!A14,FALSE) -> 659173.4895
C41: Coordinador de tráfico (salario bruto anual) | D41: $/año | E41: 691000.4646 | F41: 402568.9293 | G41: Si | K41: 0 | L41: =+HLOOKUP(Ingreso_de_datos!$J$1,'Actualización de parámetros'!$B$1:$AF$178,'Actualización de parámetros'!A15,FALSE) -> 691000.4646
C42: Coordinador de trafico A (salario bruto anual) | D42: $/año | E42: 765328.4368 | F42: 442325.794 | G42: Si | K42: 0 | L42: =+HLOOKUP(Ingreso_de_datos!$J$1,'Actualización de parámetros'!$B$1:$AF$178,'Actualización de parámetros'!A16,FALSE) -> 765328.4368
C43: Peón general (salario bruto anual) | D43: $/año | E43: 554204.016 | F43: 329226.1365 | G43: Si | K43: 0 | L43: =+HLOOKUP(Ingreso_de_datos!$J$1,'Actualización de parámetros'!$B$1:$AF$178,'Actualización de parámetros'!A17,FALSE) -> 554204.016
C44: Ayudante taller/medio oficial de taller/ayudante mecánica (fpsa) (salario bruto anual) | D44: $/año | E44: 652841.0989 | F44: 381880.5581 | G44: Si | K44: 0 | L44: =+HLOOKUP(Ingreso_de_datos!$J$1,'Actualización de parámetros'!$B$1:$AF$178,'Actualización de parámetros'!A18,FALSE) -> 652841.0989
C45: Oficial C de taller (salario bruto anual) | D45: $/año | E45: 695019.7005 | F45: 404661.5713 | G45: Si | K45: 0 | L45: =+HLOOKUP(Ingreso_de_datos!$J$1,'Actualización de parámetros'!$B$1:$AF$178,'Actualización de parámetros'!A19,FALSE) -> 695019.7005
C46: Oficial B mecánico/electricista (salario bruto anual) | D46: $/año | E46: 756792.9271 | F46: 437419.1737 | G46: Si | K46: 0 | L46: =+HLOOKUP(Ingreso_de_datos!$J$1,'Actualización de parámetros'!$B$1:$AF$178,'Actualización de parámetros'!A20,FALSE) -> 756792.9271
C47: Oficial A electromecánico (salario bruto anual) | D47: $/año | E47: 839742.655 | F47: 481163.3485 | G47: Si | K47: 0 | L47: =+HLOOKUP(Ingreso_de_datos!$J$1,'Actualización de parámetros'!$B$1:$AF$178,'Actualización de parámetros'!A21,FALSE) -> 839742.655
C48: Auxiliar administrativo (salario bruto anual) | D48: $/año | E48: 554204.016 | F48: 329226.1365 | G48: Si | K48: 0 | L48: =+HLOOKUP(Ingreso_de_datos!$J$1,'Actualización de parámetros'!$B$1:$AF$178,'Actualización de parámetros'!A22,FALSE) -> 554204.016
C49: Auxiliar administrativo de 1era (salario bruto anual) | D49: $/año | E49: 602459.7488 | F49: 355160.218 | G49: Si | K49: 0 | L49: =+HLOOKUP(Ingreso_de_datos!$J$1,'Actualización de parámetros'!$B$1:$AF$178,'Actualización de parámetros'!A23,FALSE) -> 602459.7488
C50: Jornadas anuales por agente (días) | D50: días | E50: =+F50 -> 270 | F50: 270 | K50: 1
C51: Tiempo diario por agente (hs) | D51: hs | E51: 8 | F51: 8 | K51: =+IF(G51="Si",0,1) -> 1
C52: Factor de aprovechamiento conducción locomotoras de línea | D52: % | E52: 0.75 | F52: 0.75 | K52: 1
C53: Factor de aprovechamiento conducción locomotoras de maniobra | D53: % | E53: 0.9 | F53: 0.9 | K53: 1
C54: Factor de aprovechamiento personal de taller | D54: % | E54: 0.8 | F54: 0.8 | K54: 1
C55: Peón general | D55: % | E55: 0.25 | F55: 0.25 | H55: Proporción de trabajadores en taller | K55: 1
C56: Ayudante taller/medio oficial de taller/ayudante mecánica (fpsa) | D56: % | E56: 0.3 | F56: 0.3 | K56: 1
C57: Oficial C de taller | D57: % | E57: 0.25 | F57: 0.25 | K57: 1
C58: Oficial B mecánico/electricista | D58: % | E58: 0.15 | F58: 0.15 | K58: 1
C59: Oficial A electromecánico | D59: % | E59: 0.05 | F59: 0.05 | K59: 1
C60: Dotación de administración según NCA | D60: personal | E60: 120 | F60: 120 | H60: Determinación del personal de tráfico y administración | K60: 1
C61: Volumen de carga de NCA promedio 5 años en Ton | D61: tn | E61: 7684425.316 | F61: 7684425.316 | K61: 1
C62: Dotación de tráfico según NCA | D62: personal | E62: 131.5 | F62: 131.5 | K62: 1
C63: Red operativa de NCA en Kms | D63: km | E63: 2500 | F63: 2500 | K63: 1
C64: Coeficiente personal jerárquico | D64: % | E64: 0.04 | F64: 0.04 | K64: 1
C65: Otros gastos de personal | D65: % | E65: 0.03 | F65: 0.03 | K65: 1
C66: Costo promedio movilidad remis (en s) | D66: $ | E66: =+IF(G66="Si",L66,F66) -> 669.5910781 | F66: 300 | G66: Si | K66: 0 | L66: =+HLOOKUP(Ingreso_de_datos!$J$1,'Actualización de parámetros'!A1:AG174,'Actualización de parámetros'!A75,FALSE) -> 669.5910781
C67: Factor de uso de remis | D67: % | E67: =+F67 -> 0.7 | F67: 0.7 | K67: 1
B68: MATERIAL RODANTE | C68: Vida útil locomotoras (años) | D68: años | E68: 30 | F68: 30 | K68: 1
C69: Vida útil vagones (años) | D69: años | E69: 50 | F69: 50 | K69: 1
C70: Valor residual locomotoras | D70: % | E70: 0.1 | F70: 0.1 | K70: 1
C71: Valor residual vagones | D71: % | E71: 0.1 | F71: 0.1 | K71: 1
C72: Precio Locomotora 1 en u$s | D72: U$D | E72: 1975000 | F72: 1975000 | H72: Locomotora GT-22 CW Remanufacturada - 2500 HP - Motor EMD-12-645E3 | K72: 1
C73: Precio Locomotora 2 en u$s | D73: U$D | E73: 1550000 | F73: 1550000 | H73: Locomotora GT-23 CW Remanufacturada - 2200 HP - Motor EMD-16-645E | K73: 1
C74: Precio Locomotora 3 en u$s | D74: U$D | E74: 2750000 | F74: 2750000 | H74: Locomotora GT-22 C3 Nueva - 2500 HP - Motor 12-645E3 | K74: 1
C75: Precio Locomotora 4 en u$s | D75: U$D | E75: 2750000 | F75: 2750000 | H75: Locomotora NVIROMOTIVE 3GS24CW - 2400 HP - Motor Cummins QSK19 | K75: 1
C76: Precio Locomotora 5 en u$s | D76: U$D | E76: 2450000 | F76: 2450000 | H76: Locomotora NVIROMOTIVE 2GS16CW - 1600 HP - Motor Cummins QSK19 | K76: 1
C77: Precio Locomotora 6 en u$s | D77: U$D | E77: 960000 | F77: 960000 | H77: Locomotora Remanufacturada 1500 HP - Motor EMD 12-645E | K77: 1
C78: Precio Locomotora 7 en u$s | D78: U$D | E78: 540000 | F78: 540000 | H78: Locomotora GP-9 - 1750 HP - Motor EMD 16-567C | K78: 1
C79: Precio Locomotora 8 en u$s | D79: U$D | E79: 660000 | F79: 660000 | H79: Locomotora GP40-2 - 3000 HP - Motor EMD 16-645E3 B | K79: 1
C80: Parque de locomotora 1 respecto a parque total | D80: % | E80: 0.2 | F80: 0.2 | H80: =+H72 -> Locomotora GT-22 CW Remanufacturada - 2500 HP - Motor EMD-12-645E3 | K80: 1
C81: Parque de locomotora 2 respecto a parque total | D81: % | E81: 0.2 | F81: 0.2 | H81: =+H73 -> Locomotora GT-23 CW Remanufacturada - 2200 HP - Motor EMD-16-645E | K81: 1
C82: Parque de locomotora 3 respecto a parque total | D82: % | E82: 0.2 | F82: 0.2 | H82: Locomotora GT-22 C3 Nueva - 2500 HP - Motor 12-645E3 | K82: =+IF(G82="Si",0,1) -> 1
C83: Parque de locomotora 4 respecto a parque total | D83: % | E83: 0.1 | F83: 0.1 | H83: Locomotora NVIROMOTIVE 3GS24CW - 2400 HP - Motor Cummins QSK19 | K83: 1
C84: Parque de locomotora 5 respecto a parque total | D84: % | E84: 0 | F84: 0 | H84: Locomotora NVIROMOTIVE 2GS16CW - 1600 HP - Motor Cummins QSK19 | K84: 1
C85: Parque de locomotora 6 respecto a parque total | D85: % | E85: 0.15 | F85: 0.15 | H85: Locomotora Remanufacturada 1500 HP - Motor EMD 12-645E | K85: 1
C86: Parque de locomotora 7 respecto a parque total | D86: % | E86: 0.15 | F86: 0.15 | H86: Locomotora GP-9 - 1750 HP - Motor EMD 16-567C | K86: 1
C87: Parque de locomotora 8 respecto a parque total | D87: % | E87: 0 | F87: 0 | H87: Locomotora GP40-2 - 3000 HP - Motor EMD 16-645E3 B | K87: 1
C88: Precio Vagón Refrigerado en u$s | D88: U$D | E88: 150000 | F88: 150000 | H88: CMEC y Otros | K88: 1
C89: Precio Vagón Tolva grano en u$s | D89: U$D | E89: 129376.3333 | F89: 129376.3333 | K89: 1
C90: Precio Vagón Tolva minero en u$s | D90: U$D | E90: 117913.6667 | F90: 117913.6667 | K90: 1
C91: Precio Vagón Tanque en u$s | D91: U$D | E91: 130000 | F91: 130000 | K91: 1
C92: Precio Vagón PC - Plataforma en u$s | D92: U$D | E92: 107359.5 | F92: 107359.5 | K92: 1
C93: Precio Vagón Varios en u$s | D93: U$D | E93: 126162.375 | F93: 126162.375 | K93: 1
C94: Precio Vagón 7 en u$s | D94: U$D | E94: 0 | F94: 0 | K94: 1
C95: Precio Vagón 8 en u$s | D95: U$D | E95: 0 | F95: 0 | K95: 1
C96: Carga bruta Vagón Refrigerado | D96: tn | E96: 80 | F96: 80 | H96: Para el cálculo de la carga neta por vagón. Se compara: (a) el máximo de carga neta (bruta menos tara) según las especificaciones técnicas de cada vagón (FUENTE: Ferrosur Roca - http://www.ferrosur.com.ar/parque-vagones.html) y (b) la diferencia entre la carga bruta máxima según las toneladas por eje admisibles en la vía, menos la tara del vagón. Luego se elige el menor valor entre (a) y (b) | K96: 1
C97: Carga bruta Vagón Tolva grano | D97: tn | E97: =+F97 -> 80 | F97: 80 | K97: 1
C98: Carga bruta Vagón Tolva minero | D98: tn | E98: 80 | F98: 80 | K98: 1
C99: Carga bruta Vagón Tanque | D99: tn | E99: 80 | F99: 80 | K99: 1
C100: Carga bruta Vagón PC - Plataforma | D100: tn | E100: 80 | F100: 80 | K100: 1
C101: Carga bruta Vagón Varios | D101: tn | E101: 80 | F101: 80 | K101: 1
C102: Carga bruta Vagón 7 | D102: tn | E102: =+F102 -> 0 | F102: 0 | K102: 1
C103: Carga bruta Vagón 8 | D103: tn | E103: 0 | F103: 0 | K103: 1
C104: Tara Vagón Refrigerado | D104: tn | E104: =+F104 -> 30 | F104: 30 | K104: 1
C105: Tara Vagón Tolva grano | D105: tn | E105: =+F105 -> 23.9 | F105: 23.9 | K105: 1
C106: Tara Vagón Tolva minero | D106: tn | E106: 21.6 | F106: 21.6 | K106: 1
C107: Tara Vagón Tanque | D107: tn | E107: 27 | F107: 27 | K107: 1
C108: Tara Vagón PC - Plataforma | D108: tn | E108: 19.8 | F108: 19.8 | K108: 1
C109: Tara Vagón Varios | D109: tn | E109: 30 | F109: 30 | K109: 1
C110: Tara Vagón 7 | D110: tn | E110: 0 | F110: 0 | K110: 1
C111: Tara Vagón 8 | D111: tn | E111: 0 | F111: 0 | K111: 1
C112: Recorrido anual por vagón Refrigerado | D112: km | E112: =+F112 -> 25000 | F112: 25000 | K112: 1
C113: Recorrido anual por vagón Tolva grano | D113: km | E113: =+F113 -> 40380.35928 | F113: 40380.35928 | H113: FUENTE: Promedios realizados con datos de NCA 2015 - FEPSA 2015 - FERROSUR 2013 | K113: 1
C114: Recorrido anual por vagón Tolva minero | D114: km | E114: 31555.07435 | F114: 31555.07435 | K114: =+IF(G114="Si",0,1) -> 1
C115: Recorrido anual por vagón Tanque | D115: km | E115: 21412.04594 | F115: 21412.04594 | K115: 1
C116: Recorrido anual por vagón PC-Plataforma | D116: km | E116: 30726.74755 | F116: 30726.74755 | K116: 1
C117: Recorrido anual por vagón Varios | D117: km | E117: 28066.74774 | F117: 28066.74774 | K117: 1
C118: Recorrido anual por vagón 7 | D118: km | E118: =+F118 -> 0 | F118: 0 | K118: 1
C119: Recorrido anual por vagón 8 | D119: km | E119: =+F119 -> 0 | F119: 0 | K119: 1
C120: Recorrido anual por locomotora | D120: - | E120: variable | K120: 0
C121: Recorrido anual por vagón | D121: km | E121: =+SUMPRODUCT(MatRod!B21:I21,MatRod!B22:I22) ->  | K121: 0
C122: Industrializados | D122: - | E122: =+F122 -> PC - Plataforma | F122: PC - Plataforma | K122: =+IF(G122="Si",0,1) -> 1
C123: Granos | D123: - | E123: Tolva grano | F123: Tolva grano | K123: 1
C124: Semiterminados | D124: - | E124: Tolva minero | F124: Tolva minero | K124: 1
C125: Minería | D125: - | E125: Tolva minero | F125: Tolva minero | K125: 1
C126: Regionales | D126: - | E126: Varios | F126: Varios | K126: 1
C127: Combustible | D127: - | E127: Tanque | F127: Tanque | K127: 1
C128: Carnes | D128: - | E128: Refrigerado | F128: Refrigerado | K128: 1
C129: Kilometraje x ciclo | D129: km/ciclo | E129: 2400000 | F129: 2400000 | K129: 1
C130: Factor accidental con via SIN OBRA | D130: % | E130: 0.2 | F130: 0.2 | K130: 1
C131: Factor accidental con via CON OBRA | D131: % | E131: 0.05 | F131: 0.05 | K131: 1
C132: Horas Hombre respecto a preventivo | D132: % | E132: 0.35 | F132: 0.35 | K132: 1
C133: Años x ciclo | D133: años/ciclo | E133: 12 | F133: 12 | K133: 1
C134: Horas Hombre respecto a preventivo | D134: % | E134: 0.25 | F134: 0.25 | K134: 1
C135: Horas/mes por trabajador de taller | D135: Hs/mes | E135: 180 | F135: 180 | K135: 1
B136: MAQUINAS Y HERRAMIENTAS | C136: Inversión en maq.y herr./ inv. en Material Rodante (%) | D136: % | E136: 0.1 | F136: 0.1 | K136: 1
C137: Inversión en maq.y herr en $ | D137: $ | E137: =+(MatRod!J11*Recursos!B43+MatRod!J20*Recursos!B21)*Parametros!E136*Parametros!E6 ->  | K137: 0
C138: Conservación maq.y herr./ inv. Maq.y herr. (%) | D138: % | E138: =+F138 -> 0.03 | F138: 0.03 | K138: =+IF(G138="Si",0,1) -> 1
C139: Vida útil máquinas y herramientas (años) | D139: años | E139: =+F139 -> 20 | F139: 20 | K139: 1
C140: Valor residual máquinas y herramientas (%) | D140: % | E140: =+F140 -> 0.1 | F140: 0.1 | K140: 1
B141: INMUEBLES | C141: Precio del metro cuadrado de taller ($/m²) | D141: $/m² | E141: =+IF(G141="Si",L141,F141) -> 3101.90855 | F141: 1606.06 | G141: Si | H141: Valores correspondientes a las lineas de colectivos provinciales dispuestos en el "cálculo de costos e ingresos medios de los servicios de pasajeros urbanos y suburbanos de la Región Metropolitana de la Resolución 107-E/2017. Actualizado por el ICC - INDEC | K141: 0 | L141: =+HLOOKUP(Ingreso_de_datos!$J$1,'Actualización de parámetros'!$B$1:$AF$178,'Actualización de parámetros'!A38,FALSE) -> 3101.90855
C142: Precio del metro cuadrado de administ. ($/m²) | D142: $/m² | E142: =+IF(G142="Si",L142,F142) -> 4772.260598 | F142: 2470.91 | G142: Si | K142: 0 | L142: =+HLOOKUP(Ingreso_de_datos!$J$1,'Actualización de parámetros'!$B$1:$AF$178,'Actualización de parámetros'!A39,FALSE) -> 4772.260598
C143: Precio del metro cuadrado de terreno ($/m²) | D143: $/m² | E143: =+IF(G143="Si",L143,F143) -> 1931.377751 | F143: 1000 | G143: Si | K143: 0 | L143: =+HLOOKUP(Ingreso_de_datos!$J$1,'Actualización de parámetros'!$B$1:$AF$178,'Actualización de parámetros'!A40,FALSE) -> 1931.377751
C144: Costo de taller ($/m²) | D144: $/m² | E144: =+E141*(E151+E152) ->  | K144: 0
C145: Costo de administ. ($/m²) | D145: $/m² | E145: =+E142*E153 ->  | K145: 0
C146: Costo de terreno ($/m²) | D146: $/m² | E146: =+E143*E154 ->  | K146: 0
C147: Metros cuadrados de taller/locomotora | D147: m²/loc | E147: =+F147 -> 150 | F147: 150 | K147: =+IF(G147="Si",0,1) -> 1
C148: Metros cuadrados de taller/vagon | D148: m²/vagón | E148: =+F148 -> 3.5 | F148: 3.5 | K148: =+IF(G148="Si",0,1) -> 1
C149: Metros cuadrados administración/locomotora | D149: m²/loc | E149: =+F149 -> 750 | F149: 750 | K149: =+IF(G149="Si",0,1) -> 1
C150: Metros cuadrados de terreno/locomotora | D150: m²/loc | E150: =+F150 -> 20000 | F150: 20000 | K150: =+IF(G150="Si",0,1) -> 1
C151: Superficie destinada a taller (m²) (locomotoras) | D151: m² | E151: =+E147*Recursos!B43 ->  | K151: 0
C152: Superficie destinada a taller (m²) (vagones) | D152: m² | E152: =+E148*Recursos!B21 ->  | K152: 0
C153: Superficie destinada a administración (m²) | D153: m² | E153: =+E149*Recursos!B43 ->  | K153: 0
C154: Superficie destinada a terreno (m²) | D154: m² | E154: =+E150*Recursos!B43 ->  | K154: 0
C155: Coeficiente de conservación de edificios | D155: % | E155: =+F155 -> 0.03 | F155: 0.03 | K155: =+IF(G155="Si",0,1) -> 1
C156: Coeficiente de conservación de terrenos | D156: % | E156: 0.0075 | F156: 0.0075 | K156: 1
C157: Vida util del edificio en años | D157: años | E157: 50 | F157: 50 | K157: =+IF(G157="Si",0,1) -> 1
C158: Valor residual edificio (%) | D158: % | E158: 0.2 | F158: 0.2 | K158: 1
B159: INFRAESTRUCTURA | C159: Vida útil Renovación (años) | D159: años | E159: 40 | F159: 40 | K159: 1
C160: Vida útil Mejoramiento Liviano (años) | D160: años | E160: 7 | F160: 7 | K160: 1
C161: Vida útil Mejoramiento Semipesado (años) | D161: años | E161: 10 | F161: 10 | K161: 1
C162: Vida útil Mejoramiento Pesado (años) | D162: años | E162: 15 | F162: 15 | K162: 1
C163: Vida útil Mejoramiento definido por usuario (años) | D163: años | E163: 10 | F163: 10 | K163: 1
C164: Vida útil ODA (años) | D164: años | E164: 50 | F164: 50 | K164: =+IF(G164="Si",0,1) -> 1
C165: Vida útil PAN (años) | D165: años | E165: 20 | F165: 20 | K165: 1
C166: Vida útil ADV (años) | D166: años | E166: 40 | F166: 40 | K166: 1
C167: Valor residual vía renovada | D167: % | E167: 0.05 | F167: 0.05 | K167: 1
C168: Valor residual vía mejorada | D168: % | E168: 0 | F168: 0 | K168: 1
C169: Valor residual ODA, PAN, ADV | D169: % | E169: 0.05 | F169: 0.05 | K169: 1
C170: Precio durmiente hormigón trocha angosta en u$s | D170: U$D | E170: =+IF(G170="Si",L170,F170) -> 56 | F170: 56 | G170: Si | H170: ADIF 2016 - Actualizado a Abr-19 por la misma fuente | K170: 0 | L170: =+HLOOKUP(Ingreso_de_datos!$J$1,'Actualización de parámetros'!$B$1:$AF$178,'Actualización de parámetros'!A41,FALSE) -> 56
C171: Precio durmiente hormigón trocha ancha en u$s | D171: U$D | E171: 85 | F171: 85 | G171: Si | K171: 0 | L171: =+HLOOKUP(Ingreso_de_datos!$J$1,'Actualización de parámetros'!$B$1:$AF$178,'Actualización de parámetros'!A42,FALSE) -> 85
C172: Precio fijaciones en u$s | D172: U$D | E172: 15.21 | F172: 15.21 | G172: Si | K172: 0 | L172: =+HLOOKUP(Ingreso_de_datos!$J$1,'Actualización de parámetros'!$B$1:$AF$178,'Actualización de parámetros'!A43,FALSE) -> 15.21
C173: Kilómetro de riel 54E1 en u$s | D173: U$D | E173: 50474.972 | F173: 50850.87788 | G173: Si | K173: 0 | L173: =+HLOOKUP(Ingreso_de_datos!$J$1,'Actualización de parámetros'!$B$1:$AF$178,'Actualización de parámetros'!A44,FALSE) -> 50474.972
C174: ODA en u$s por ml si ml <5 | D174: U$D | E174: 14354.70369 | F174: 16805.12 | G174: Si | K174: 0 | L174: =+HLOOKUP(Ingreso_de_datos!$J$1,'Actualización de parámetros'!$B$1:$AF$178,'Actualización de parámetros'!A45,FALSE) -> 14354.70369
C175: ODA en u$s por ml si ml 5<L<15 | D175: U$D | E175: 41255.6172 | F175: 48298.14762 | G175: Si | K175: 0 | L175: =+HLOOKUP(Ingreso_de_datos!$J$1,'Actualización de parámetros'!$B$1:$AF$178,'Actualización de parámetros'!A46,FALSE) -> 41255.6172
C176: ODA en u$s por ml si ml 15<L<100 | D176: U$D | E176: 29529.60657 | F176: 34570.45111 | G176: Si | K176: 0 | L176: =+HLOOKUP(Ingreso_de_datos!$J$1,'Actualización de parámetros'!$B$1:$AF$178,'Actualización de parámetros'!A47,FALSE) -> 29529.60657
C177: ODA en u$s por ml si ml >100 | D177: U$D | E177: 21625.0852 | F177: 25316.59028 | G177: Si | K177: 0 | L177: =+HLOOKUP(Ingreso_de_datos!$J$1,'Actualización de parámetros'!$B$1:$AF$178,'Actualización de parámetros'!A48,FALSE) -> 21625.0852
C178: ADV 1:10 R300 Trocha ancha y media en u$s | D178: U$D | E178: 84195.9626 | F178: 98568.61458 | G178: Si | K178: 0 | L178: =+HLOOKUP(Ingreso_de_datos!$J$1,'Actualización de parámetros'!$B$1:$AF$178,'Actualización de parámetros'!A49,FALSE) -> 84195.9626
C179: ADV 1:10 R300 Trocha angosta en u$s | D179: U$D | E179: 67356.77008 | F179: 78854.89166 | G179: Si | K179: 0 | L179: =+HLOOKUP(Ingreso_de_datos!$J$1,'Actualización de parámetros'!$B$1:$AF$178,'Actualización de parámetros'!A50,FALSE) -> 67356.77008
C180: ADV 1:12 R500 Trocha ancha y media en u$s | D180: U$D | E180: 114865.9068 | F180: 134474.0643 | G180: Si | K180: 0 | L180: =+HLOOKUP(Ingreso_de_datos!$J$1,'Actualización de parámetros'!$B$1:$AF$178,'Actualización de parámetros'!A51,FALSE) -> 114865.9068
C181: ADV 1:12 R500 Trocha angosta en u$s | D181: U$D | E181: 91892.72542 | F181: 107579.2515 | G181: Si | K181: 0 | L181: =+HLOOKUP(Ingreso_de_datos!$J$1,'Actualización de parámetros'!$B$1:$AF$178,'Actualización de parámetros'!A52,FALSE) -> 91892.72542
C182: PAN tierra en u$s | D182: U$D | E182: 24638.83369 | F182: 28844.8 | G182: Si | K182: 0 | L182: =+HLOOKUP(Ingreso_de_datos!$J$1,'Actualización de parámetros'!$B$1:$AF$178,'Actualización de parámetros'!A53,FALSE) -> 24638.83369
C183: PAN pavimento en u$s | D183: U$D | E183: 49170.55242 | F183: 57564.2 | G183: Si | K183: 0 | L183: =+HLOOKUP(Ingreso_de_datos!$J$1,'Actualización de parámetros'!$B$1:$AF$178,'Actualización de parámetros'!A54,FALSE) -> 49170.55242
C184: Mejoramiento - Relevamiento, Proyecto Ejecutivo y Replanteo + Conducción | D184: U$D/gl | E184: 2179109.566 | F184: 1231175 | G184: Si | H184: Precio unitario cada 1000km de vía | K184: 0 | L184: =+HLOOKUP(Ingreso_de_datos!$J$1,'Actualización de parámetros'!$B$1:$AF$178,'Actualización de parámetros'!A76,FALSE) -> 2179109.566
C185: Limpieza de zona de vía - desmalezado | D185: U$D/mlv | E185: 49.88797546 | F185: 28.19 | G185: Si | H185: Precio unitario | K185: 0 | L185: =+HLOOKUP(Ingreso_de_datos!$J$1,'Actualización de parámetros'!$B$1:$AF$178,'Actualización de parámetros'!A77,FALSE) -> 49.88797546
C186: Cambio de Fijaciones | D186: U$D | E186: 27574296.66 | F186: 14589696.57 | G186: Si | H186: Precio total para mejoramiento liviano con 1722 durmientes/km de riel | K186: 0 | L186: =+HLOOKUP(Ingreso_de_datos!$J$1,'Actualización de parámetros'!$B$1:$AF$178,'Actualización de parámetros'!A78,FALSE) -> 27574296.66
C187: Cambio de Durmientes con Fijaciones Gauge Lock | D187: U$D/u | E187: 2978.527858 | F187: 1583.74 | G187: Si | H187: Precio unitario | K187: 0 | L187: =+HLOOKUP(Ingreso_de_datos!$J$1,'Actualización de parámetros'!$B$1:$AF$178,'Actualización de parámetros'!A79,FALSE) -> 2978.527858
C188: Tratamiento de juntas | D188: U$D | E188: 121318556.7 | F188: 55514367 | G188: Si | H188: Precio total para mejoramiento liviano con 1722 durmientes/km de riel | K188: 0 | L188: =+HLOOKUP(Ingreso_de_datos!$J$1,'Actualización de parámetros'!$B$1:$AF$178,'Actualización de parámetros'!A80,FALSE) -> 121318556.7
C189: Tratamiento mecanizado pesado con aporte de balasto 1000 tn/km | D189: U$D | E189: 44869361.81 | F189: 21776000 | G189: Si | H189: Precio total para mejoramiento liviano con 1722 durmientes/km de riel | K189: 0 | L189: =+HLOOKUP(Ingreso_de_datos!$J$1,'Actualización de parámetros'!$B$1:$AF$178,'Actualización de parámetros'!A81,FALSE) -> 44869361.81
C190: Despunte de rieles | D190: U$D/u | E190: 424.6097083 | F190: 237.1 | G190: Si | H190: Precio unitario | K190: 0 | L190: =+HLOOKUP(Ingreso_de_datos!$J$1,'Actualización de parámetros'!$B$1:$AF$178,'Actualización de parámetros'!A82,FALSE) -> 424.6097083
C191: Soldadura Aluminotérmica* | D191: U$D/u | E191: 2551.375644 | F191: 1468.54 | G191: Si | H191: Precio unitario para mejoramiento pesado | K191: 0 | L191: =+HLOOKUP(Ingreso_de_datos!$J$1,'Actualización de parámetros'!$B$1:$AF$178,'Actualización de parámetros'!A83,FALSE) -> 2551.375644
C192: Cambio de rieles | D192: U$D | E192: 5155964.867 | F192: 2893447.864 | G192: Si | H192: Precio total para mejoramiento liviano con 1722 durmientes/km de riel | K192: 0 | L192: =+HLOOKUP(Ingreso_de_datos!$J$1,'Actualización de parámetros'!$B$1:$AF$178,'Actualización de parámetros'!A84,FALSE) -> 5155964.867
C193: Obrador | D193: U$D/gl | E193: 3949034.49 | F193: 1888929.718 | G193: Si | H193: Precio unitario | K193: 0 | L193: =+HLOOKUP(Ingreso_de_datos!$J$1,'Actualización de parámetros'!$B$1:$AF$178,'Actualización de parámetros'!A85,FALSE) -> 3949034.49
C194: Durmientes por kilómetro existente | D194: un/km | E194: =+F194 -> 1772 | F194: 1772 | H194: Especificar parámetros para definir un mejoramiento distinto de los propuestos. | K194: 1
C195: Fijaciones a cambiar | D195: % | E195: =+F195 -> 0.8 | F195: 0.8 | K195: =+IF(G195="Si",0,1) -> 1
C196: Cambio de durmientes con PGL | D196: % | E196: 0.5 | F196: 0.5 | K196: 1
C197: Longitud barras existente | D197: m | E197: 12 | F197: 12 | K197: 1
C198: Longitud barras futura | D198: m | E198: 12 | F198: 12 | K198: 1
C199: Juntas futuras a tratar | D199: % | E199: 0.6 | F199: 0.6 | K199: 1
C200: Reemplazo de eclisas de las juntas a tratar | D200: % | E200: 0.6 | F200: 0.6 | K200: 1
C201: Aporte de balasto del mecanizado | D201: tn/km | E201: 800 | F201: 800 | K201: 1
C202: Reemplazo de barras de rieles | D202: % | E202: =+F202 -> 0.6 | F202: 0.6
... 38 more rows

Sheet Actualización de parámetros (hidden)
A1: 1 | B1: Ítem | C1: Fuente | D1: Aportes patronales | E1: 2016-12-01 | F1: 2017-01-01 | G1: 2017-02-01 | H1: 2017-03-01 | I1: 2017-04-01 | J1: 2017-05-01 | K1: 2017-06-01 | L1: 2017-07-01 | M1: 2017-08-01 | N1: 2017-09-01 | O1: 2017-10-01 | P1: 2017-11-01 | Q1: 2017-12-01 | R1: 2018-01-01 | S1: 2018-02-01 | T1: 2018-03-01 | U1: 2018-04-01 | V1: 2018-05-01 | W1: 2018-06-01 | X1: 2018-07-01 | Y1: 2018-08-01 | Z1: 2018-09-01 | AA1: 2018-10-01 | AB1: 2018-11-01 | AC1: 2018-12-01 | AD1: 2019-01-01 | AE1: 2019-02-01 | AF1: 2019-03-01 | AG1: 2019-04-01
A2: =1+A1 -> 2 | B2: Índice de salarios de la cons | C2: https://www.estadisticaciudad.gob.ar/eyc/?p=27207 | E2: 100 | F2: 103.0305342 | G2: 103.0305342 | H2: 103.0305342 | I2: 114.003803 | J2: 114.003803 | K2: 114.003803 | L2: 125.8758418 | M2: 125.8758418 | N2: 125.8758418 | O2: 125.8758418 | P2: 125.8758418 | Q2: 125.8758418 | R2: 127.9111126 | S2: 129.8135859 | T2: 131.2619673 | U2: 144.3881641 | V2: 144.3881641 | W2: 144.3881641 | X2: 144.8538387 | Y2: 152.0757082 | Z2: 158.1421945 | AA2: 158.1421945 | AB2: 167.6024382 | AC2: 176.577258 | AD2: 177.1640311 | AE2: 177.1640311 | AF2: 181.8665782
A3: =1+A2 -> 3 | B3: Tipo de cambio | C3: BCRA - Comunicación "A" 3500 | E3: 15.8296 | F3: 15.9065 | G3: 15.5983 | H3: 15.5237 | I3: 15.6 | J3: 15.6981 | K3: 16.1166 | L3: 17.169 | M3: 17.4165 | N3: 17.2465 | O3: 17.4528 | P3: 17.4925 | Q3: 17.70005263 | R3: 19.029 | S3: 19.8409 | T3: 20.2378 | U3: 20.2349 | V3: 23.6687 | W3: 26.5342 | X3: 27.6247 | Y3: 30.1245 | Z3: 38.59 | AA3: 37.1202 | AB3: 36.45903684 | AC3: 37.8852 | AD3: 37.4069 | AE3: 38.4086 | AF3: 41.3624
A4: 4 | B4: Precio del gasoil ($/lt) | C4: http://res1104.se.gob.ar/consultaprecios.mayo.php | E4: 14.0163 | F4: 14.74 | G4: 15.0673 | H4: 15.0453 | I4: 14.8035 | J4: 14.7241 | K4: 14.8314 | L4: 15.4164 | M4: 15.6261 | N4: 15.7008 | O4: 16.196 | P4: 16.9612 | Q4: 17.1481 | R4: 17.882 | S4: 18.7582 | T4: 18.2891 | U4: 18.394 | V4: 18.7107 | W4: 20.8929 | X4: 22.0909 | Y4: 24.8174 | Z4: 29.0102 | AA4: 31.1531 | AB4: 33.1833 | AC4: 33.8586 | AD4: 33.3669 | AE4: 35.064 | AF4: 34.769
A5: 5 | B5: Precio del lubricante ($/lt) | C5: proporción del precio del gas oil | E5: =+E4*2.6557 -> 37.22308791 | F5: =+F4*2.6557 -> 39.145018 | G5: 40.01422861 | H5: 39.95580321 | I5: 39.31365495 | J5: 39.10279237 | K5: 39.38774898 | L5: 40.94133348 | M5: 41.49823377 | N5: 41.69661456 | O5: 43.0117172 | P5: 45.04385884 | Q5: 45.54020917 | R5: 47.4892274 | S5: 49.81615174 | T5: 48.57036287 | U5: 48.8489458 | V5: 49.69000599 | W5: 55.48527453 | X5: 58.66680313 | Y5: 65.90756918 | Z5: 77.04238814 | AA5: 82.73328767 | AB5: 88.12488981 | AC5: 89.91828402 | AD5: 88.61247633 | AE5: 93.1194648 | AF5: 92.3360333
A6: 6 | B6: Índice del costo de la construcción (ICC-INDEC) | C6: https://www.indec.gob.ar/nivel4_default.asp?id_tema_1=3&id_tema_2=5&id_tema_3=33 | E6: 1 | F6: 2.666149327 | G6: 1.689882302 | H6: 1.077780727 | I6: 5.531043177 | J6: 1.149768553 | K6: 1.05304596 | L6: 5.931047916 | M6: 1.264135331 | N6: 0.7944073721 | O6: 0.7566204288 | P6: 0.4425174325 | Q6: 1.446308575 | R6: 1.114230567 | S6: 2.394793926 | T6: 1.593085332 | U6: 5.709400284 | V6: 2.820846649 | W6: 2.478704627 | X6: 1.726074584 | Y6: 3.728514115 | Z6: 7.490596835 | AA6: 2.231538639 | AB6: 3.539022894 | AC6: 3.318259785 | AD6: 1.089679737 | AE6: 1.406389967 | AF6: 2.6
A7: 7 | B7: Índice de Precios Internos al por mayor (IPIM - INDEC Base Dic-16) | C7: https://www.indec.gob.ar/nivel4_default.asp?id_tema_1=3&id_tema_2=5&id_tema_3=32 | E7: 100 | F7: 101.4992425 | G7: 103.194197 | H7: 104.1458509 | I7: 104.6275218 | J7: 105.5246356 | K7: 107.4986603 | L7: 110.2448941 | M7: 112.3603845 | N7: 113.4837936 | O7: 115.1503184 | P7: 116.9286021 | Q7: 118.8485187 | R7: 124.2786898 | S7: 130.3031187 | T7: 132.8252247 | U7: 135.2069445 | V7: 145.3593073 | W7: 154.8546133 | X7: 162.1813423 | Y7: 170.1188471 | Z7: 197.4101315 | AA7: 203.3804427 | AB7: 203.5984408 | AC7: 206.2004256 | AD7: 207.3745939 | AE7: 214.3504354 | AF7: =300.2/134.5*100 -> 223.197026
A8: =1+A7 -> 8 | B8: aportes patronales | C8: https://www.argentina.gob.ar/trabajo/buscastrabajo/salario
A9: 9 | B9: Conductor (salario bruto anual) | C9: http://sindicatolafraternidad.org/Circulares.html | E9: 699553.9969 | F9: 714327.6496 | G9: 714327.6496 | H9: 678399.5059 | I9: 694955.1945 | J9: 694955.1945 | K9: 694955.1945 | L9: 772001.6942 | M9: 772001.6942 | N9: 772001.6942 | O9: 772001.6942 | P9: 772001.6942 | Q9: 831784.2569 | R9: 831784.2569 | S9: 831784.2569 | T9: 831784.2569 | U9: 831784.2569 | V9: 831784.2569 | W9: 972591.5032 | X9: 972591.5032 | Y9: 972591.5032 | Z9: 972591.5032 | AA9: 972591.5032 | AB9: 972591.5032 | AC9: 972591.5032 | AD9: =+$AC9*1.15 -> 1118480.229 | AE9: =+$AC9*1.15 -> 1118480.229 | AF9: 1118480.229
A10: 10 | B10: Ayudante Autorizado (salario bruto anual) | E10: 621634.8993 | F10: 639009.7496 | G10: 639009.7496 | H10: 603081.6059 | I10: 617596.5759 | J10: 617596.5759 | K10: 617596.5759 | L10: 684993.3146 | M10: 684993.3146 | N10: 684993.3146 | O10: 684993.3146 | P10: 684993.3146 | Q10: 737377.8532 | R10: 737377.8532 | S10: 737377.8532 | T10: 737377.8532 | U10: 737377.8532 | V10: 737377.8532 | W10: 860777.9839 | X10: 860777.9839 | Y10: 860777.9839 | Z10: 860777.9839 | AA10: 860777.9839 | AB10: 860777.9839 | AC10: 860777.9839 | AD10: =+$AC10*1.15 -> 989894.6815 | AE10: 989894.6815 | AF10: 989894.6815 | AG10: =+AG9*0.89 -> 0
A11: 11 | B11: Ayudante Conductor (salario bruto anual) | E11: 560264.4856 | F11: 579694.4257 | G11: 579694.4257 | H11: 543766.282 | I11: 556671.6712 | J11: 556671.6712 | K11: 556671.6712 | L11: 616670.3858 | M11: 616670.3858 | N11: 616670.3858 | O11: 616670.3858 | P11: 616670.3858 | Q11: 663261.6187 | R11: 663261.6187 | S11: 663261.6187 | T11: 663261.6187 | U11: 663261.6187 | V11: 663261.6187 | W11: 772980.8444 | X11: 772980.8444 | Y11: 772980.8444 | Z11: 772980.8444 | AA11: 772980.8444 | AB11: 772980.8444 | AC11: 772980.8444 | AD11: 888927.9711 | AE11: 888927.9711 | AF11: 888927.9711 | AG11: =+AG9*0.8 -> 0
A12: 12 | B12: Auxiliar de tráfico (salario bruto anual) | C12: https://convenios.trabajo.gob.ar/ConsultaWeb/consultaBasica.asp | E12: 376238.1854 | F12: 368808.2452 | G12: 368808.2452 | H12: 368808.2452 | I12: 376971.1195 | J12: 376971.1195 | K12: 376971.1195 | L12: 414090.4374 | M12: 414090.4374 | N12: 414090.4374 | O12: 414090.4374 | P12: 414090.4374 | Q12: 443449.6165 | R12: 443449.6165 | S12: 443449.6165 | T12: 443449.6165 | U12: 443449.6165 | V12: 443449.6165 | W12: 512614.6326 | X12: 512614.6326 | Y12: 512614.6326 | Z12: 512614.6326 | AA12: 512614.6326 | AB12: 512614.6326 | AC12: 512614.6326 | AD12: 589506.8275 | AE12: 589506.8275 | AF12: 589506.8275 | AG12: =+AG17*1.06 -> 0
A13: 13 | B13: Ayudante de trafico (salario bruto anual) | E13: 386301.8876 | F13: 378555.7798 | G13: 378555.7798 | H13: 378555.7798 | I13: 386977.3367 | J13: 386977.3367 | K13: 386977.3367 | L13: 425381.6703 | M13: 425381.6703 | N13: 425381.6703 | O13: 425381.6703 | P13: 425381.6703 | Q13: 455697.7519 | R13: 455697.7519 | S13: 455697.7519 | T13: 455697.7519 | U13: 455697.7519 | V13: 455697.7519 | W13: 527131.8851 | X13: 527131.8851 | Y13: 527131.8851 | Z13: 527131.8851 | AA13: 527131.8851 | AB13: 527131.8851 | AC13: 527131.8851 | AD13: 606201.6678 | AE13: 606201.6678 | AF13: 606201.6678 | AG13: =+AG17*1.09 -> 0
A14: 14 | B14: Operador de trafico (salario bruto anual) | E14: 418211.422 | F14: 410206.6316 | G14: 410206.6316 | H14: 410206.6316 | I14: 419476.0926 | J14: 419476.0926 | K14: 419476.0926 | L14: 461216.8266 | M14: 461216.8266 | N14: 461216.8266 | O14: 461216.8266 | P14: 461216.8266 | Q14: 494604.1197 | R14: 494604.1197 | S14: 494604.1197 | T14: 494604.1197 | U14: 494604.1197 | V14: 494604.1197 | W14: 573194.3387 | X14: 573194.3387 | Y14: 573194.3387 | Z14: 573194.3387 | AA14: 573194.3387 | AB14: 573194.3387 | AC14: 573194.3387 | AD14: 659173.4895 | AE14: 659173.4895 | AF14: 659173.4895 | AG14: =+AG17*1.18 -> 0
A15: 15 | B15: Coordinador de tráfico (salario bruto anual) | E15: 437394.1673 | F15: 428742.6703 | G15: 428742.6703 | H15: 428742.6703 | I15: 438515.1254 | J15: 438515.1254 | K15: 438515.1254 | L15: 482754.4615 | M15: 482754.4615 | N15: 482754.4615 | O15: 482754.4615 | P15: 482754.4615 | Q15: 517950.4966 | R15: 517950.4966 | S15: 517950.4966 | T15: 517950.4966 | U15: 517950.4966 | V15: 517950.4966 | W15: 600869.9692 | X15: 600869.9692 | Y15: 600869.9692 | Z15: 600869.9692 | AA15: 600869.9692 | AB15: 600869.9692 | AC15: 600869.9692 | AD15: 691000.4646 | AE15: 691000.4646 | AF15: 691000.4646 | AG15: =+AG17*1.24 -> 0
A16: 16 | B16: Coordinador de trafico A (salario bruto anual) | E16: 482165.667 | F16: 472939.3197 | G16: 472939.3197 | H16: 472939.3197 | I16: 483918.9604 | J16: 483918.9604 | K16: 483918.9604 | L16: 533033.4144 | M16: 533033.4144 | N16: 533033.4144 | O16: 533033.4144 | P16: 533033.4144 | Q16: 572522.4022 | R16: 572522.4022 | S16: 572522.4022 | T16: 572522.4022 | U16: 572522.4022 | V16: 572522.4022 | W16: 665502.9885 | X16: 665502.9885 | Y16: 665502.9885 | Z16: 665502.9885 | AA16: 665502.9885 | AB16: 665502.9885 | AC16: 665502.9885 | AD16: 765328.4368 | AE16: 765328.4368 | AF16: 765328.4368 | AG16: =+AG17*1.37 -> 0
A17: 17 | B17: Peón general (salario bruto anual) | E17: 354969.4777 | F17: 348128.7592 | G17: 348128.7592 | H17: 348128.7592 | I17: 355731.1544 | J17: 355731.1544 | K17: 355731.1544 | L17: 390202.0396 | M17: 390202.0396 | N17: 390202.0396 | O17: 390202.0396 | P17: 390202.0396 | Q17: 417518.3654 | R17: 417518.3654 | S17: 417518.3654 | T17: 417518.3654 | U17: 417518.3654 | V17: 417518.3654 | W17: 481916.5356 | X17: 481916.5356 | Y17: 481916.5356 | Z17: 481916.5356 | AA17: 481916.5356 | AB17: 481916.5356 | AC17: 481916.5356 | AD17: 554204.016 | AE17: 554204.016 | AF17: 554204.016
A18: 18 | B18: Ayudante taller/medio oficial de taller/ayudante mecánica (fpsa) (salario bruto anual) | E18: 414403.4713 | F18: 407419.0401 | G18: 407419.0401 | H18: 407419.0401 | I18: 416631.0162 | J18: 416631.0162 | K18: 416631.0162 | L18: 456939.6052 | M18: 456939.6052 | N18: 456939.6052 | O18: 456939.6052 | P18: 456939.6052 | Q18: 489964.1126 | R18: 489964.1126 | S18: 489964.1126 | T18: 489964.1126 | U18: 489964.1126 | V18: 489964.1126 | W18: 567687.9121 | X18: 567687.9121 | Y18: 567687.9121 | Z18: 567687.9121 | AA18: 567687.9121 | AB18: 567687.9121 | AC18: 567687.9121 | AD18: 652841.0989 | AE18: 652841.0989 | AF18: 652841.0989 | AG18: =+AG17*1.17 -> 0
A19: 19 | B19: Oficial C de taller (salario bruto anual) | E19: 439819.2048 | F19: 431440.7617 | G19: 431440.7617 | H19: 431440.7617 | I19: 441299.4443 | J19: 441299.4443 | K19: 441299.4443 | L19: 485490.6858 | M19: 485490.6858 | N19: 485490.6858 | O19: 485490.6858 | P19: 485490.6858 | Q19: 520925.4047 | R19: 520925.4047 | S19: 520925.4047 | T19: 520925.4047 | U19: 520925.4047 | V19: 520925.4047 | W19: 604364.9569 | X19: 604364.9569 | Y19: 604364.9569 | Z19: 604364.9569 | AA19: 604364.9569 | AB19: 604364.9569 | AC19: 604364.9569 | AD19: 695019.7005 | AE19: 695019.7005 | AF19: 695019.7005 | AG19: =+AG17*1.25 -> 0
A20: 20 | B20: Oficial B mecánico/electricista (salario bruto anual) | E20: 477027.0243 | F20: 469597.0842 | G20: 469597.0842 | H20: 469597.0842 | I20: 480490.4974 | J20: 480490.4974 | K20: 480490.4974 | L20: 527274.8165 | M20: 527274.8165 | N20: 527274.8165 | O20: 527274.8165 | P20: 527274.8165 | Q20: 566273.8806 | R20: 566273.8806 | S20: 566273.8806 | T20: 566273.8806 | U20: 566273.8806 | V20: 566273.8806 | W20: 658080.8062 | X20: 658080.8062 | Y20: 658080.8062 | Z20: 658080.8062 | AA20: 658080.8062 | AB20: 658080.8062 | AC20: 658080.8062 | AD20: 756792.9271 | AE20: 756792.9271 | AF20: 756792.9271 | AG20: =+AG17*1.35 -> 0
A21: 21 | B21: Oficial A electromecánico (salario bruto anual) | E21: 527017.2655 | F21: 522217.2655 | G21: 522217.2655 | H21: 522217.2655 | I21: 534533.4331 | J21: 534533.4331 | K21: 534533.4331 | L21: 583404.2749 | M21: 583404.2749 | N21: 583404.2749 | O21: 583404.2749 | P21: 583404.2749 | Q21: 627184.0433 | R21: 627184.0433 | S21: 627184.0433 | T21: 627184.0433 | U21: 627184.0433 | V21: 627184.0433 | W21: 730211.0044 | X21: 730211.0044 | Y21: 730211.0044 | Z21: 730211.0044 | AA21: 730211.0044 | AB21: 730211.0044 | AC21: 730211.0044 | AD21: 839742.655 | AE21: 839742.655 | AF21: 839742.655 | AG21: =+AG17*1.5 -> 0
A22: 22 | B22: Auxiliar administrativo (salario bruto anual) | E22: 354969.4777 | F22: 348128.7592 | G22: 348128.7592 | H22: 348128.7592 | I22: 355731.1544 | J22: 355731.1544 | K22: 355731.1544 | L22: 390202.0396 | M22: 390202.0396 | N22: 390202.0396 | O22: 390202.0396 | P22: 390202.0396 | Q22: 417518.3654 | R22: 417518.3654 | S22: 417518.3654 | T22: 417518.3654 | U22: 417518.3654 | V22: 417518.3654 | W22: 481916.5356 | X22: 481916.5356 | Y22: 481916.5356 | Z22: 481916.5356 | AA22: 481916.5356 | AB22: 481916.5356 | AC22: 481916.5356 | AD22: 554204.016 | AE22: 554204.016 | AF22: 554204.016 | AG22: =+AG17 -> 0
A23: 23 | B23: Auxiliar administrativo de 1era (salario bruto anual) | E23: 384040.6248 | F23: 376222.6607 | G23: 376222.6607 | H23: 376222.6607 | I23: 384586.7326 | J23: 384586.7326 | K23: 384586.7326 | L23: 422844.9352 | M23: 422844.9352 | N23: 422844.9352 | O23: 422844.9352 | P23: 422844.9352 | Q23: 452956.6568 | R23: 452956.6568 | S23: 452956.6568 | T23: 452956.6568 | U23: 452956.6568 | V23: 452956.6568 | W23: 523878.0425 | X23: 523878.0425 | Y23: 523878.0425 | Z23: 523878.0425 | AA23: 523878.0425 | AB23: 523878.0425 | AC23: 523878.0425 | AD23: 602459.7488 | AE23: 602459.7488 | AF23: 602459.7488 | AG23: =+AG17*1.08 -> 0
A24: 24 | B24: Locomotora GT-22 CW Remanufacturada - 2500 HP - Motor EMD-12-645E3
A25: 25 | B25: Locomotora GT-23 CW Remanufacturada - 2200 HP - Motor EMD-16-645E
A26: 26 | B26: Locomotora GT-22 C3 Nueva - 2500 HP - Motor 12-645E3
A27: 27 | B27: Locomotora NVIROMOTIVE 3GS24CW - 2400 HP - Motor Cummins QSK19
A28: 28 | B28: Locomotora NVIROMOTIVE 2GS16CW - 1600 HP - Motor Cummins QSK19
A29: 29 | B29: Locomotora Remanufacturada 1500 HP - Motor EMD 12-645E
A30: 30 | B30: Locomotora GP-9 - 1750 HP - Motor EMD 16-567C
A31: 31 | B31: Locomotora GP40-2 - 3000 HP - Motor EMD 16-645E3 B
A32: 32 | B32: Precio Vagón Refrigerado en u$s
A33: 33 | B33: Precio Vagón Tolva grano en u$s
A34: 34 | B34: Precio Vagón Tolva minero en u$s
A35: 35 | B35: Precio Vagón Tanque en u$s
A36: 36 | B36: Precio Vagón PC - Plataforma en u$s
A37: 37 | B37: Precio Vagón Varios en u$s
A38: 38 | B38: Precio del metro cuadrado de taller ($/m²) | C38: Actualizado por ICC - INDEC | E38: 1606.06 | F38: =+E38*(1+F$6/100) -> 1648.879958 | G38: =+F38*(1+G$6/100) -> 1676.744088 | H38: 1694.815713 | I38: 1788.556702 | J38: 1809.120964 | K38: 1828.17184 | L38: 1936.601587 | M38: 1961.082852 | N38: 1976.661839 | O38: 1991.617666 | P38: 2000.430922 | Q38: 2029.363326 | R38: 2051.975112 | S38: 2101.115688 | T38: 2134.588253 | U38: 2256.460441 | V38: 2320.11173 | W38: 2377.620447 | X38: 2418.659949 | Y38: 2508.840027 | Z38: 2696.767118 | AA38: 2756.946518 | AB38: 2854.515487 | AC38: 2949.235726 | AD38: 2981.372951 | AE38: 3023.302681 | AF38: 3101.90855 | AG38: =+AF38*(1+AG$6/100) -> 3101.90855
A39: 39 | B39: Precio del metro cuadrado de administ. ($/m²) | E39: 2470.91 | F39: =+E39*(1+F$6/100) -> 2536.78815 | G39: 2579.656884 | H39: 2607.459929 | I39: 2751.679664 | J39: 2783.317611 | K39: 2812.627225 | L39: 2979.445493 | M39: 3017.109716 | N39: 3041.077858 | O39: 3064.087275 | P39: 3077.646395 | Q39: 3122.158659 | R39: 3156.946705 | S39: 3232.549073 | T39: 3284.046338 | U39: 3471.545689 | V39: 3569.472669 | W39: 3657.949353 | X39: 3721.088287 | Y39: 3859.829589 | Z39: 4148.953862 | AA39: 4241.539371 | AB39: 4391.64842 | AC39: 4537.374724 | AD39: 4586.817577 | AE39: 4651.326119 | AF39: 4772.260598 | AG39: 4772.260598
A40: 40 | B40: Precio del metro cuadrado de terreno ($/m²) | E40: 1000 | F40: 1026.661493 | G40: 1044.010864 | H40: 1055.263012 | I40: 1113.630065 | J40: 1126.434233 | K40: 1138.296103 | L40: 1205.808991 | M40: 1221.052048 | N40: 1230.752176 | O40: 1240.064298 | P40: 1245.551799 | Q40: 1263.566321 | R40: 1277.645363 | S40: 1308.242337 | T40: 1329.083754 | U40: 1404.966465 | V40: 1444.598415 | W40: 1480.405742 | X40: 1505.95865 | Y40: 1562.108531 | Z40: 1679.119783 | AA40: 1716.589989 | AB40: 1777.340502 | AC40: 1836.317277 | AD40: 1856.327255 | AE40: 1882.434455 | AF40: 1931.377751 | AG40: 1931.377751
A41: 41 | B41: Precio durmiente hormigón trocha angosta en u$s | C41: Alejandro Felizia | E41: 56 | F41: 56 | G41: 56 | H41: 56 | I41: 56 | J41: 56 | K41: 56 | L41: 56 | M41: 56 | N41: 56 | O41: 56 | P41: 56 | Q41: 56 | R41: 56 | S41: 56 | T41: 56 | U41: 56 | V41: 56 | W41: 56 | X41: 56 | Y41: 56 | Z41: 56 | AA41: 56 | AB41: 56 | AC41: 56 | AD41: 56 | AE41: 56 | AF41: 56 | AG41: 75 | AH41: IVA lo agrega el modelo
A42: 42 | B42: Precio durmiente hormigón trocha ancha en u$s | C42: Alejandro Felizia | E42: 85 | F42: 85 | G42: 85 | H42: 85 | I42: 85 | J42: 85 | K42: 85 | L42: 85 | M42: 85 | N42: 85 | O42: 85 | P42: 85 | Q42: 85 | R42: 85 | S42: 85 | T42: 85 | U42: 85 | V42: 85 | W42: 85 | X42: 85 | Y42: 85 | Z42: 85 | AA42: 85 | AB42: 85 | AC42: 85 | AD42: 85 | AE42: 85 | AF42: 85 | AG42: 85 | AH42: IVA lo agrega el modelo
A43: 43 | B43: Precio fijaciones en u$s | C43: Alejandro Felizia | E43: 15.21 | F43: 15.21 | G43: 15.21 | H43: 15.21 | I43: 15.21 | J43: 15.21 | K43: 15.21 | L43: 15.21 | M43: 15.21 | N43: 15.21 | O43: 15.21 | P43: 15.21 | Q43: 15.21 | R43: 15.21 | S43: 15.21 | T43: 15.21 | U43: 15.21 | V43: 15.21 | W43: 15.21 | X43: 15.21 | Y43: 15.21 | Z43: 15.21 | AA43: 15.21 | AB43: 15.21 | AC43: 15.21 | AD43: 15.21 | AE43: 15.21 | AF43: 15.21 | AG43: 17.5 | AH43: IVA lo agrega el modelo
A44: 44 | B44: Kilómetro de riel 54E1 en u$s | C44: Alejandro Felizia | E44: 50850.87788 | F44: 50850.87788 | G44: 50850.87788 | H44: 50850.87788 | I44: 50850.87788 | J44: 50850.87788 | K44: 50850.87788 | L44: 50850.87788 | M44: 50850.87788 | N44: =782*1.18*54.7 -> 50474.972 | O44: =782*1.18*54.7 -> 50474.972 | P44: 50474.972 | Q44: 50474.972 | R44: 50474.972 | S44: 50474.972 | T44: 50474.972 | U44: 50474.972 | V44: 50474.972 | W44: 50474.972 | X44: 50474.972 | Y44: 50474.972 | Z44: 50474.972 | AA44: 50474.972 | AB44: 50474.972 | AC44: 50474.972 | AD44: 50474.972 | AE44: 50474.972 | AF44: 50474.972 | AG44: =950*1.18*54.7 -> 61318.7 | AH44: CIF*costo nacionalización*peso específico acero (el IVA lo calcula el modelo)
A45: 45 | B45: ODA en u$s por ml si ml <5 | C45: Actualizado por IPIM - INDEC (se pasa de U$D a pesos, se actualiza por IPIM y se vuelve a pasar a U$D) | E45: 16805.12 | F45: =+$E45*'Actualización de parámetros'!$E$3*F$7/F$3/100 -> 16974.60707 | G45: =+$E45*'Actualización de parámetros'!$E$3*G$7/G$3/100 -> 17599.06381 | H45: =+$E45*'Actualización de parámetros'!$E$3*H$7/H$3/100 -> 17846.71507 | I45: =+$E45*'Actualización de parámetros'!$E$3*I$7/I$3/100 -> 17841.56306 | J45: =+$E45*'Actualización de parámetros'!$E$3*J$7/J$3/100 -> 17882.09215 | K45: =+$E45*'Actualización de parámetros'!$E$3*K$7/K$3/100 -> 17743.57732 | L45: =+$E45*'Actualización de parámetros'!$E$3*L$7/L$3/100 -> 17081.46214 | M45: =+$E45*'Actualización de parámetros'!$E$3*M$7/M$3/100 -> 17161.84169 | N45: =+$E45*'Actualización de parámetros'!$E$3*N$7/N$3/100 -> 17504.28723 | O45: =+$E45*'Actualización de parámetros'!$E$3*O$7/O$3/100 -> 17551.39297 | P45: =+$E45*'Actualización de parámetros'!$E$3*P$7/P$3/100 -> 17781.99295 | Q45: =+$E45*'Actualización de parámetros'!$E$3*Q$7/Q$3/100 -> 17862.02834 | R45: =+$E45*'Actualización de parámetros'!$E$3*R$7/R$3/100 -> 17373.69763 | S45: =+$E45*'Actualización de parámetros'!$E$3*S$7/S$3/100 -> 17470.48657 | T45: =+$E45*'Actualización de parámetros'!$E$3*T$7/T$3/100 -> 17459.38004 | U45: =+$E45*'Actualización de parámetros'!$E$3*U$7/U$3/100 -> 17774.99531 | V45: =+$E45*'Actualización de parámetros'!$E$3*V$7/V$3/100 -> 16337.28926 | W45: =+$E45*'Actualización de parámetros'!$E$3*W$7/W$3/100 -> 15524.93207 | X45: =+$E45*'Actualización de parámetros'!$E$3*X$7/X$3/100 -> 15617.62099 | Y45: =+$E45*'Actualización de parámetros'!$E$3*Y$7/Y$3/100 -> 15022.56675 | Z45: =+$E45*'Actualización de parámetros'!$E$3*Z$7/Z$3/100 -> 13608.37342 | AA45: =+$E45*'Actualización de parámetros'!$E$3*AA$7/AA$3/100 -> 14575.06296 | AB45: =+$E45*'Actualización de parámetros'!$E$3*AB$7/AB$3/100 -> 14855.27908 | AC45: =+$E45*'Actualización de parámetros'!$E$3*AC$7/AC$3/100 -> 14478.76542 | AD45: =+$E45*'Actualización de parámetros'!$E$3*AD$7/AD$3/100 -> 14747.39758 | AE45: =+$E45*'Actualización de parámetros'!$E$3*AE$7/AE$3/100 -> 14845.93147 | AF45: =+$E45*'Actualización de parámetros'!$E$3*AF$7/AF$3/100 -> 14354.70369 | AG45: =+$E45*'Actualización de parámetros'!$E$3*AG$7/AG$3/100 -> 
A46: 46 | B46: ODA en u$s por ml si ml 5<L<15 | E46: 48298.14762 | F46: =+$E46*'Actualización de parámetros'!$E$3*F$7/F$3/100 -> 48785.25582 | G46: =+$E46*'Actualización de parámetros'!$E$3*G$7/G$3/100 -> 50579.95313 | H46: =+$E46*'Actualización de parámetros'!$E$3*H$7/H$3/100 -> 51291.70627 | I46: =+$E46*'Actualización de parámetros'!$E$3*I$7/I$3/100 -> 51276.89934 | J46: =+$E46*'Actualización de parámetros'!$E$3*J$7/J$3/100 -> 51393.38049 | K46: =+$E46*'Actualización de parámetros'!$E$3*K$7/K$3/100 -> 50995.28696 | L46: =+$E46*'Actualización de parámetros'!$E$3*L$7/L$3/100 -> 49092.35875 | M46: =+$E46*'Actualización de parámetros'!$E$3*M$7/M$3/100 -> 49323.3707 | N46: =+$E46*'Actualización de parámetros'!$E$3*N$7/N$3/100 -> 50307.56393 | O46: =+$E46*'Actualización de parámetros'!$E$3*O$7/O$3/100 -> 50442.94647 | P46: =+$E46*'Actualización de parámetros'!$E$3*P$7/P$3/100 -> 51105.694 | Q46: =+$E46*'Actualización de parámetros'!$E$3*Q$7/Q$3/100 -> 51335.71681 | R46: =+$E46*'Actualización de parámetros'!$E$3*R$7/R$3/100 -> 49932.24759 | S46: =+$E46*'Actualización de parámetros'!$E$3*S$7/S$3/100 -> 50210.42036 | T46: =+$E46*'Actualización de parámetros'!$E$3*T$7/T$3/100 -> 50178.50005 | U46: =+$E46*'Actualización de parámetros'!$E$3*U$7/U$3/100 -> 51085.58269 | V46: =+$E46*'Actualización de parámetros'!$E$3*V$7/V$3/100 -> 46953.59559 | W46: =+$E46*'Actualización de parámetros'!$E$3*W$7/W$3/100 -> 44618.86978 | X46: =+$E46*'Actualización de parámetros'!$E$3*X$7/X$3/100 -> 44885.25901 | Y46: =+$E46*'Actualización de parámetros'!$E$3*Y$7/Y$3/100 -> 43175.06488 | Z46: =+$E46*'Actualización de parámetros'!$E$3*Z$7/Z$3/100 -> 39110.65367 | AA46: =+$E46*'Actualización de parámetros'!$E$3*AA$7/AA$3/100 -> 41888.9328 | AB46: =+$E46*'Actualización de parámetros'!$E$3*AB$7/AB$3/100 -> 42694.2778 | AC46: =+$E46*'Actualización de parámetros'!$E$3*AC$7/AC$3/100 -> 41612.17232 | AD46: =+$E46*'Actualización de parámetros'!$E$3*AD$7/AD$3/100 -> 42384.22489 | AE46: =+$E46*'Actualización de parámetros'!$E$3*AE$7/AE$3/100 -> 42667.41265 | AF46: =+$E46*'Actualización de parámetros'!$E$3*AF$7/AF$3/100 -> 41255.6172 | AG46: =+$E46*'Actualización de parámetros'!$E$3*AG$7/AG$3/100 -> 
A47: 47 | B47: ODA en u$s por ml si ml 15<L<100 | E47: 34570.45111 | F47: =+$E47*'Actualización de parámetros'!$E$3*F$7/F$3/100 -> 34919.10941 | G47: =+$E47*'Actualización de parámetros'!$E$3*G$7/G$3/100 -> 36203.7031 | H47: =+$E47*'Actualización de parámetros'!$E$3*H$7/H$3/100 -> 36713.15592 | I47: =+$E47*'Actualización de parámetros'!$E$3*I$7/I$3/100 -> 36702.55753 | J47: =+$E47*'Actualización de parámetros'!$E$3*J$7/J$3/100 -> 36785.93146 | K47: =+$E47*'Actualización de parámetros'!$E$3*K$7/K$3/100 -> 36500.98734 | L47: =+$E47*'Actualización de parámetros'!$E$3*L$7/L$3/100 -> 35138.92503 | M47: =+$E47*'Actualización de parámetros'!$E$3*M$7/M$3/100 -> 35304.27686 | N47: =+$E47*'Actualización de parámetros'!$E$3*N$7/N$3/100 -> 36008.7346 | O47: =+$E47*'Actualización de parámetros'!$E$3*O$7/O$3/100 -> 36105.6376 | P47: =+$E47*'Actualización de parámetros'!$E$3*P$7/P$3/100 -> 36580.01358 | Q47: =+$E47*'Actualización de parámetros'!$E$3*Q$7/Q$3/100 -> 36744.65742 | R47: =+$E47*'Actualización de parámetros'!$E$3*R$7/R$3/100 -> 35740.09376 | S47: =+$E47*'Actualización de parámetros'!$E$3*S$7/S$3/100 -> 35939.20198 | T47: =+$E47*'Actualización de parámetros'!$E$3*T$7/T$3/100 -> 35916.35431 | U47: =+$E47*'Actualización de parámetros'!$E$3*U$7/U$3/100 -> 36565.61847 | V47: =+$E47*'Actualización de parámetros'!$E$3*V$7/V$3/100 -> 33608.05871 | W47: =+$E47*'Actualización de parámetros'!$E$3*W$7/W$3/100 -> 31936.92786 | X47: =+$E47*'Actualización de parámetros'!$E$3*X$7/X$3/100 -> 32127.60176 | Y47: =+$E47*'Actualización de parámetros'!$E$3*Y$7/Y$3/100 -> 30903.49306 | Z47: =+$E47*'Actualización de parámetros'!$E$3*Z$7/Z$3/100 -> 27994.30221 | AA47: =+$E47*'Actualización de parámetros'!$E$3*AA$7/AA$3/100 -> 29982.91601 | AB47: =+$E47*'Actualización de parámetros'!$E$3*AB$7/AB$3/100 -> 30559.35923 | AC47: =+$E47*'Actualización de parámetros'!$E$3*AC$7/AC$3/100 -> 29784.81867 | AD47: =+$E47*'Actualización de parámetros'!$E$3*AD$7/AD$3/100 -> 30337.43211 | AE47: =+$E47*'Actualización de parámetros'!$E$3*AE$7/AE$3/100 -> 30540.12991 | AF47: =+$E47*'Actualización de parámetros'!$E$3*AF$7/AF$3/100 -> 29529.60657 | AG47: =+$E47*'Actualización de parámetros'!$E$3*AG$7/AG$3/100 -> 
A48: 48 | B48: ODA en u$s por ml si ml >100 | E48: 25316.59028 | F48: =+$E48*'Actualización de parámetros'!$E$3*F$7/F$3/100 -> 25571.9193 | G48: =+$E48*'Actualización de parámetros'!$E$3*G$7/G$3/100 -> 26512.65137 | H48: =+$E48*'Actualización de parámetros'!$E$3*H$7/H$3/100 -> 26885.73323 | I48: =+$E48*'Actualización de parámetros'!$E$3*I$7/I$3/100 -> 26877.97183 | J48: =+$E48*'Actualización de parámetros'!$E$3*J$7/J$3/100 -> 26939.02812 | K48: =+$E48*'Actualización de parámetros'!$E$3*K$7/K$3/100 -> 26730.3582 | L48: =+$E48*'Actualización de parámetros'!$E$3*L$7/L$3/100 -> 25732.8944 | M48: =+$E48*'Actualización de parámetros'!$E$3*M$7/M$3/100 -> 25853.98465 | N48: =+$E48*'Actualización de parámetros'!$E$3*N$7/N$3/100 -> 26369.87228 | O48: =+$E48*'Actualización de parámetros'!$E$3*O$7/O$3/100 -> 26440.83616 | P48: =+$E48*'Actualización de parámetros'!$E$3*P$7/P$3/100 -> 26788.2306 | Q48: =+$E48*'Actualización de parámetros'!$E$3*Q$7/Q$3/100 -> 26908.80237 | R48: =+$E48*'Actualización de parámetros'!$E$3*R$7/R$3/100 -> 26173.14154 | S48: =+$E48*'Actualización de parámetros'!$E$3*S$7/S$3/100 -> 26318.95223 | T48: =+$E48*'Actualización de parámetros'!$E$3*T$7/T$3/100 -> 26302.22046 | U48: =+$E48*'Actualización de parámetros'!$E$3*U$7/U$3/100 -> 26777.68879 | V48: =+$E48*'Actualización de parámetros'!$E$3*V$7/V$3/100 -> 24611.81226 | W48: =+$E48*'Actualización de parámetros'!$E$3*W$7/W$3/100 -> 23388.01177 | X48: =+$E48*'Actualización de parámetros'!$E$3*X$7/X$3/100 -> 23527.64584 | Y48: =+$E48*'Actualización de parámetros'!$E$3*Y$7/Y$3/100 -> 22631.20806 | Z48: =+$E48*'Actualización de parámetros'!$E$3*Z$7/Z$3/100 -> 20500.75299 | AA48: =+$E48*'Actualización de parámetros'!$E$3*AA$7/AA$3/100 -> 21957.05221 | AB48: =+$E48*'Actualización de parámetros'!$E$3*AB$7/AB$3/100 -> 22379.1924 | AC48: =+$E48*'Actualización de parámetros'!$E$3*AC$7/AC$3/100 -> 21811.98181 | AD48: =+$E48*'Actualización de parámetros'!$E$3*AD$7/AD$3/100 -> 22216.671 | AE48: =+$E48*'Actualización de parámetros'!$E$3*AE$7/AE$3/100 -> 22365.11041 | AF48: =+$E48*'Actualización de parámetros'!$E$3*AF$7/AF$3/100 -> 21625.0852 | AG48: =+$E48*'Actualización de parámetros'!$E$3*AG$7/AG$3/100 -> 
A49: 49 | B49: ADV 1:10 R300 Trocha ancha y media en u$s | E49: 98568.61458 | F49: =+$E49*'Actualización de parámetros'!$E$3*F$7/F$3/100 -> 99562.72268 | G49: =+$E49*'Actualización de parámetros'!$E$3*G$7/G$3/100 -> 103225.4062 | H49: =+$E49*'Actualización de parámetros'!$E$3*H$7/H$3/100 -> 104677.9778 | I49: =+$E49*'Actualización de parámetros'!$E$3*I$7/I$3/100 -> 104647.7593 | J49: =+$E49*'Actualización de parámetros'!$E$3*J$7/J$3/100 -> 104885.4783 | K49: =+$E49*'Actualización de parámetros'!$E$3*K$7/K$3/100 -> 104073.0345 | L49: =+$E49*'Actualización de parámetros'!$E$3*L$7/L$3/100 -> 100189.4695 | M49: =+$E49*'Actualización de parámetros'!$E$3*M$7/M$3/100 -> 100660.9271 | N49: =+$E49*'Actualización de parámetros'!$E$3*N$7/N$3/100 -> 102669.5044 | O49: =+$E49*'Actualización de parámetros'!$E$3*O$7/O$3/100 -> 102945.798 | P49: =+$E49*'Actualización de parámetros'!$E$3*P$7/P$3/100 -> 104298.3572 | Q49: =+$E49*'Actualización de parámetros'!$E$3*Q$7/Q$3/100 -> 104767.7962 | R49: =+$E49*'Actualización de parámetros'!$E$3*R$7/R$3/100 -> 101903.5452 | S49: =+$E49*'Actualización de parámetros'!$E$3*S$7/S$3/100 -> 102471.2503 | T49: =+$E49*'Actualización de parámetros'!$E$3*T$7/T$3/100 -> 102406.1061 | U49: =+$E49*'Actualización de parámetros'!$E$3*U$7/U$3/100 -> 104257.3133 | V49: =+$E49*'Actualización de parámetros'!$E$3*V$7/V$3/100 -> 95824.60395 | W49: =+$E49*'Actualización de parámetros'!$E$3*W$7/W$3/100 -> 91059.81068 | X49: =+$E49*'Actualización de parámetros'!$E$3*X$7/X$3/100 -> 91603.4675 | Y49: =+$E49*'Actualización de parámetros'!$E$3*Y$7/Y$3/100 -> 88113.24118 | Z49: =+$E49*'Actualización de parámetros'!$E$3*Z$7/Z$3/100 -> 79818.4431 | AA49: =+$E49*'Actualización de parámetros'!$E$3*AA$7/AA$3/100 -> 85488.4561 | AB49: =+$E49*'Actualización de parámetros'!$E$3*AB$7/AB$3/100 -> 87132.03344 | AC49: =+$E49*'Actualización de parámetros'!$E$3*AC$7/AC$3/100 -> 84923.63326 | AD49: =+$E49*'Actualización de parámetros'!$E$3*AD$7/AD$3/100 -> 86499.26618 | AE49: =+$E49*'Actualización de parámetros'!$E$3*AE$7/AE$3/100 -> 87077.20605 | AF49: =+$E49*'Actualización de parámetros'!$E$3*AF$7/AF$3/100 -> 84195.9626 | AG49: =+$E49*'Actualización de parámetros'!$E$3*AG$7/AG$3/100 -> 
A50: 50 | B50: ADV 1:10 R300 Trocha angosta en u$s | E50: 78854.89166 | F50: =+$E50*'Actualización de parámetros'!$E$3*F$7/F$3/100 -> 79650.17815 | G50: =+$E50*'Actualización de parámetros'!$E$3*G$7/G$3/100 -> 82580.32494 | H50: =+$E50*'Actualización de parámetros'!$E$3*H$7/H$3/100 -> 83742.38228 | I50: =+$E50*'Actualización de parámetros'!$E$3*I$7/I$3/100 -> 83718.20745 | J50: =+$E50*'Actualización de parámetros'!$E$3*J$7/J$3/100 -> 83908.38263 | K50: =+$E50*'Actualización de parámetros'!$E$3*K$7/K$3/100 -> 83258.42763 | L50: =+$E50*'Actualización de parámetros'!$E$3*L$7/L$3/100 -> 80151.57561 | M50: =+$E50*'Actualización de parámetros'!$E$3*M$7/M$3/100 -> 80528.74167 | N50: =+$E50*'Actualización de parámetros'!$E$3*N$7/N$3/100 -> 82135.60352 | O50: =+$E50*'Actualización de parámetros'!$E$3*O$7/O$3/100 -> 82356.6384 | P50: =+$E50*'Actualización de parámetros'!$E$3*P$7/P$3/100 -> 83438.6858 | Q50: =+$E50*'Actualización de parámetros'!$E$3*Q$7/Q$3/100 -> 83814.23693 | R50: =+$E50*'Actualización de parámetros'!$E$3*R$7/R$3/100 -> 81522.83614 | S50: =+$E50*'Actualización de parámetros'!$E$3*S$7/S$3/100 -> 81977.00021 | T50: =+$E50*'Actualización de parámetros'!$E$3*T$7/T$3/100 -> 81924.8849 | U50: =+$E50*'Actualización de parámetros'!$E$3*U$7/U$3/100 -> 83405.85068 | V50: =+$E50*'Actualización de parámetros'!$E$3*V$7/V$3/100 -> 76659.68316 | W50: =+$E50*'Actualización de parámetros'!$E$3*W$7/W$3/100 -> 72847.84854 | X50: =+$E50*'Actualización de parámetros'!$E$3*X$7/X$3/100 -> 73282.774 | Y50: =+$E50*'Actualización de parámetros'!$E$3*Y$7/Y$3/100 -> 70490.59295 | Z50: =+$E50*'Actualización de parámetros'!$E$3*Z$7/Z$3/100 -> 63854.75448 | AA50: =+$E50*'Actualización de parámetros'!$E$3*AA$7/AA$3/100 -> 68390.76488 | AB50: =+$E50*'Actualización de parámetros'!$E$3*AB$7/AB$3/100 -> 69705.62675 | AC50: =+$E50*'Actualización de parámetros'!$E$3*AC$7/AC$3/100 -> 67938.90661 | AD50: =+$E50*'Actualización de parámetros'!$E$3*AD$7/AD$3/100 -> 69199.41295 | AE50: =+$E50*'Actualización de parámetros'!$E$3*AE$7/AE$3/100 -> 69661.76484 | AF50: =+$E50*'Actualización de parámetros'!$E$3*AF$7/AF$3/100 -> 67356.77008 | AG50: =+$E50*'Actualización de parámetros'!$E$3*AG$7/AG$3/100 -> 
A51: 51 | B51: ADV 1:12 R500 Trocha ancha y media en u$s | E51: 134474.0643 | F51: =+$E51*'Actualización de parámetros'!$E$3*F$7/F$3/100 -> 135830.2948 | G51: =+$E51*'Actualización de parámetros'!$E$3*G$7/G$3/100 -> 140827.1788 | H51: =+$E51*'Actualización de parámetros'!$E$3*H$7/H$3/100 -> 142808.8767 | I51: =+$E51*'Actualización de parámetros'!$E$3*I$7/I$3/100 -> 142767.6505 | J51: =+$E51*'Actualización de parámetros'!$E$3*J$7/J$3/100 -> 143091.9631 | K51: =+$E51*'Actualización de parámetros'!$E$3*K$7/K$3/100 -> 141983.5716 | L51: =+$E51*'Actualización de parámetros'!$E$3*L$7/L$3/100 -> 136685.3458 | M51: =+$E51*'Actualización de parámetros'!$E$3*M$7/M$3/100 -> 137328.5406 | N51: =+$E51*'Actualización de parámetros'!$E$3*N$7/N$3/100 -> 140068.7795 | O51: =+$E51*'Actualización de parámetros'!$E$3*O$7/O$3/100 -> 140445.7182 | P51: =+$E51*'Actualización de parámetros'!$E$3*P$7/P$3/100 -> 142290.9723 | Q51: =+$E51*'Actualización de parámetros'!$E$3*Q$7/Q$3/100 -> 142931.413 | R51: =+$E51*'Actualización de parámetros'!$E$3*R$7/R$3/100 -> 139023.8054 | S51: =+$E51*'Actualización de parámetros'!$E$3*S$7/S$3/100 -> 139798.3076 | T51: =+$E51*'Actualización de parámetros'!$E$3*T$7/T$3/100 -> 139709.4335 | U51: =+$E51*'Actualización de parámetros'!$E$3*U$7/U$3/100 -> 142234.9774 | V51: =+$E51*'Actualización de parámetros'!$E$3*V$7/V$3/100 -> 130730.4968 | W51: =+$E51*'Actualización de parámetros'!$E$3*W$7/W$3/100 -> 124230.0391 | X51: =+$E51*'Actualización de parámetros'!$E$3*X$7/X$3/100 -> 124971.733 | Y51: =+$E51*'Actualización de parámetros'!$E$3*Y$7/Y$3/100 -> 120210.1269 | Z51: =+$E51*'Actualización de parámetros'!$E$3*Z$7/Z$3/100 -> 108893.7944 | AA51: =+$E51*'Actualización de parámetros'!$E$3*AA$7/AA$3/100 -> 116629.2151 | AB51: =+$E51*'Actualización de parámetros'!$E$3*AB$7/AB$3/100 -> 118871.496 | AC51: =+$E51*'Actualización de parámetros'!$E$3*AC$7/AC$3/100 -> 115858.645 | AD51: =+$E51*'Actualización de parámetros'!$E$3*AD$7/AD$3/100 -> 118008.2315 | AE51: =+$E51*'Actualización de parámetros'!$E$3*AE$7/AE$3/100 -> 118796.6967 | AF51: =+$E51*'Actualización de parámetros'!$E$3*AF$7/AF$3/100 -> 114865.9068 | AG51: =+$E51*'Actualización de parámetros'!$E$3*AG$7/AG$3/100 -> 
A52: 52 | B52: ADV 1:12 R500 Trocha angosta en u$s | E52: 107579.2515 | F52: =+$E52*'Actualización de parámetros'!$E$3*F$7/F$3/100 -> 108664.2358 | G52: =+$E52*'Actualización de parámetros'!$E$3*G$7/G$3/100 -> 112661.7431 | H52: =+$E52*'Actualización de parámetros'!$E$3*H$7/H$3/100 -> 114247.1014 | I52: =+$E52*'Actualización de parámetros'!$E$3*I$7/I$3/100 -> 114214.1204 | J52: =+$E52*'Actualización de parámetros'!$E$3*J$7/J$3/100 -> 114473.5705 | K52: =+$E52*'Actualización de parámetros'!$E$3*K$7/K$3/100 -> 113586.8573 | L52: =+$E52*'Actualización de parámetros'!$E$3*L$7/L$3/100 -> 109348.2767 | M52: =+$E52*'Actualización de parámetros'!$E$3*M$7/M$3/100 -> 109862.8325 | N52: =+$E52*'Actualización de parámetros'!$E$3*N$7/N$3/100 -> 112055.0236 | O52: =+$E52*'Actualización de parámetros'!$E$3*O$7/O$3/100 -> 112356.5745 | P52: =+$E52*'Actualización de parámetros'!$E$3*P$7/P$3/100 -> 113832.7778 | Q52: =+$E52*'Actualización de parámetros'!$E$3*Q$7/Q$3/100 -> 114345.1304 | R52: =+$E52*'Actualización de parámetros'!$E$3*R$7/R$3/100 -> 111219.0443 | S52: =+$E52*'Actualización de parámetros'!$E$3*S$7/S$3/100 -> 111838.6461 | T52: =+$E52*'Actualización de parámetros'!$E$3*T$7/T$3/100 -> 111767.5468 | U52: =+$E52*'Actualización de parámetros'!$E$3*U$7/U$3/100 -> 113787.9819 | V52: =+$E52*'Actualización de parámetros'!$E$3*V$7/V$3/100 -> 104584.3975 | W52: =+$E52*'Actualización de parámetros'!$E$3*W$7/W$3/100 -> 99384.03126 | X52: =+$E52*'Actualización de parámetros'!$E$3*X$7/X$3/100 -> 99977.3864 | Y52: =+$E52*'Actualización de parámetros'!$E$3*Y$7/Y$3/100 -> 96168.1015 | Z52: =+$E52*'Actualización de parámetros'!$E$3*Z$7/Z$3/100 -> 87115.03554 | AA52: =+$E52*'Actualización de parámetros'!$E$3*AA$7/AA$3/100 -> 93303.37204 | AB52: =+$E52*'Actualización de parámetros'!$E$3*AB$7/AB$3/100 -> 95097.19678 | AC52: =+$E52*'Actualización de parámetros'!$E$3*AC$7/AC$3/100 -> 92686.91599 | AD52: =+$E52*'Actualización de parámetros'!$E$3*AD$7/AD$3/100 -> 94406.58519 | AE52: =+$E52*'Actualización de parámetros'!$E$3*AE$7/AE$3/100 -> 95037.35736 | AF52: =+$E52*'Actualización de parámetros'!$E$3*AF$7/AF$3/100 -> 91892.72542 | AG52: =+$E52*'Actualización de parámetros'!$E$3*AG$7/AG$3/100 -> 
A53: 53 | B53: PAN tierra en u$s | E53: 28844.8 | F53: =+$E53*'Actualización de parámetros'!$E$3*F$7/F$3/100 -> 29135.71258 | G53: =+$E53*'Actualización de parámetros'!$E$3*G$7/G$3/100 -> 30207.5484 | H53: =+$E53*'Actualización de parámetros'!$E$3*H$7/H$3/100 -> 30632.62427 | I53: =+$E53*'Actualización de parámetros'!$E$3*I$7/I$3/100 -> 30623.78122 | J53: =+$E53*'Actualización de parámetros'!$E$3*J$7/J$3/100 -> 30693.34653 | K53: =+$E53*'Actualización de parámetros'!$E$3*K$7/K$3/100 -> 30455.59562 | L53: =+$E53*'Actualización de parámetros'!$E$3*L$7/L$3/100 -> 29319.12174 | M53: =+$E53*'Actualización de parámetros'!$E$3*M$7/M$3/100 -> 29457.08755 | N53: =+$E53*'Actualización de parámetros'!$E$3*N$7/N$3/100 -> 30044.87111 | O53: =+$E53*'Actualización de parámetros'!$E$3*O$7/O$3/100 -> 30125.72477 | P53: =+$E53*'Actualización de parámetros'!$E$3*P$7/P$3/100 -> 30521.53333 | Q53: =+$E53*'Actualización de parámetros'!$E$3*Q$7/Q$3/100 -> 30658.90841 | R53: =+$E53*'Actualización de parámetros'!$E$3*R$7/R$3/100 -> 29820.72329 | S53: =+$E53*'Actualización de parámetros'!$E$3*S$7/S$3/100 -> 29986.85466 | T53: =+$E53*'Actualización de parámetros'!$E$3*T$7/T$3/100 -> 29967.79109 | U53: =+$E53*'Actualización de parámetros'!$E$3*U$7/U$3/100 -> 30509.52238 | V53: =+$E53*'Actualización de parámetros'!$E$3*V$7/V$3/100 -> 28041.80162 | W53: =+$E53*'Actualización de parámetros'!$E$3*W$7/W$3/100 -> 26647.44796 | X53: =+$E53*'Actualización de parámetros'!$E$3*X$7/X$3/100 -> 26806.54193 | Y53: =+$E53*'Actualización de parámetros'!$E$3*Y$7/Y$3/100 -> 25785.17341 | Z53: =+$E53*'Actualización de parámetros'!$E$3*Z$7/Z$3/100 -> 23357.81057 | AA53: =+$E53*'Actualización de parámetros'!$E$3*AA$7/AA$3/100 -> 25017.06481 | AB53: =+$E53*'Actualización de parámetros'!$E$3*AB$7/AB$3/100 -> 25498.03595 | AC53: =+$E53*'Actualización de parámetros'!$E$3*AC$7/AC$3/100 -> 24851.77688 | AD53: =+$E53*'Actualización de parámetros'!$E$3*AD$7/AD$3/100 -> 25312.86499 | AE53: =+$E53*'Actualización de parámetros'!$E$3*AE$7/AE$3/100 -> 25481.99144 | AF53: =+$E53*'Actualización de parámetros'!$E$3*AF$7/AF$3/100 -> 24638.83369 | AG53: =+$E53*'Actualización de parámetros'!$E$3*AG$7/AG$3/100 -> 
A54: 54 | B54: PAN pavimento en u$s | E54: 57564.2 | F54: =+$E54*'Actualización de parámetros'!$E$3*F$7/F$3/100 -> 58144.76044 | G54: =+$E54*'Actualización de parámetros'!$E$3*G$7/G$3/100 -> 60283.77239 | H54: =+$E54*'Actualización de parámetros'!$E$3*H$7/H$3/100 -> 61132.07615 | I54: =+$E54*'Actualización de parámetros'!$E$3*I$7/I$3/100 -> 61114.42849 | J54: =+$E54*'Actualización de parámetros'!$E$3*J$7/J$3/100 -> 61253.25668 | K54: =+$E54*'Actualización de parámetros'!$E$3*K$7/K$3/100 -> 60778.78847 | L54: =+$E54*'Actualización de parámetros'!$E$3*L$7/L$3/100 -> 58510.78141 | M54: =+$E54*'Actualización de parámetros'!$E$3*M$7/M$3/100 -> 58786.11325 | N54: =+$E54*'Actualización de parámetros'!$E$3*N$7/N$3/100 -> 59959.12503 | O54: =+$E54*'Actualización de parámetros'!$E$3*O$7/O$3/100 -> 60120.48085 | P54: =+$E54*'Actualización de parámetros'!$E$3*P$7/P$3/100 -> 60910.37722 | Q54: =+$E54*'Actualización de parámetros'!$E$3*Q$7/Q$3/100 -> 61184.53016 | R54: =+$E54*'Actualización de parámetros'!$E$3*R$7/R$3/100 -> 59511.80384 | S54: =+$E54*'Actualización de parámetros'!$E$3*S$7/S$3/100 -> 59843.34435 | T54: =+$E54*'Actualización de parámetros'!$E$3*T$7/T$3/100 -> 59805.30009 | U54: =+$E54*'Actualización de parámetros'!$E$3*U$7/U$3/100 -> 60886.40753 | V54: =+$E54*'Actualización de parámetros'!$E$3*V$7/V$3/100 -> 55961.6942 | W54: =+$E54*'Actualización de parámetros'!$E$3*W$7/W$3/100 -> 53179.04869 | X54: =+$E54*'Actualización de parámetros'!$E$3*X$7/X$3/100 -> 53496.54499 | Y54: =+$E54*'Actualización de parámetros'!$E$3*Y$7/Y$3/100 -> 51458.24824 | Z54: =+$E54*'Actualización de parámetros'!$E$3*Z$7/Z$3/100 -> 46614.0753 | AA54: =+$E54*'Actualización de parámetros'!$E$3*AA$7/AA$3/100 -> 49925.37032 | AB54: =+$E54*'Actualización de parámetros'!$E$3*AB$7/AB$3/100 -> 50885.22164 | AC54: =+$E54*'Actualización de parámetros'!$E$3*AC$7/AC$3/100 -> 49595.51304 | AD54: =+$E54*'Actualización de parámetros'!$E$3*AD$7/AD$3/100 -> 50515.68473 | AE54: =+$E54*'Actualización de parámetros'!$E$3*AE$7/AE$3/100 -> 50853.20237 | AF54: =+$E54*'Actualización de parámetros'!$E$3*AF$7/AF$3/100 -> 49170.55242 | AG54: =+$E54*'Actualización de parámetros'!$E$3*AG$7/AG$3/100 -> 
A55: 55 | B55: Capataz de vía (salario bruto mensual $) | C55: Liquidaciones de Alejandro Felizia, ajustado hacia atrás por convenios UOCRA y UECARA | E55: =+F55*0.96 -> 43122.10902 | F55: =+I55*0.9 -> 44918.86357 | G55: =+F55 -> 44918.86357 | H55: 44918.86357 | I55: =+L55*0.9 -> 49909.84841 | J55: =+I55 -> 49909.84841 | K55: 49909.84841 | L55: =+U55*0.88 -> 55455.38712 | M55: =+L55 -> 55455.38712 | N55: =+M55 -> 55455.38712 | O55: 55455.38712 | P55: 55455.38712 | Q55: 55455.38712 | R55: 55455.38712 | S55: 55455.38712 | T55: 55455.38712 | U55: =+Y55*0.95 -> 63017.48536 | V55: =+U55 -> 63017.48536 | W55: 63017.48536 | X55: 63017.48536 | Y55: =+AB55*0.9 -> 66334.19512 | Z55: =+Y55 -> 66334.19512 | AA55: =+Y55 -> 66334.19512 | AB55: =+AD55*0.97 -> 73704.66124 | AC55: =+AB55 -> 73704.66124 | AD55: =+AE55 -> 75984.18685 | AE55: =+AF55*0.935 -> 75984.18685 | AF55: 81266.51
A56: 56 | B56: Subcapataz (salario bruto mensual $) | E56: =+F56*0.96 -> 32332.8092 | F56: =+I56*0.9 -> 33680.00958 | G56: 33680.00958 | H56: 33680.00958 | I56: =+L56*0.9 -> 37422.23287 | J56: 37422.23287 | K56: 37422.23287 | L56: =+U56*0.88 -> 41580.25874 | M56: =+L56 -> 41580.25874 | N56: =+M56 -> 41580.25874 | O56: 41580.25874 | P56: 41580.25874 | Q56: 41580.25874 | R56: 41580.25874 | S56: 41580.25874 | T56: 41580.25874 | U56: =+Y56*0.95 -> 47250.29402 | V56: 47250.29402 | W56: 47250.29402 | X56: 47250.29402 | Y56: =+AB56*0.9 -> 49737.1516 | Z56: =+Y56 -> 49737.1516 | AA56: =+Y56 -> 49737.1516 | AB56: =+AD56*0.97 -> 55263.50178 | AC56: =+AB56 -> 55263.50178 | AD56: =+AE56 -> 56972.68225 | AE56: =+AF56*0.935 -> 56972.68225 | AF56: 60933.35 | AG56: =+AF56/AF55*AG55 -> 0
A57: 57 | B57: Oficiales especializados (salario bruto mensual $) | E57: =+F57*0.96 -> 27038.73758 | F57: =+J57*0.9 -> 28165.35165 | G57: 28165.35165 | H57: 28165.35165 | I57: =+L57*0.91 -> 31294.83516 | J57: 31294.83516 | K57: 31294.83516 | L57: =+S57*0.985 -> 34389.92875 | M57: =+L57 -> 34389.92875 | N57: =+M57 -> 34389.92875 | O57: 34389.92875 | P57: 34389.92875 | Q57: 34389.92875 | R57: 34389.92875 | S57: =+T57*0.985 -> 34913.63325 | T57: =+U57*0.91 -> 35445.31294 | U57: =+Y57*0.95 -> 38950.89334 | V57: 38950.89334 | W57: 38950.89334 | X57: 38950.89334 | Y57: =+Z57*0.96 -> 41000.94036 | Z57: =+AB57*0.94 -> 42709.31288 | AA57: =+Z57 -> 42709.31288 | AB57: =+AD57*0.97 -> 45435.43923 | AC57: =+AB57 -> 45435.43923 | AD57: =+AF57*0.93 -> 46840.659 | AE57: =+AD57 -> 46840.659 | AF57: 50366.3
A58: 58 | B58: Operarios de vía (salario bruto mensual $) | E58: =+F58*0.96 -> 22849.38485 | F58: =+J58*0.9 -> 23801.44255 | G58: 23801.44255 | H58: 23801.44255 | I58: =+L58*0.91 -> 26446.04728 | J58: 26446.04728 | K58: 26446.04728 | L58: =+S58*0.985 -> 29061.59042 | M58: =+L58 -> 29061.59042 | N58: 29061.59042 | O58: 29061.59042 | P58: 29061.59042 | Q58: 29061.59042 | R58: 29061.59042 | S58: =+T58*0.985 -> 29504.15271 | T58: =+U58*0.91 -> 29953.45452 | U58: =+Y58*0.95 -> 32915.88409 | V58: 32915.88409 | W58: 32915.88409 | X58: 32915.88409 | Y58: =+Z58*0.96 -> 34648.29905 | Z58: =+AB58*0.94 -> 36091.97817 | AA58: =+Z58 -> 36091.97817 | AB58: =+AD58*0.97 -> 38395.72146 | AC58: =+AB58 -> 38395.72146 | AD58: =+AF58*0.93 -> 39583.218 | AE58: =+AD58 -> 39583.218 | AF58: 42562.6 | AG58: =+AF58*AG57/AF57 -> 0
A59: 59 | B59: Costo Promedio diario por persona del personal contratado (M2) | C59: Actualizado según la variación del salario de personal de no conducción (Peón general - Unión Ferroviaria) | E59: 4850 | F59: =+E59*F17/E17 -> 4756.53426 | G59: =+F59*G17/F17 -> 4756.53426 | H59: 4756.53426 | I59: 4860.4069 | J59: 4860.4069 | K59: 4860.4069 | L59: 5331.387657 | M59: 5331.387657 | N59: 5331.387657 | O59: 5331.387657 | P59: 5331.387657 | Q59: 5704.61462 | R59: 5704.61462 | S59: 5704.61462 | T59: 5704.61462 | U59: 5704.61462 | V59: 5704.61462 | W59: 6584.496258 | X59: 6584.496258 | Y59: 6584.496258 | Z59: 6584.496258 | AA59: 6584.496258 | AB59: 6584.496258 | AC59: 6584.496258 | AD59: =+AC59*AD17/AC17 -> 7572.170696 | AE59: 7572.170696 | AF59: 7572.170696 | AG59: =+AF59*AG17/AF17 -> 0
A60: 60 | B60: Jefe de equipo (salario bruto mensual $) | E60: 42046.93056 | F60: =+E60*F17/E17 -> 41236.6321 | G60: =+F60*G17/F17 -> 41236.6321 | H60: 41236.6321 | I60: 42137.15286 | J60: 42137.15286 | K60: 42137.15286 | L60: 46220.30651 | M60: 46220.30651 | N60: 46220.30651 | O60: 46220.30651 | P60: 46220.30651 | Q60: 49455.98655 | R60: 49455.98655 | S60: 49455.98655 | T60: 49455.98655 | U60: 49455.98655 | V60: 49455.98655 | W60: 57084.0942 | X60: 57084.0942 | Y60: 57084.0942 | Z60: 57084.0942 | AA60: 57084.0942 | AB60: 57084.0942 | AC60: 57084.0942 | AD60: 65646.70833 | AE60: 65646.70833 | AF60: 65646.70833 | AG60: 0
A61: 61 | B61: Operadores (salario bruto mensual $) | E61: 40329.22222 | F61: =+E61*F17/E17 -> 39552.02622 | G61: =+F61*G17/F17 -> 39552.02622 | H61: 39552.02622 | I61: 40415.75875 | J61: 40415.75875 | K61: 40415.75875 | L61: 44332.10672 | M61: 44332.10672 | N61: 44332.10672 | O61: 44332.10672 | P61: 44332.10672 | Q61: 47435.6022 | R61: 47435.6022 | S61: 47435.6022 | T61: 47435.6022 | U61: 47435.6022 | V61: 47435.6022 | W61: 54752.08511 | X61: 54752.08511 | Y61: 54752.08511 | Z61: 54752.08511 | AA61: 54752.08511 | AB61: 54752.08511 | AC61: 54752.08511 | AD61: 62964.89788 | AE61: 62964.89788 | AF61: 62964.89788 | AG61: 0
A62: 62 | B62: Ayudante de operación (salario bruto mensual $) | E62: 37404.98611 | F62: =+E62*F17/E17 -> 36684.1439 | G62: =+F62*G17/F17 -> 36684.1439 | H62: 36684.1439 | I62: 37485.24795 | J62: 37485.24795 | K62: 37485.24795 | L62: 41117.625 | M62: 41117.625 | N62: 41117.625 | O62: 41117.625 | P62: 41117.625 | Q62: 43996.08879 | R62: 43996.08879 | S62: 43996.08879 | T62: 43996.08879 | U62: 43996.08879 | V62: 43996.08879 | W62: 50782.06001 | X62: 50782.06001 | Y62: 50782.06001 | Z62: 50782.06001 | AA62: 50782.06001 | AB62: 50782.06001 | AC62: 50782.06001 | AD62: 58399.36902 | AE62: 58399.36902 | AF62: 58399.36902 | AG62: 0
A63: 63 | B63: Camión volcador (alquiler mensual en u$s) | C63: Actualizado por ICC - INDEC | E63: 4367 | F63: =+E63*(1+F6/100) -> 4483.430741 | G63: =+F63*(1+G6/100) -> 4559.195444 | H63: 4608.333574 | I63: 4863.222493 | J63: 4919.138296 | K63: 4970.939083 | L63: 5265.767862 | M63: 5332.334294 | N63: 5374.694751 | O63: 5415.360789 | P63: 5439.324705 | Q63: 5517.994124 | R63: 5579.477302 | S63: 5713.094285 | T63: 5804.108752 | U63: 6135.488554 | V63: 6308.561277 | W63: 6464.931877 | X63: 6576.521423 | Y63: 6821.727953 | Z63: 7332.716091 | AA63: 7496.348484 | AB63: 7761.645973 | AC63: 8019.19755 | AD63: 8106.581121 | AE63: 8220.591264 | AF63: 8434.326637 | AG63: =+AF63*(1+AG6/100) -> 8434.326637
A64: 64 | B64: Bus para el transporte del personal (alquiler mensual en u$s) | E64: 2169 | F64: =+E64*(1+F6/100) -> 2226.828779 | G64: =+F64*(1+G6/100) -> 2264.459564 | H64: 2288.865473 | I64: 2415.463611 | J64: 2443.235852 | K64: 2468.964248 | L64: 2615.399701 | M64: 2648.461892 | N64: 2669.501469 | O64: 2689.699462 | P64: 2701.601851 | Q64: 2740.675351 | R64: 2771.212793 | S64: 2837.577629 | T64: 2882.782662 | U64: 3047.372263 | V64: 3133.333962 | W64: 3211.000055 | X64: 3266.424311 | Y64: 3388.213403 | Z64: 3642.010809 | AA64: 3723.283687 | AB64: 3855.051549 | AC64: 3982.972174 | AD64: 4026.373815 | AE64: 4083.000333 | AF64: 4189.158341 | AG64: =+AF64*(1+AG6/100) -> 4189.158341
A65: 65 | B65: Durmientes madera (M1 - M2 Y M3) en u$s con IVA | C65: Valores constantes en U$D a excepción del durmiente de madera, que se actualiza en pesos y se pasa a U$D | E65: 56.52173913 | F65: 56.52173913 | G65: 56.52173913 | H65: 56.52173913 | I65: 56.52173913 | J65: 56.52173913 | K65: 56.52173913 | L65: 56.52173913 | M65: 56.52173913 | N65: 56.52173913 | O65: 56.52173913 | P65: =+((980+1200)/2+86)/P3 -> 67.22881235 | Q65: =+((980+1200)/2+86)/Q3 -> 66.4404804 | R65: 61.8004099 | S65: 59.27150482 | T65: 58.109083 | U65: 58.11741101 | V65: 49.68587206 | W65: 44.3201604 | X65: 42.57059805 | Y65: 40 | Z65: 40 | AA65: 40 | AB65: 40 | AC65: 40 | AD65: 40 | AE65: 40 | AF65: 40 | AG65: 40
A66: 66 | B66: Balasto 500 tn/km en u$s con IVA | E66: 28.98550725 | F66: 28.98550725 | G66: 28.98550725 | H66: 28.98550725 | I66: 28.98550725 | J66: 28.98550725 | K66: 28.98550725 | L66: 28.98550725 | M66: 28.98550725 | N66: 28.98550725 | O66: 28.98550725 | P66: 28.98550725 | Q66: 28.98550725 | R66: 28.98550725 | S66: 28.98550725 | T66: 28.98550725 | U66: 28.98550725 | V66: 28.98550725 | W66: 28.98550725 | X66: 28.98550725 | Y66: 28.98550725 | Z66: 28.98550725 | AA66: 28.98550725 | AB66: 28.98550725 | AC66: 28.98550725 | AD66: 28.98550725 | AE66: 28.98550725 | AF66: 28.98550725 | AG66: =+(350+3.5*300)/AG3 ->  | AH66: Incluye IVA
A67: =1+A66 -> 67 | B67: Fijaciones tirafondo en u$s con IVA | E67: 1.304347826 | F67: 1.304347826 | G67: 1.304347826 | H67: 1.304347826 | I67: 1.304347826 | J67: 1.304347826 | K67: 1.304347826 | L67: 1.304347826 | M67: 1.304347826 | N67: 1.304347826 | O67: 1.304347826 | P67: 1.304347826 | Q67: 1.304347826 | R67: 1.304347826 | S67: 1.304347826 | T67: 1.304347826 | U67: 1.304347826 | V67: 1.304347826 | W67: 1.304347826 | X67: 1.304347826 | Y67: 1.304347826 | Z67: 1.304347826 | AA67: 1.304347826 | AB67: 1.304347826 | AC67: 1.304347826 | AD67: 1.304347826 | AE67: 1.304347826 | AF67: 1.304347826 | AG67: 1.304347826 | AH67: Incluye IVA
A68: 68 | B68: Eclisas (par) en u$s con IVA | E68: 74.85507246 | F68: 74.85507246 | G68: 74.85507246 | H68: 74.85507246 | I68: 74.85507246 | J68: 74.85507246 | K68: 74.85507246 | L68: 74.85507246 | M68: 74.85507246 | N68: 74.85507246 | O68: 74.85507246 | P68: 74.85507246 | Q68: 74.85507246 | R68: 74.85507246 | S68: 74.85507246 | T68: 74.85507246 | U68: 74.85507246 | V68: 74.85507246 | W68: 74.85507246 | X68: 74.85507246 | Y68: 74.85507246 | Z68: 74.85507246 | AA68: 74.85507246 | AB68: 74.85507246 | AC68: 74.85507246 | AD68: 74.85507246 | AE68: 74.85507246 | AF68: 74.85507246 | AG68: 74.85507246 | AH68: Incluye IVA
A69: 69 | B69: Bulones en u$s con IVA | E69: 3.260869565 | F69: 3.260869565 | G69: 3.260869565 | H69: 3.260869565 | I69: 3.260869565 | J69: 3.260869565 | K69: 3.260869565 | L69: 3.260869565 | M69: 3.260869565 | N69: 3.260869565 | O69: 3.260869565 | P69: 3.260869565 | Q69: 3.260869565 | R69: 3.260869565 | S69: 3.260869565 | T69: 3.260869565 | U69: 3.260869565 | V69: 3.260869565 | W69: 3.260869565 | X69: 3.260869565 | Y69: 3.260869565 | Z69: 3.260869565 | AA69: 3.260869565 | AB69: 3.260869565 | AC69: 3.260869565 | AD69: 3.260869565 | AE69: 3.260869565 | AF69: 3.260869565 | AG69: 3.260869565 | AH69: Incluye IVA
A70: 70 | B70: Bateadora - 16 bates (valor de compra en u$s) | C70: Alejandro Felizia - Abril 2019 | E70: =1880278*1.18*1.13*1.21 -> 3033666.849 | F70: 3033666.849 | G70: 3033666.849 | H70: 3033666.849 | I70: 3033666.849 | J70: 3033666.849 | K70: 3033666.849 | L70: 3033666.849 | M70: 3033666.849 | N70: 3033666.849 | O70: 3033666.849 | P70: 3033666.849 | Q70: 3033666.849 | R70: 3033666.849 | S70: 3033666.849 | T70: 3033666.849 | U70: 3033666.849 | V70: 3033666.849 | W70: 3033666.849 | X70: 3033666.849 | Y70: 3033666.849 | Z70: 3033666.849 | AA70: 3033666.849 | AB70: 3033666.849 | AC70: 3033666.849 | AD70: 3033666.849 | AE70: 3033666.849 | AF70: 3033666.849 | AG70: =1880278*1.18*1.13*1.21 -> 3033666.849 | AH70: CIF*Costo Nac*euro a dólar*IVA
A71: 71 | B71: Perfiladora de balasto (valor de compra en u$s) | E71: =707760*1.18*1.13*1.21 -> 1141909.893 | F71: 1141909.893 | G71: 1141909.893 | H71: 1141909.893 | I71: 1141909.893 | J71: 1141909.893 | K71: 1141909.893 | L71: 1141909.893 | M71: 1141909.893 | N71: 1141909.893 | O71: 1141909.893 | P71: 1141909.893 | Q71: 1141909.893 | R71: 1141909.893 | S71: 1141909.893 | T71: 1141909.893 | U71: 1141909.893 | V71: 1141909.893 | W71: 1141909.893 | X71: 1141909.893 | Y71: 1141909.893 | Z71: 1141909.893 | AA71: 1141909.893 | AB71: 1141909.893 | AC71: 1141909.893 | AD71: 1141909.893 | AE71: 1141909.893 | AF71: 1141909.893 | AG71: =707760*1.18*1.13*1.21 -> 1141909.893 | AH71: CIF*Costo Nac*euro a dólar*IVA
A72: 72 | B72: Estabilizadora (valor de compra en u$s) | C72: ADIF Enero 2016 | E72: 2739000 | F72: 2739000 | G72: 2739000 | H72: 2739000 | I72: 2739000 | J72: 2739000 | K72: 2739000 | L72: 2739000 | M72: 2739000 | N72: 2739000 | O72: 2739000 | P72: 2739000 | Q72: 2739000 | R72: 2739000 | S72: 2739000 | T72: 2739000 | U72: 2739000 | V72: 2739000 | W72: 2739000 | X72: 2739000 | Y72: 2739000 | Z72: 2739000 | AA72: 2739000 | AB72: 2739000 | AC72: 2739000 | AD72: 2739000 | AE72: 2739000 | AF72: 2739000 | AG72: 2739000
A73: 73 | B73: Esmeriladora de rieles (valor de compra en u$s) | E73: 9188000 | F73: 9188000 | G73: 9188000 | H73: 9188000 | I73: 9188000 | J73: 9188000 | K73: 9188000 | L73: 9188000 | M73: 9188000 | N73: 9188000 | O73: 9188000 | P73: 9188000 | Q73: 9188000 | R73: 9188000 | S73: 9188000 | T73: 9188000 | U73: 9188000 | V73: 9188000 | W73: 9188000 | X73: 9188000 | Y73: 9188000 | Z73: 9188000 | AA73: 9188000 | AB73: 9188000 | AC73: 9188000 | AD73: 9188000 | AE73: 9188000 | AF73: 9188000 | AG73: 9188000
A74: 74 | B74: Dresina (valor de compra en u$s) | E74: 8141000 | F74: 8141000 | G74: 8141000 | H74: 8141000 | I74: 8141000 | J74: 8141000 | K74: 8141000 | L74: 8141000 | M74: 8141000 | N74: 8141000 | O74: 8141000 | P74: 8141000 | Q74: 8141000 | R74: 8141000 | S74: 8141000 | T74: 8141000 | U74: 8141000 | V74: 8141000 | W74: 8141000 | X74: 8141000 | Y74: 8141000 | Z74: 8141000 | AA74: 8141000 | AB74: 8141000 | AC74: 8141000 | AD74: 8141000 | AE74: 8141000 | AF74: 8141000 | AG74: 8141000
A75: 75 | B75: Costo promedio movilidad remis (en s) | E75: 300 | F75: =+$E$75*F7/100 -> 304.4977275 | G75: =+$E$75*G7/100 -> 309.5825911 | H75: 312.4375526 | I75: 313.8825655 | J75: 316.5739068 | K75: 322.4959809 | L75: 330.7346823 | M75: 337.0811536 | N75: 340.4513808 | O75: 345.4509552 | P75: 350.7858062 | Q75: 356.545556 | R75: 372.8360694 | S75: 390.909356 | T75: 398.4756742 | U75: 405.6208336 | V75: 436.077922 | W75: 464.56384 | X75: 486.544027 | Y75: 510.3565414 | Z75: 592.2303945 | AA75: 610.141328 | AB75: 610.7953224 | AC75: 618.6012767 | AD75: 622.1237818 | AE75: 643.0513063 | AF75: 669.5910781 | AG75: 0
A76: 76 | B76: Mejoramiento - Relevamiento, Proyecto Ejecutivo y Replanteo + Conducción | E76: 1231175 | F76: =+$E76*(Mejoramiento!$I5*F$2/100+Mejoramiento!$J5+Mejoramiento!$K5*F$7/100) -> 1262496.662 | G76: =+$E76*(Mejoramiento!$I5*G$2/100+Mejoramiento!$J5+Mejoramiento!$K5*G$7/100) -> 1264583.448 | H76: =+$E76*(Mejoramiento!$I5*H$2/100+Mejoramiento!$J5+Mejoramiento!$K5*H$7/100) -> 1265755.1 | I76: =+$E76*(Mejoramiento!$I5*I$2/100+Mejoramiento!$J5+Mejoramiento!$K5*I$7/100) -> 1373077.233 | J76: =+$E76*(Mejoramiento!$I5*J$2/100+Mejoramiento!$J5+Mejoramiento!$K5*J$7/100) -> 1374181.737 | K76: =+$E76*(Mejoramiento!$I5*K$2/100+Mejoramiento!$J5+Mejoramiento!$K5*K$7/100) -> 1376612.107 | L76: =+$E76*(Mejoramiento!$I5*L$2/100+Mejoramiento!$J5+Mejoramiento!$K5*L$7/100) -> 1495464.004 | M76: =+$E76*(Mejoramiento!$I5*M$2/100+Mejoramiento!$J5+Mejoramiento!$K5*M$7/100) -> 1498068.543 | N76: =+$E76*(Mejoramiento!$I5*N$2/100+Mejoramiento!$J5+Mejoramiento!$K5*N$7/100) -> 1499451.657 | O76: =+$E76*(Mejoramiento!$I5*O$2/100+Mejoramiento!$J5+Mejoramiento!$K5*O$7/100) -> 1501503.44 | P76: =+$E76*(Mejoramiento!$I5*P$2/100+Mejoramiento!$J5+Mejoramiento!$K5*P$7/100) -> 1503692.819 | Q76: =+$E76*(Mejoramiento!$I5*Q$2/100+Mejoramiento!$J5+Mejoramiento!$K5*Q$7/100) -> 1506056.572 | R76: =+$E76*(Mejoramiento!$I5*R$2/100+Mejoramiento!$J5+Mejoramiento!$K5*R$7/100) -> 1532537.682 | S76: =+$E76*(Mejoramiento!$I5*S$2/100+Mejoramiento!$J5+Mejoramiento!$K5*S$7/100) -> 1558458.801 | T76: =+$E76*(Mejoramiento!$I5*T$2/100+Mejoramiento!$J5+Mejoramiento!$K5*T$7/100) -> 1575651.322 | U76: =+$E76*(Mejoramiento!$I5*U$2/100+Mejoramiento!$J5+Mejoramiento!$K5*U$7/100) -> 1706252.733 | V76: =+$E76*(Mejoramiento!$I5*V$2/100+Mejoramiento!$J5+Mejoramiento!$K5*V$7/100) -> 1718752.069 | W76: =+$E76*(Mejoramiento!$I5*W$2/100+Mejoramiento!$J5+Mejoramiento!$K5*W$7/100) -> 1730442.452 | X76: =+$E76*(Mejoramiento!$I5*X$2/100+Mejoramiento!$J5+Mejoramiento!$K5*X$7/100) -> 1743992.22 | Y76: =+$E76*(Mejoramiento!$I5*Y$2/100+Mejoramiento!$J5+Mejoramiento!$K5*Y$7/100) -> 1824006.621 | Z76: =+$E76*(Mejoramiento!$I5*Z$2/100+Mejoramiento!$J5+Mejoramiento!$K5*Z$7/100) -> 1916611.327 | AA76: =+$E76*(Mejoramiento!$I5*AA$2/100+Mejoramiento!$J5+Mejoramiento!$K5*AA$7/100) -> 1923961.825 | AB76: =+$E76*(Mejoramiento!$I5*AB$2/100+Mejoramiento!$J5+Mejoramiento!$K5*AB$7/100) -> 2016243.222 | AC76: =+$E76*(Mejoramiento!$I5*AC$2/100+Mejoramiento!$J5+Mejoramiento!$K5*AC$7/100) -> 2106738.353 | AD76: =+$E76*(Mejoramiento!$I5*AD$2/100+Mejoramiento!$J5+Mejoramiento!$K5*AD$7/100) -> 2113891.081 | AE76: =+$E76*(Mejoramiento!$I5*AE$2/100+Mejoramiento!$J5+Mejoramiento!$K5*AE$7/100) -> 2122479.563 | AF76: =+$E76*(Mejoramiento!$I5*AF$2/100+Mejoramiento!$J5+Mejoramiento!$K5*AF$7/100) -> 2179109.566 | AG76: =+$E76*(Mejoramiento!$I5*AG$2/100+Mejoramiento!$J5+Mejoramiento!$K5*AG$7/100) -> 135429.25
A77: 77 | B77: Limpieza de zona de vía - desmalezado | E77: 28.19 | F77: =+$E77*(Mejoramiento!$I6*F$2/100+Mejoramiento!$J6+Mejoramiento!$K6*F$7/100) -> 28.95869615 | G77: =+$E77*(Mejoramiento!$I6*G$2/100+Mejoramiento!$J6+Mejoramiento!$K6*G$7/100) -> 28.97780846 | H77: =+$E77*(Mejoramiento!$I6*H$2/100+Mejoramiento!$J6+Mejoramiento!$K6*H$7/100) -> 28.9885393 | I77: =+$E77*(Mejoramiento!$I6*I$2/100+Mejoramiento!$J6+Mejoramiento!$K6*I$7/100) -> 31.71613136 | J77: =+$E77*(Mejoramiento!$I6*J$2/100+Mejoramiento!$J6+Mejoramiento!$K6*J$7/100) -> 31.72624721 | K77: =+$E77*(Mejoramiento!$I6*K$2/100+Mejoramiento!$J6+Mejoramiento!$K6*K$7/100) -> 31.74850631 | L77: =+$E77*(Mejoramiento!$I6*L$2/100+Mejoramiento!$J6+Mejoramiento!$K6*L$7/100) -> 34.72459325 | M77: =+$E77*(Mejoramiento!$I6*M$2/100+Mejoramiento!$J6+Mejoramiento!$K6*M$7/100) -> 34.74844752 | N77: =+$E77*(Mejoramiento!$I6*N$2/100+Mejoramiento!$J6+Mejoramiento!$K6*N$7/100) -> 34.76111508 | O77: =+$E77*(Mejoramiento!$I6*O$2/100+Mejoramiento!$J6+Mejoramiento!$K6*O$7/100) -> 34.77990681 | P77: =+$E77*(Mejoramiento!$I6*P$2/100+Mejoramiento!$J6+Mejoramiento!$K6*P$7/100) -> 34.79995874 | Q77: =+$E77*(Mejoramiento!$I6*Q$2/100+Mejoramiento!$J6+Mejoramiento!$K6*Q$7/100) -> 34.82160772 | R77: =+$E77*(Mejoramiento!$I6*R$2/100+Mejoramiento!$J6+Mejoramiento!$K6*R$7/100) -> 35.38773204 | S77: =+$E77*(Mejoramiento!$I6*S$2/100+Mejoramiento!$J6+Mejoramiento!$K6*S$7/100) -> 35.92761385 | T77: =+$E77*(Mejoramiento!$I6*T$2/100+Mejoramiento!$J6+Mejoramiento!$K6*T$7/100) -> 36.31535599 | U77: =+$E77*(Mejoramiento!$I6*U$2/100+Mejoramiento!$J6+Mejoramiento!$K6*U$7/100) -> 39.59845414 | V77: =+$E77*(Mejoramiento!$I6*V$2/100+Mejoramiento!$J6+Mejoramiento!$K6*V$7/100) -> 39.71293218 | W77: =+$E77*(Mejoramiento!$I6*W$2/100+Mejoramiento!$J6+Mejoramiento!$K6*W$7/100) -> 39.82000125 | X77: =+$E77*(Mejoramiento!$I6*X$2/100+Mejoramiento!$J6+Mejoramiento!$K6*X$7/100) -> 40.01813828 | Y77: =+$E77*(Mejoramiento!$I6*Y$2/100+Mejoramiento!$J6+Mejoramiento!$K6*Y$7/100) -> 41.89918521 | Z77: =+$E77*(Mejoramiento!$I6*Z$2/100+Mejoramiento!$J6+Mejoramiento!$K6*Z$7/100) -> 43.71184711 | AA77: =+$E77*(Mejoramiento!$I6*AA$2/100+Mejoramiento!$J6+Mejoramiento!$K6*AA$7/100) -> 43.77916834 | AB77: =+$E77*(Mejoramiento!$I6*AB$2/100+Mejoramiento!$J6+Mejoramiento!$K6*AB$7/100) -> 46.12844806 | AC77: =+$E77*(Mejoramiento!$I6*AC$2/100+Mejoramiento!$J6+Mejoramiento!$K6*AC$7/100) -> 48.38418953 | AD77: =+$E77*(Mejoramiento!$I6*AD$2/100+Mejoramiento!$J6+Mejoramiento!$K6*AD$7/100) -> 48.54299145 | AE77: =+$E77*(Mejoramiento!$I6*AE$2/100+Mejoramiento!$J6+Mejoramiento!$K6*AE$7/100) -> 48.62165104 | AF77: =+$E77*(Mejoramiento!$I6*AF$2/100+Mejoramiento!$J6+Mejoramiento!$K6*AF$7/100) -> 49.88797546 | AG77: =+$E77*(Mejoramiento!$I6*AG$2/100+Mejoramiento!$J6+Mejoramiento!$K6*AG$7/100) -> 2.2552
A78: 78 | B78: Cambio de Fijaciones | E78: 14589696.57 | F78: =+$E78*(Mejoramiento!$I7*F$2/100+Mejoramiento!$J7+Mejoramiento!$K7*F$7/100) -> 14921632.71 | G78: =+$E78*(Mejoramiento!$I7*G$2/100+Mejoramiento!$J7+Mejoramiento!$K7*G$7/100) -> 15003979.86 | H78: =+$E78*(Mejoramiento!$I7*H$2/100+Mejoramiento!$J7+Mejoramiento!$K7*H$7/100) -> 15050214.71 | I78: =+$E78*(Mejoramiento!$I7*I$2/100+Mejoramiento!$J7+Mejoramiento!$K7*I$7/100) -> 16011782.5 | J78: =+$E78*(Mejoramiento!$I7*J$2/100+Mejoramiento!$J7+Mejoramiento!$K7*J$7/100) -> 16055367.6 | K78: =+$E78*(Mejoramiento!$I7*K$2/100+Mejoramiento!$J7+Mejoramiento!$K7*K$7/100) -> 16151273 | L78: =+$E78*(Mejoramiento!$I7*L$2/100+Mejoramiento!$J7+Mejoramiento!$K7*L$7/100) -> 17299702.51 | M78: =+$E78*(Mejoramiento!$I7*M$2/100+Mejoramiento!$J7+Mejoramiento!$K7*M$7/100) -> 17402480.84 | N78: =+$E78*(Mejoramiento!$I7*N$2/100+Mejoramiento!$J7+Mejoramiento!$K7*N$7/100) -> 17457060.2 | O78: =+$E78*(Mejoramiento!$I7*O$2/100+Mejoramiento!$J7+Mejoramiento!$K7*O$7/100) -> 17538026.12 | P78: =+$E78*(Mejoramiento!$I7*P$2/100+Mejoramiento!$J7+Mejoramiento!$K7*P$7/100) -> 17624421.7 | Q78: =+$E78*(Mejoramiento!$I7*Q$2/100+Mejoramiento!$J7+Mejoramiento!$K7*Q$7/100) -> 17717698.33 | R78: =+$E78*(Mejoramiento!$I7*R$2/100+Mejoramiento!$J7+Mejoramiento!$K7*R$7/100) -> 18155522.83 | S78: =+$E78*(Mejoramiento!$I7*S$2/100+Mejoramiento!$J7+Mejoramiento!$K7*S$7/100) -> 18610864.95 | T78: =+$E78*(Mejoramiento!$I7*T$2/100+Mejoramiento!$J7+Mejoramiento!$K7*T$7/100) -> 18857228.44 | U78: =+$E78*(Mejoramiento!$I7*U$2/100+Mejoramiento!$J7+Mejoramiento!$K7*U$7/100) -> 20095173.53 | V78: =+$E78*(Mejoramiento!$I7*V$2/100+Mejoramiento!$J7+Mejoramiento!$K7*V$7/100) -> 20588412.77 | W78: =+$E78*(Mejoramiento!$I7*W$2/100+Mejoramiento!$J7+Mejoramiento!$K7*W$7/100) -> 21049729.77 | X78: =+$E78*(Mejoramiento!$I7*X$2/100+Mejoramiento!$J7+Mejoramiento!$K7*X$7/100) -> 21445502.44 | Y78: =+$E78*(Mejoramiento!$I7*Y$2/100+Mejoramiento!$J7+Mejoramiento!$K7*Y$7/100) -> 22448573.93 | Z78: =+$E78*(Mejoramiento!$I7*Z$2/100+Mejoramiento!$J7+Mejoramiento!$K7*Z$7/100) -> 24293143.24 | AA78: =+$E78*(Mejoramiento!$I7*AA$2/100+Mejoramiento!$J7+Mejoramiento!$K7*AA$7/100) -> 24583202.98 | AB78: =+$E78*(Mejoramiento!$I7*AB$2/100+Mejoramiento!$J7+Mejoramiento!$K7*AB$7/100) -> 25402603.55 | AC78: =+$E78*(Mejoramiento!$I7*AC$2/100+Mejoramiento!$J7+Mejoramiento!$K7*AC$7/100) -> 26296325.37 | AD78: =+$E78*(Mejoramiento!$I7*AD$2/100+Mejoramiento!$J7+Mejoramiento!$K7*AD$7/100) -> 26403537.34 | AE78: =+$E78*(Mejoramiento!$I7*AE$2/100+Mejoramiento!$J7+Mejoramiento!$K7*AE$7/100) -> 26742449.46 | AF78: =+$E78*(Mejoramiento!$I7*AF$2/100+Mejoramiento!$J7+Mejoramiento!$K7*AF$7/100) -> 27574296.66 | AG78: =+$E78*(Mejoramiento!$I7*AG$2/100+Mejoramiento!$J7+Mejoramiento!$K7*AG$7/100) -> 1181765.422
A79: 79 | B79: Cambio de Durmientes con Fijaciones Gauge Lock | E79: 1583.74 | F79: =+$E79*(Mejoramiento!$I8*F$2/100+Mejoramiento!$J8+Mejoramiento!$K8*F$7/100) -> 1612.730923 | G79: =+$E79*(Mejoramiento!$I8*G$2/100+Mejoramiento!$J8+Mejoramiento!$K8*G$7/100) -> 1625.266918 | H79: =+$E79*(Mejoramiento!$I8*H$2/100+Mejoramiento!$J8+Mejoramiento!$K8*H$7/100) -> 1632.305413 | I79: =+$E79*(Mejoramiento!$I8*I$2/100+Mejoramiento!$J8+Mejoramiento!$K8*I$7/100) -> 1700.690825 | J79: =+$E79*(Mejoramiento!$I8*J$2/100+Mejoramiento!$J8+Mejoramiento!$K8*J$7/100) -> 1707.325937 | K79: =+$E79*(Mejoramiento!$I8*K$2/100+Mejoramiento!$J8+Mejoramiento!$K8*K$7/100) -> 1721.925953 | L79: =+$E79*(Mejoramiento!$I8*L$2/100+Mejoramiento!$J8+Mejoramiento!$K8*L$7/100) -> 1812.36957 | M79: =+$E79*(Mejoramiento!$I8*M$2/100+Mejoramiento!$J8+Mejoramiento!$K8*M$7/100) -> 1828.015876 | N79: =+$E79*(Mejoramiento!$I8*N$2/100+Mejoramiento!$J8+Mejoramiento!$K8*N$7/100) -> 1836.324684 | O79: =+$E79*(Mejoramiento!$I8*O$2/100+Mejoramiento!$J8+Mejoramiento!$K8*O$7/100) -> 1848.650411 | P79: =+$E79*(Mejoramiento!$I8*P$2/100+Mejoramiento!$J8+Mejoramiento!$K8*P$7/100) -> 1861.802714 | Q79: =+$E79*(Mejoramiento!$I8*Q$2/100+Mejoramiento!$J8+Mejoramiento!$K8*Q$7/100) -> 1876.002543 | R79: =+$E79*(Mejoramiento!$I8*R$2/100+Mejoramiento!$J8+Mejoramiento!$K8*R$7/100) -> 1928.187504 | S79: =+$E79*(Mejoramiento!$I8*S$2/100+Mejoramiento!$J8+Mejoramiento!$K8*S$7/100) -> 1983.983152 | T79: =+$E79*(Mejoramiento!$I8*T$2/100+Mejoramiento!$J8+Mejoramiento!$K8*T$7/100) -> 2011.192911 | U79: =+$E79*(Mejoramiento!$I8*U$2/100+Mejoramiento!$J8+Mejoramiento!$K8*U$7/100) -> 2106.349308 | V79: =+$E79*(Mejoramiento!$I8*V$2/100+Mejoramiento!$J8+Mejoramiento!$K8*V$7/100) -> 2181.436852 | W79: =+$E79*(Mejoramiento!$I8*W$2/100+Mejoramiento!$J8+Mejoramiento!$K8*W$7/100) -> 2251.66476 | X79: =+$E79*(Mejoramiento!$I8*X$2/100+Mejoramiento!$J8+Mejoramiento!$K8*X$7/100) -> 2308.604632 | Y79: =+$E79*(Mejoramiento!$I8*Y$2/100+Mejoramiento!$J8+Mejoramiento!$K8*Y$7/100) -> 2409.973053 | Z79: =+$E79*(Mejoramiento!$I8*Z$2/100+Mejoramiento!$J8+Mejoramiento!$K8*Z$7/100) -> 2647.658046 | AA79: =+$E79*(Mejoramiento!$I8*AA$2/100+Mejoramiento!$J8+Mejoramiento!$K8*AA$7/100) -> 2691.81486 | AB79: =+$E79*(Mejoramiento!$I8*AB$2/100+Mejoramiento!$J8+Mejoramiento!$K8*AB$7/100) -> 2749.312162 | AC79: =+$E79*(Mejoramiento!$I8*AC$2/100+Mejoramiento!$J8+Mejoramiento!$K8*AC$7/100) -> 2821.574016 | AD79: =+$E79*(Mejoramiento!$I8*AD$2/100+Mejoramiento!$J8+Mejoramiento!$K8*AD$7/100) -> 2833.724517 | AE79: =+$E79*(Mejoramiento!$I8*AE$2/100+Mejoramiento!$J8+Mejoramiento!$K8*AE$7/100) -> 2885.318299 | AF79: =+$E79*(Mejoramiento!$I8*AF$2/100+Mejoramiento!$J8+Mejoramiento!$K8*AF$7/100) -> 2978.527858 | AG79: =+$E79*(Mejoramiento!$I8*AG$2/100+Mejoramiento!$J8+Mejoramiento!$K8*AG$7/100) -> 253.3984
A80: 80 | B80: Tratamiento de juntas | E80: 55514367 | F80: =+$E80*(Mejoramiento!$I9*F$2/100+Mejoramiento!$J9+Mejoramiento!$K9*F$7/100) -> 56405513.7 | G80: =+$E80*(Mejoramiento!$I9*G$2/100+Mejoramiento!$J9+Mejoramiento!$K9*G$7/100) -> 57260831.13 | H80: =+$E80*(Mejoramiento!$I9*H$2/100+Mejoramiento!$J9+Mejoramiento!$K9*H$7/100) -> 57741060.02 | I80: =+$E80*(Mejoramiento!$I9*I$2/100+Mejoramiento!$J9+Mejoramiento!$K9*I$7/100) -> 58471462.78 | J80: =+$E80*(Mejoramiento!$I9*J$2/100+Mejoramiento!$J9+Mejoramiento!$K9*J$7/100) -> 58924169.34 | K80: =+$E80*(Mejoramiento!$I9*K$2/100+Mejoramiento!$J9+Mejoramiento!$K9*K$7/100) -> 59920312.73 | L80: =+$E80*(Mejoramiento!$I9*L$2/100+Mejoramiento!$J9+Mejoramiento!$K9*L$7/100) -> 61833387.57 | M80: =+$E80*(Mejoramiento!$I9*M$2/100+Mejoramiento!$J9+Mejoramiento!$K9*M$7/100) -> 62900918.2 | N80: =+$E80*(Mejoramiento!$I9*N$2/100+Mejoramiento!$J9+Mejoramiento!$K9*N$7/100) -> 63467819.16 | O80: =+$E80*(Mejoramiento!$I9*O$2/100+Mejoramiento!$J9+Mejoramiento!$K9*O$7/100) -> 64308790.24 | P80: =+$E80*(Mejoramiento!$I9*P$2/100+Mejoramiento!$J9+Mejoramiento!$K9*P$7/100) -> 65206157.69 | Q80: =+$E80*(Mejoramiento!$I9*Q$2/100+Mejoramiento!$J9+Mejoramiento!$K9*Q$7/100) -> 66174996.74 | R80: =+$E80*(Mejoramiento!$I9*R$2/100+Mejoramiento!$J9+Mejoramiento!$K9*R$7/100) -> 69005589.52 | S80: =+$E80*(Mejoramiento!$I9*S$2/100+Mejoramiento!$J9+Mejoramiento!$K9*S$7/100) -> 72130162.2 | T80: =+$E80*(Mejoramiento!$I9*T$2/100+Mejoramiento!$J9+Mejoramiento!$K9*T$7/100) -> 73467206.27 | U80: =+$E80*(Mejoramiento!$I9*U$2/100+Mejoramiento!$J9+Mejoramiento!$K9*U$7/100) -> 75252037.03 | V80: =+$E80*(Mejoramiento!$I9*V$2/100+Mejoramiento!$J9+Mejoramiento!$K9*V$7/100) -> 80375179.16 | W80: =+$E80*(Mejoramiento!$I9*W$2/100+Mejoramiento!$J9+Mejoramiento!$K9*W$7/100) -> 85166753.62 | X80: =+$E80*(Mejoramiento!$I9*X$2/100+Mejoramiento!$J9+Mejoramiento!$K9*X$7/100) -> 88884689.91 | Y80: =+$E80*(Mejoramiento!$I9*Y$2/100+Mejoramiento!$J9+Mejoramiento!$K9*Y$7/100) -> 93210892.01 | Z80: =+$E80*(Mejoramiento!$I9*Z$2/100+Mejoramiento!$J9+Mejoramiento!$K9*Z$7/100) -> 107252194.4 | AA80: =+$E80*(Mejoramiento!$I9*AA$2/100+Mejoramiento!$J9+Mejoramiento!$K9*AA$7/100) -> 110264966.2 | AB80: =+$E80*(Mejoramiento!$I9*AB$2/100+Mejoramiento!$J9+Mejoramiento!$K9*AB$7/100) -> 110795117.2 | AC80: =+$E80*(Mejoramiento!$I9*AC$2/100+Mejoramiento!$J9+Mejoramiento!$K9*AC$7/100) -> 112506730.5 | AD80: =+$E80*(Mejoramiento!$I9*AD$2/100+Mejoramiento!$J9+Mejoramiento!$K9*AD$7/100) -> 113125305.3 | AE80: =+$E80*(Mejoramiento!$I9*AE$2/100+Mejoramiento!$J9+Mejoramiento!$K9*AE$7/100) -> 116645493.5 | AF80: =+$E80*(Mejoramiento!$I9*AF$2/100+Mejoramiento!$J9+Mejoramiento!$K9*AF$7/100) -> 121318556.7 | AG80: =+$E80*(Mejoramiento!$I9*AG$2/100+Mejoramiento!$J9+Mejoramiento!$K9*AG$7/100) -> 610658.037
A81: 81 | B81: Tratamiento mecanizado pesado con aporte de balasto 1000 tn/km | E81: 21776000 | F81: =+$E81*(Mejoramiento!$I10*F$2/100+Mejoramiento!$J10+Mejoramiento!$K10*F$7/100) -> 22095573.3 | G81: =+$E81*(Mejoramiento!$I10*G$2/100+Mejoramiento!$J10+Mejoramiento!$K10*G$7/100) -> 22391955.22 | H81: =+$E81*(Mejoramiento!$I10*H$2/100+Mejoramiento!$J10+Mejoramiento!$K10*H$7/100) -> 22558362.63 | I81: =+$E81*(Mejoramiento!$I10*I$2/100+Mejoramiento!$J10+Mejoramiento!$K10*I$7/100) -> 22850478.12 | J81: =+$E81*(Mejoramiento!$I10*J$2/100+Mejoramiento!$J10+Mejoramiento!$K10*J$7/100) -> 23007348.58 | K81: =+$E81*(Mejoramiento!$I10*K$2/100+Mejoramiento!$J10+Mejoramiento!$K10*K$7/100) -> 23352529.07 | L81: =+$E81*(Mejoramiento!$I10*L$2/100+Mejoramiento!$J10+Mejoramiento!$K10*L$7/100) -> 24057656.22 | M81: =+$E81*(Mejoramiento!$I10*M$2/100+Mejoramiento!$J10+Mejoramiento!$K10*M$7/100) -> 24427573.59 | N81: =+$E81*(Mejoramiento!$I10*N$2/100+Mejoramiento!$J10+Mejoramiento!$K10*N$7/100) -> 24624014.34 | O81: =+$E81*(Mejoramiento!$I10*O$2/100+Mejoramiento!$J10+Mejoramiento!$K10*O$7/100) -> 24915425 | P81: =+$E81*(Mejoramiento!$I10*P$2/100+Mejoramiento!$J10+Mejoramiento!$K10*P$7/100) -> 25226377.95 | Q81: =+$E81*(Mejoramiento!$I10*Q$2/100+Mejoramiento!$J10+Mejoramiento!$K10*Q$7/100) -> 25562097.03 | R81: =+$E81*(Mejoramiento!$I10*R$2/100+Mejoramiento!$J10+Mejoramiento!$K10*R$7/100) -> 26550182.16 | S81: =+$E81*(Mejoramiento!$I10*S$2/100+Mejoramiento!$J10+Mejoramiento!$K10*S$7/100) -> 27639664.08 | T81: =+$E81*(Mejoramiento!$I10*T$2/100+Mejoramiento!$J10+Mejoramiento!$K10*T$7/100) -> 28108122.54 | U81: =+$E81*(Mejoramiento!$I10*U$2/100+Mejoramiento!$J10+Mejoramiento!$K10*U$7/100) -> 28773270.48 | V81: =+$E81*(Mejoramiento!$I10*V$2/100+Mejoramiento!$J10+Mejoramiento!$K10*V$7/100) -> 30548525.63 | W81: =+$E81*(Mejoramiento!$I10*W$2/100+Mejoramiento!$J10+Mejoramiento!$K10*W$7/100) -> 32208887 | X81: =+$E81*(Mejoramiento!$I10*X$2/100+Mejoramiento!$J10+Mejoramiento!$K10*X$7/100) -> 33498870.47 | Y81: =+$E81*(Mejoramiento!$I10*Y$2/100+Mejoramiento!$J10+Mejoramiento!$K10*Y$7/100) -> 35023651.9 | Z81: =+$E81*(Mejoramiento!$I10*Z$2/100+Mejoramiento!$J10+Mejoramiento!$K10*Z$7/100) -> 39910771.13 | AA81: =+$E81*(Mejoramiento!$I10*AA$2/100+Mejoramiento!$J10+Mejoramiento!$K10*AA$7/100) -> 40954747.38 | AB81: =+$E81*(Mejoramiento!$I10*AB$2/100+Mejoramiento!$J10+Mejoramiento!$K10*AB$7/100) -> 41172092.27 | AC81: =+$E81*(Mejoramiento!$I10*AC$2/100+Mejoramiento!$J10+Mejoramiento!$K10*AC$7/100) -> 41797107.69 | AD81: =+$E81*(Mejoramiento!$I10*AD$2/100+Mejoramiento!$J10+Mejoramiento!$K10*AD$7/100) -> 42013540.76 | AE81: =+$E81*(Mejoramiento!$I10*AE$2/100+Mejoramiento!$J10+Mejoramiento!$K10*AE$7/100) -> 43233345.34 | AF81: =+$E81*(Mejoramiento!$I10*AF$2/100+Mejoramiento!$J10+Mejoramiento!$K10*AF$7/100) -> 44869361.81 | AG81: =+$E81*(Mejoramiento!$I10*AG$2/100+Mejoramiento!$J10+Mejoramiento!$K10*AG$7/100) -> 2395360
A82: 82 | B82: Despunte de rieles | E82: 237.1 | F82: =+$E82*(Mejoramiento!$I11*F$2/100+Mejoramiento!$J11+Mejoramiento!$K11*F$7/100) -> 242.5169957 | G82: =+$E82*(Mejoramiento!$I11*G$2/100+Mejoramiento!$J11+Mejoramiento!$K11*G$7/100) -> 243.3609305 | H82: =+$E82*(Mejoramiento!$I11*H$2/100+Mejoramiento!$J11+Mejoramiento!$K11*H$7/100) -> 243.8347685 | I82: =+$E82*(Mejoramiento!$I11*I$2/100+Mejoramiento!$J11+Mejoramiento!$K11*I$7/100) -> 260.9860504 | J82: =+$E82*(Mejoramiento!$I11*J$2/100+Mejoramiento!$J11+Mejoramiento!$K11*J$7/100) -> 261.4327323 | K82: =+$E82*(Mejoramiento!$I11*K$2/100+Mejoramiento!$J11+Mejoramiento!$K11*K$7/100) -> 262.415619 | L82: =+$E82*(Mejoramiento!$I11*L$2/100+Mejoramiento!$J11+Mejoramiento!$K11*L$7/100) -> 282.0795888 | M82: =+$E82*(Mejoramiento!$I11*M$2/100+Mejoramiento!$J11+Mejoramiento!$K11*M$7/100) -> 283.1329126 | N82: =+$E82*(Mejoramiento!$I11*N$2/100+Mejoramiento!$J11+Mejoramiento!$K11*N$7/100) -> 283.6922692 | O82: =+$E82*(Mejoramiento!$I11*O$2/100+Mejoramiento!$J11+Mejoramiento!$K11*O$7/100) -> 284.5220486 | P82: =+$E82*(Mejoramiento!$I11*P$2/100+Mejoramiento!$J11+Mejoramiento!$K11*P$7/100) -> 285.4074738 | Q82: =+$E82*(Mejoramiento!$I11*Q$2/100+Mejoramiento!$J11+Mejoramiento!$K11*Q$7/100) -> 286.3634195 | R82: =+$E82*(Mejoramiento!$I11*R$2/100+Mejoramiento!$J11+Mejoramiento!$K11*R$7/100) -> 292.2038137 | S82: =+$E82*(Mejoramiento!$I11*S$2/100+Mejoramiento!$J11+Mejoramiento!$K11*S$7/100) -> 298.1354337 | T82: =+$E82*(Mejoramiento!$I11*T$2/100+Mejoramiento!$J11+Mejoramiento!$K11*T$7/100) -> 301.6233886 | U82: =+$E82*(Mejoramiento!$I11*U$2/100+Mejoramiento!$J11+Mejoramiento!$K11*U$7/100) -> 323.0387088 | V82: =+$E82*(Mejoramiento!$I11*V$2/100+Mejoramiento!$J11+Mejoramiento!$K11*V$7/100) -> 328.0936718 | W82: =+$E82*(Mejoramiento!$I11*W$2/100+Mejoramiento!$J11+Mejoramiento!$K11*W$7/100) -> 332.8214796 | X82: =+$E82*(Mejoramiento!$I11*X$2/100+Mejoramiento!$J11+Mejoramiento!$K11*X$7/100) -> 337.1872056 | Y82: =+$E82*(Mejoramiento!$I11*Y$2/100+Mejoramiento!$J11+Mejoramiento!$K11*Y$7/100) -> 352.2693529 | Z82: =+$E82*(Mejoramiento!$I11*Z$2/100+Mejoramiento!$J11+Mejoramiento!$K11*Z$7/100) -> 375.2073216 | AA82: =+$E82*(Mejoramiento!$I11*AA$2/100+Mejoramiento!$J11+Mejoramiento!$K11*AA$7/100) -> 378.1799992 | AB82: =+$E82*(Mejoramiento!$I11*AB$2/100+Mejoramiento!$J11+Mejoramiento!$K11*AB$7/100) -> 392.8681972 | AC82: =+$E82*(Mejoramiento!$I11*AC$2/100+Mejoramiento!$J11+Mejoramiento!$K11*AC$7/100) -> 407.995295 | AD82: =+$E82*(Mejoramiento!$I11*AD$2/100+Mejoramiento!$J11+Mejoramiento!$K11*AD$7/100) -> 409.4842306 | AE82: =+$E82*(Mejoramiento!$I11*AE$2/100+Mejoramiento!$J11+Mejoramiento!$K11*AE$7/100) -> 412.9575718 | AF82: =+$E82*(Mejoramiento!$I11*AF$2/100+Mejoramiento!$J11+Mejoramiento!$K11*AF$7/100) -> 424.6097083 | AG82: =+$E82*(Mejoramiento!$I11*AG$2/100+Mejoramiento!$J11+Mejoramiento!$K11*AG$7/100) -> 33.194
A83: 83 | B83: Soldadura Aluminotérmica* | E83: 1468.54 | F83: =+$E83*(Mejoramiento!$I12*F$2/100+Mejoramiento!$J12+Mejoramiento!$K12*F$7/100) -> 1502.330556 | G83: =+$E83*(Mejoramiento!$I12*G$2/100+Mejoramiento!$J12+Mejoramiento!$K12*G$7/100) -> 1505.815308 | H83: =+$E83*(Mejoramiento!$I12*H$2/100+Mejoramiento!$J12+Mejoramiento!$K12*H$7/100) -> 1507.771866 | I83: =+$E83*(Mejoramiento!$I12*I$2/100+Mejoramiento!$J12+Mejoramiento!$K12*I$7/100) -> 1619.953481 | J83: =+$E83*(Mejoramiento!$I12*J$2/100+Mejoramiento!$J12+Mejoramiento!$K12*J$7/100) -> 1621.797907 | K83: =+$E83*(Mejoramiento!$I12*K$2/100+Mejoramiento!$J12+Mejoramiento!$K12*K$7/100) -> 1625.856415 | L83: =+$E83*(Mejoramiento!$I12*L$2/100+Mejoramiento!$J12+Mejoramiento!$K12*L$7/100) -> 1751.801041 | M83: =+$E83*(Mejoramiento!$I12*M$2/100+Mejoramiento!$J12+Mejoramiento!$K12*M$7/100) -> 1756.150397 | N83: =+$E83*(Mejoramiento!$I12*N$2/100+Mejoramiento!$J12+Mejoramiento!$K12*N$7/100) -> 1758.460076 | O83: =+$E83*(Mejoramiento!$I12*O$2/100+Mejoramiento!$J12+Mejoramiento!$K12*O$7/100) -> 1761.886378 | P83: =+$E83*(Mejoramiento!$I12*P$2/100+Mejoramiento!$J12+Mejoramiento!$K12*P$7/100) -> 1765.542451 | Q83: =+$E83*(Mejoramiento!$I12*Q$2/100+Mejoramiento!$J12+Mejoramiento!$K12*Q$7/100) -> 1769.489715 | R83: =+$E83*(Mejoramiento!$I12*R$2/100+Mejoramiento!$J12+Mejoramiento!$K12*R$7/100) -> 1801.277157 | S83: =+$E83*(Mejoramiento!$I12*S$2/100+Mejoramiento!$J12+Mejoramiento!$K12*S$7/100) -> 1832.940738 | T83: =+$E83*(Mejoramiento!$I12*T$2/100+Mejoramiento!$J12+Mejoramiento!$K12*T$7/100) -> 1852.802419 | U83: =+$E83*(Mejoramiento!$I12*U$2/100+Mejoramiento!$J12+Mejoramiento!$K12*U$7/100) -> 1990.705911 | V83: =+$E83*(Mejoramiento!$I12*V$2/100+Mejoramiento!$J12+Mejoramiento!$K12*V$7/100) -> 2011.578722 | W83: =+$E83*(Mejoramiento!$I12*W$2/100+Mejoramiento!$J12+Mejoramiento!$K12*W$7/100) -> 2031.100653 | X83: =+$E83*(Mejoramiento!$I12*X$2/100+Mejoramiento!$J12+Mejoramiento!$K12*X$7/100) -> 2050.882732 | Y83: =+$E83*(Mejoramiento!$I12*Y$2/100+Mejoramiento!$J12+Mejoramiento!$K12*Y$7/100) -> 2140.380562 | Z83: =+$E83*(Mejoramiento!$I12*Z$2/100+Mejoramiento!$J12+Mejoramiento!$K12*Z$7/100) -> 2257.961498 | AA83: =+$E83*(Mejoramiento!$I12*AA$2/100+Mejoramiento!$J12+Mejoramiento!$K12*AA$7/100) -> 2270.236195 | AB83: =+$E83*(Mejoramiento!$I12*AB$2/100+Mejoramiento!$J12+Mejoramiento!$K12*AB$7/100) -> 2366.544339 | AC83: =+$E83*(Mejoramiento!$I12*AC$2/100+Mejoramiento!$J12+Mejoramiento!$K12*AC$7/100) -> 2462.83509 | AD83: =+$E83*(Mejoramiento!$I12*AD$2/100+Mejoramiento!$J12+Mejoramiento!$K12*AD$7/100) -> 2471.194858 | AE83: =+$E83*(Mejoramiento!$I12*AE$2/100+Mejoramiento!$J12+Mejoramiento!$K12*AE$7/100) -> 2485.536881 | AF83: =+$E83*(Mejoramiento!$I12*AF$2/100+Mejoramiento!$J12+Mejoramiento!$K12*AF$7/100) -> 2551.375644 | AG83: =+$E83*(Mejoramiento!$I12*AG$2/100+Mejoramiento!$J12+Mejoramiento!$K12*AG$7/100) -> 249.6518
A84: 84 | B84: Cambio de rieles | E84: 2893447.864 | F84: =+$E84*(Mejoramiento!$I13*F$2/100+Mejoramiento!$J13+Mejoramiento!$K13*F$7/100) -> 2974544.363 | G84: =+$E84*(Mejoramiento!$I13*G$2/100+Mejoramiento!$J13+Mejoramiento!$K13*G$7/100) -> 2976015.642 | H84: =+$E84*(Mejoramiento!$I13*H$2/100+Mejoramiento!$J13+Mejoramiento!$K13*H$7/100) -> 2976841.71 | I84: =+$E84*(Mejoramiento!$I13*I$2/100+Mejoramiento!$J13+Mejoramiento!$K13*I$7/100) -> 3266190.105 | J84: =+$E84*(Mejoramiento!$I13*J$2/100+Mejoramiento!$J13+Mejoramiento!$K13*J$7/100) -> 3266968.83 | K84: =+$E84*(Mejoramiento!$I13*K$2/100+Mejoramiento!$J13+Mejoramiento!$K13*K$7/100) -> 3268682.351 | L84: =+$E84*(Mejoramiento!$I13*L$2/100+Mejoramiento!$J13+Mejoramiento!$K13*L$7/100) -> 3583661.416 | M84: =+$E84*(Mejoramiento!$I13*M$2/100+Mejoramiento!$J13+Mejoramiento!$K13*M$7/100) -> 3585497.734 | N84: =+$E84*(Mejoramiento!$I13*N$2/100+Mejoramiento!$J13+Mejoramiento!$K13*N$7/100) -> 3586472.892 | O84: =+$E84*(Mejoramiento!$I13*O$2/100+Mejoramiento!$J13+Mejoramiento!$K13*O$7/100) -> 3587919.493 | P84: =+$E84*(Mejoramiento!$I13*P$2/100+Mejoramiento!$J13+Mejoramiento!$K13*P$7/100) -> 3589463.104 | Q84: =+$E84*(Mejoramiento!$I13*Q$2/100+Mejoramiento!$J13+Mejoramiento!$K13*Q$7/100) -> 3591129.658 | R84: =+$E84*(Mejoramiento!$I13*R$2/100+Mejoramiento!$J13+Mejoramiento!$K13*R$7/100) -> 3649432.679 | S84: =+$E84*(Mejoramiento!$I13*S$2/100+Mejoramiento!$J13+Mejoramiento!$K13*S$7/100) -> 3704754.926 | T84: =+$E84*(Mejoramiento!$I13*T$2/100+Mejoramiento!$J13+Mejoramiento!$K13*T$7/100) -> 3745080.628 | U84: =+$E84*(Mejoramiento!$I13*U$2/100+Mejoramiento!$J13+Mejoramiento!$K13*U$7/100) -> 4092765.732 | V84: =+$E84*(Mejoramiento!$I13*V$2/100+Mejoramiento!$J13+Mejoramiento!$K13*V$7/100) -> 4101578.332 | W84: =+$E84*(Mejoramiento!$I13*W$2/100+Mejoramiento!$J13+Mejoramiento!$K13*W$7/100) -> 4109820.584 | X84: =+$E84*(Mejoramiento!$I13*X$2/100+Mejoramiento!$J13+Mejoramiento!$K13*X$7/100) -> 4128441.823 | Y84: =+$E84*(Mejoramiento!$I13*Y$2/100+Mejoramiento!$J13+Mejoramiento!$K13*Y$7/100) -> 4325486.388 | Z84: =+$E84*(Mejoramiento!$I13*Z$2/100+Mejoramiento!$J13+Mejoramiento!$K13*Z$7/100) -> 4508909.022 | AA84: =+$E84*(Mejoramiento!$I13*AA$2/100+Mejoramiento!$J13+Mejoramiento!$K13*AA$7/100) -> 4514091.457 | AB84: =+$E84*(Mejoramiento!$I13*AB$2/100+Mejoramiento!$J13+Mejoramiento!$K13*AB$7/100) -> 4763372.456 | AC84: =+$E84*(Mejoramiento!$I13*AC$2/100+Mejoramiento!$J13+Mejoramiento!$K13*AC$7/100) -> 5001941.444 | AD84: =+$E84*(Mejoramiento!$I13*AD$2/100+Mejoramiento!$J13+Mejoramiento!$K13*AD$7/100) -> 5018410.62 | AE84: =+$E84*(Mejoramiento!$I13*AE$2/100+Mejoramiento!$J13+Mejoramiento!$K13*AE$7/100) -> 5024465.89 | AF84: =+$E84*(Mejoramiento!$I13*AF$2/100+Mejoramiento!$J13+Mejoramiento!$K13*AF$7/100) -> 5155964.867 | AG84: =+$E84*(Mejoramiento!$I13*AG$2/100+Mejoramiento!$J13+Mejoramiento!$K13*AG$7/100) -> 173606.8718
A85: 85 | B85: Obrador | E85: 1888929.718 | F85: =+$E85*(Mejoramiento!$I14*F$2/100+Mejoramiento!$J14+Mejoramiento!$K14*F$7/100) -> 1927141.714 | G85: =+$E85*(Mejoramiento!$I14*G$2/100+Mejoramiento!$J14+Mejoramiento!$K14*G$7/100) -> 1948208.57 | H85: =+$E85*(Mejoramiento!$I14*H$2/100+Mejoramiento!$J14+Mejoramiento!$K14*H$7/100) -> 1960036.826 | I85: =+$E85*(Mejoramiento!$I14*I$2/100+Mejoramiento!$J14+Mejoramiento!$K14*I$7/100) -> 2036912.439 | J85: =+$E85*(Mejoramiento!$I14*J$2/100+Mejoramiento!$J14+Mejoramiento!$K14*J$7/100) -> 2048062.807 | K85: =+$E85*(Mejoramiento!$I14*K$2/100+Mejoramiento!$J14+Mejoramiento!$K14*K$7/100) -> 2072598.271 | L85: =+$E85*(Mejoramiento!$I14*L$2/100+Mejoramiento!$J14+Mejoramiento!$K14*L$7/100) -> 2183426.671 | M85: =+$E85*(Mejoramiento!$I14*M$2/100+Mejoramiento!$J14+Mejoramiento!$K14*M$7/100) -> 2209720.436 | N85: =+$E85*(Mejoramiento!$I14*N$2/100+Mejoramiento!$J14+Mejoramiento!$K14*N$7/100) -> 2223683.464 | O85: =+$E85*(Mejoramiento!$I14*O$2/100+Mejoramiento!$J14+Mejoramiento!$K14*O$7/100) -> 2244396.963 | P85: =+$E85*(Mejoramiento!$I14*P$2/100+Mejoramiento!$J14+Mejoramiento!$K14*P$7/100) -> 2266499.531 | Q85: =+$E85*(Mejoramiento!$I14*Q$2/100+Mejoramiento!$J14+Mejoramiento!$K14*Q$7/100) -> 2290362.477 | R85: =+$E85*(Mejoramiento!$I14*R$2/100+Mejoramiento!$J14+Mejoramiento!$K14*R$7/100) -> 2371003.063 | S85: =+$E85*(Mejoramiento!$I14*S$2/100+Mejoramiento!$J14+Mejoramiento!$K14*S$7/100) -> 2458171.882 | T85: =+$E85*(Mejoramiento!$I14*T$2/100+Mejoramiento!$J14+Mejoramiento!$K14*T$7/100) -> 2498876.282 | U85: =+$E85*(Mejoramiento!$I14*U$2/100+Mejoramiento!$J14+Mejoramiento!$K14*U$7/100) -> 2613276.116 | V85: =+$E85*(Mejoramiento!$I14*V$2/100+Mejoramiento!$J14+Mejoramiento!$K14*V$7/100) -> 2739461.433 | W85: =+$E85*(Mejoramiento!$I14*W$2/100+Mejoramiento!$J14+Mejoramiento!$K14*W$7/100) -> 2857480.087 | X85: =+$E85*(Mejoramiento!$I14*X$2/100+Mejoramiento!$J14+Mejoramiento!$K14*X$7/100) -> 2951553.479 | Y85: =+$E85*(Mejoramiento!$I14*Y$2/100+Mejoramiento!$J14+Mejoramiento!$K14*Y$7/100) -> 3096864.262 | Z85: =+$E85*(Mejoramiento!$I14*Z$2/100+Mejoramiento!$J14+Mejoramiento!$K14*Z$7/100) -> 3475262.283 | AA85: =+$E85*(Mejoramiento!$I14*AA$2/100+Mejoramiento!$J14+Mejoramiento!$K14*AA$7/100) -> 3549468.221 | AB85: =+$E85*(Mejoramiento!$I14*AB$2/100+Mejoramiento!$J14+Mejoramiento!$K14*AB$7/100) -> 3613292.25 | AC85: =+$E85*(Mejoramiento!$I14*AC$2/100+Mejoramiento!$J14+Mejoramiento!$K14*AC$7/100) -> 3703611.318 | AD85: =+$E85*(Mejoramiento!$I14*AD$2/100+Mejoramiento!$J14+Mejoramiento!$K14*AD$7/100) -> 3721995.878 | AE85: =+$E85*(Mejoramiento!$I14*AE$2/100+Mejoramiento!$J14+Mejoramiento!$K14*AE$7/100) -> 3808699.71 | AF85: =+$E85*(Mejoramiento!$I14*AF$2/100+Mejoramiento!$J14+Mejoramiento!$K14*AF$7/100) -> 3949034.49 | AG85: =+$E85*(Mejoramiento!$I14*AG$2/100+Mejoramiento!$J14+Mejoramiento!$K14*AG$7/100) -> 0

Sheet Movilidad
B4: RUBROS | D4: En pesos | F4: En USD
D5: por ton-km | E5: % | F5: por ton-km | G5: %
B6: 1 | C6: COMBUSTIBLE | D6: =+((SUMPRODUCT(Ingreso_de_datos!$C$80:$C$82,Parametros!$L$27:$L$29)/Ingreso_de_datos!$C$6)*Parametros!$E$33*Recursos!$B$30)/Recursos!$B$9 ->  | E6: =+Movilidad!D6/$D$39 ->  | F6: =+Movilidad!D6/Parametros!$E$6 ->  | G6: =+F6/$F$39 -> 
B7: =1+B6 -> 2 | C7: LUBRICANTES | D7: =+((SUMPRODUCT(Ingreso_de_datos!$C$80:$C$82,Parametros!$L$30:$L$32)/Ingreso_de_datos!$C$6)*Parametros!$E$34*Recursos!$B$30)/Recursos!$B$9 ->  | E7: =+Movilidad!D7/$D$39 ->  | F7: =+Movilidad!D7/Parametros!$E$6 -> 
B8: =1+B7 -> 3 | C8: REPARACION Y MANTENIMIENTO DEL MATERIAL RODANTE | D8: =+D9+D10 ->  | E8: =+D8/$D$39 ->  | F8: =+D8/Parametros!$E$6 -> 
C9: Locomotora | D9: =+MatRod!$E$50*Parametros!$E$6/Recursos!$B$9 ->  | E9: =+D9/$D$39 ->  | F9: =+D9/Parametros!$E$6 -> 
C10: Vagones | D10: =+MatRod!$E$73*Parametros!$E$6/Recursos!$B$9 ->  | E10: =+D10/$D$39 ->  | F10: =+D10/Parametros!$E$6 -> 
B11: =1+B8 -> 4 | C11: CAE Material Rodante | D11: =+Movilidad!D12+D13 ->  | E11: =+D11/$D$39 ->  | F11: =+D11/Parametros!$E$6 -> 
C12: Locomotora | D12: =+F12*Parametros!E6 ->  | E12: =+Movilidad!D12/$D$39 ->  | F12: =+MatRod!$J$11*Recursos!$B$43/Recursos!$B$9 -> 
C13: Vagones | D13: =+F13*Parametros!E6 ->  | E13: =+D13/$D$39 ->  | F13: =+MatRod!$J$20*Recursos!$B$21/Recursos!$B$9 -> 
B14: =1+B11 -> 5 | C14: SALARIOS DEL PERSONAL | D14: =SUM(Movilidad!D15:D19) ->  | E14: =+D14/$D$39 ->  | F14: =+D14/Parametros!$E$6 -> 
C15: Conducción | D15: =+(Recursos!$B$58*Parametros!$E$35+Recursos!$B$59*AVERAGE(Parametros!$E$36:$E$37))/Recursos!$B$9 ->  | E15: =+Movilidad!D15/$D$39 ->  | F15: =+Movilidad!D15/Parametros!$E$6 -> 
C16: Tráfico | D16: =+(AVERAGE(Parametros!E38:E42)*Recursos!B61)/Recursos!B9 ->  | E16: =+Movilidad!D16/$D$39 ->  | F16: =+Movilidad!D16/Parametros!$E$6 -> 
C17: Mantenimiento de material rodante | D17: =+(SUMPRODUCT(MatRod!B83:B87,Parametros!E43:E47)*MatRod!B81)/Recursos!B9 ->  | E17: =+Movilidad!D17/$D$39 ->  | F17: =+Movilidad!D17/Parametros!$E$6 -> 
C18: Administración | D18: =+(AVERAGE(Parametros!E48:E49)*Recursos!B60)/Recursos!B9 ->  | E18: =+Movilidad!D18/$D$39 ->  | F18: =+Movilidad!D18/Parametros!$E$6 -> 
C19: Jerárquico | D19: =+Parametros!$E$64*(Movilidad!D6+Movilidad!D7+Movilidad!D8+Movilidad!D15+Movilidad!D16+Movilidad!D17+Movilidad!D18+Movilidad!D22+Movilidad!D21+Movilidad!D25+Movilidad!D28+Movilidad!D31+Movilidad!D32+Movilidad!D33+Movilidad!D20) ->  | E19: =+Movilidad!D19/$D$39 ->  | F19: =+Movilidad!D19/Parametros!$E$6 -> 
B20: =1+B14 -> 6 | C20: OTROS GASTOS DE PERSONAL | D20: =+SUM(D15:D18)*Parametros!E65 ->  | E20: =+D20/$D$39 ->  | F20: =+D20/Parametros!$E$6 -> 
B21: =+B20+1 -> 7 | C21: MOVILIDAD DEL PERSONAL DE A BORDO | D21: =+Parametros!$E$66*2*Parametros!$E$67*Recursos!$B$27/Recursos!$B$9 ->  | E21: =+Movilidad!D21/$D$39 ->  | F21: =+Movilidad!D21/Parametros!$E$6 -> 
B22: =+B21+1 -> 8 | C22: SEGUROS | D22: =SUM(D23:D24) ->  | E22: =+D22/$D$39 ->  | F22: =+D22/Parametros!$E$6 -> 
C23: Responsabilidad civil | D23: =+Recursos!$B$27*Parametros!$E$15*Parametros!$E$14/Recursos!$B$9 ->  | F23: =+D23/Parametros!$E$6 -> 
C24: Cauciones varias | D24: =+(Movilidad!D11+Movilidad!D30+Movilidad!D27)*Parametros!E16 ->  | F24: =+D24/Parametros!$E$6 -> 
B25: =+B22+1 -> 9 | C25: SEGURIDAD | D25: =+SUM(D15:D18)*Parametros!$E$13 ->  | F25: =+D25/Parametros!$E$6 -> 
B26: =1+B25 -> 10 | C26: MÁQUINAS y HERRAMIENTAS | D26: =+D27+D28 ->  | F26: =+D26/Parametros!$E$6 -> 
C27: CAE de máquinas y herramientas | D27: =+(PMT(Parametros!E5,Parametros!E139,Parametros!E137,(Parametros!E137)*-1*Parametros!E140,0)*-1)/Recursos!B9 ->  | F27: =+D27/Parametros!$E$6 -> 
C28: Reparación y mant. de máquinas y herramientas | D28: =+(Parametros!E138*Parametros!E137)/Recursos!B9 ->  | F28: =+D28/Parametros!$E$6 -> 
B29: =1+B26 -> 11 | C29: INMUEBLES | D29: =+D30+D31 ->  | F29: =+D29/Parametros!$E$6 -> 
C30: CAE de inmuebles | D30: =+(PMT(Parametros!E5,Parametros!E157,Parametros!E145+Parametros!E144,(Parametros!E144+Parametros!E145)*-1*Parametros!E158,0)*-1)/Recursos!B9 ->  | F30: =+D30/Parametros!$E$6 -> 
C31: Reparación y mant. de inmuebles | D31: =+((Parametros!$E$144+Parametros!$E$145)*Parametros!$E$155+Parametros!$E$146*Parametros!$E$156)/Recursos!$B$9 ->  | F31: =+D31/Parametros!$E$6 -> 
B32: =1+B29 -> 12 | C32: IMPUESTOS Y TASAS MUNICIPALES | D32: =+SUM(Parametros!E144:F146)*(Parametros!E11+Parametros!E12)*Parametros!E10/Recursos!B9 ->  | F32: =+D32/Parametros!$E$6 -> 
B33: =1+B32 -> 13 | C33: PEAJES | D33: 0 | F33: =+D33/Parametros!$E$6 -> 0
B34: =1+B33 -> 14 | C34: GASTOS GENERALES | D34: =+(Movilidad!D6+Movilidad!D7+D8+D11+D22+D14+D20+Movilidad!D21+D25+D26+D29+D32+D33)*Parametros!$E$17/(1-Parametros!$E$17-Parametros!$E$9) ->  | F34: =+D34/Parametros!$E$6 -> 
C35: COSTO TOTAL SIN IMPUESTOS | D35: =+Movilidad!D6+Movilidad!D7+D8+D11+D22+D14+D20+Movilidad!D21+D25+D26+D29+D32+D33+D34 ->  | F35: =+D35/Parametros!$E$6 -> 
B36: =1+B34 -> 15 | C36: IMPUESTOS NACIONALES Y PROVINCIALES | D36: =SUM(D37:D38) ->  | F36: =+D36/Parametros!$E$6 -> 
C37: Impuesto a los créditos y débitos bancarios | D37: =+D35*(Parametros!E7+Parametros!E8) ->  | F37: =+D37/Parametros!$E$6 -> 
C38: Impuesto a los Ingresos Brutos | D38: =+(Movilidad!D6+Movilidad!D7+D8+D11+D22+D14+D20+Movilidad!D21+D25+D26+D29+D32+D33)*Parametros!$E$9/(1-Parametros!$E$17-Parametros!$E$9) ->  | F38: =+D38/Parametros!$E$6 -> 
C39: COSTO TOTAL POR TONELADA - KILOMETRO | D39: =+D36+D35 ->  | F39: =+D39/Parametros!$E$6 -> 

Sheet Recursos
A4: CONCEPTO | B4: VALOR | C4: UNIDAD
A5: Carga total | B5: =+B9/B8 ->  | C5: ton
A6: Carga en sentido A | B6: =+B5/(1+Ingreso_de_datos!$C$16/100) ->  | C6: ton
A7: Carga en sentido B | B7: =+B5-B6 ->  | C7: ton
A8: Distancia de transporte | B8: =+Ingreso_de_datos!C7 -> 0 | C8: km
A9: Unidades de tráfico (UDT) | B9: =+Ingreso_de_datos!C49 -> 0 | C9: ton-km
A10: Carga neta por vagón | B10: =+Parametros!E18 ->  | C10: ton
A11: Vagones cargados | B11: =+B5/B10 ->  | C11: Nro.
A12: Factor de estacionalidad - mes pico | B12: =+Parametros!E19 -> 1.15 | C12: Nro.
A13: Vagones cargados mes pico | B13: =+B11/12*B12 ->  | C13: Nro.
A14: Velocidad de circulación | B14: =+Ingreso_de_datos!C14 -> 0 | C14: km / h
A15: Tiempo medio de viaje | B15: =+B8/B14 ->  | C15: horas
A16: Espera en origen | B16: 106.0263024 | C16: horas | D16: =+IF(Ingreso_de_datos!A63>1,"LOS VALORES SÓLO APLICAN SI SE ELIGE EL CICLO DE ROTACIÓN DE VAGONES POR DEFECTO",0) -> 0
A17: Espera en destino | B17: =+B16 -> 106.0263024 | C17: horas
A18: Ciclo rotación de vagones | B18: =+(2*B15+B16*ParaGraficos!$K$112+B17*ParaGraficos!$K$112)/24 ->  | C18: días | H18: =+(2*B15+B16*ParaGraficos!$K$112+B17*ParaGraficos!$K$112)/24 ->  | I18: Por defecto
A19: Vagones en circulación necesarios | B19: =+B13*Ingreso_de_datos!C63*12/365 ->  | C19: Nro. | H19: 13 | I19: Global
A20: Vagones de reserva/en taller | B20: 0.1 | C20: % | H20: =(+Ingreso_de_datos!C64+Ingreso_de_datos!C65+Recursos!B15)/24 ->  | I20: Personalizado
A21: Total vagones necesarios | B21: =(1+B20)*B19 ->  | C21: Nro. | H21: 40 | I21: Espera Origen
A22: Vagones por tren | B22: =+Ingreso_de_datos!C15 -> 40 | C22: Nro. | H22: 102 | I22: Espera Destino
A23: Trenes anuales cargados en sentido A | B23: =+(B11/B22)/(1+Ingreso_de_datos!$C$16/100) ->  | C23: Nro.
A24: Trenes anuales cargados en sentido B | B24: =+(B11/B22)-B23 ->  | C24: Nro.
A25: Trenes anuales cargados en ambos sentidos | B25: =+B24+B23 ->  | C25: Nro.
A26: Trenes anuales vacíos en ambos sentidos | B26: =+B23-B24 ->  | C26: Nro.
A27: Trenes anuales totales en ambos sentidos | B27: =+B26+B25 ->  | C27: Nro.
A28: Recorrido anual de trenes | B28: =+B27*B8 ->  | C28: km
A29: Recorrido extra de locomotoras respecto a trenes | B29: =+Parametros!E20 -> 0.03 | C29: %
A30: Recorrido anual de locomotoras | B30: =(1+B29)*B28 ->  | C30: km
A31: Recorrido anual por locomotora | B31: =+B30/B43 ->  | C31: km
A32: Recorrido anual de vagones | B32: =+B22*B28 ->  | C32: km
A33: Recorrido anual por vagon | B33: =+B32/B21 ->  | C33: km
A34: Total trenes mes pico | B34: =+B27/12*B12 ->  | C34: Nro.
A35: Total trenes diarios de mes pico | B35: =+B34*12/365 ->  | C35: Nro.
A36: Locomotoras por tren | B36: =+SUMPRODUCT(Parametros!E24:E26,Ingreso_de_datos!C80:C82)/SUM(Ingreso_de_datos!C80:C82) ->  | C36: Nro.
A37: Tiempo de viaje | B37: =+B15 ->  | C37: horas
A38: Espera en origen de locomotoras | B38: =+Parametros!E21 -> 36 | C38: horas
A39: Espera en destino de locomotoras | B39: =+Parametros!E22 -> 36 | C39: horas
A40: Ciclo rotación de lococomotoras | B40: =+(2*B37+B38+B39)/24 ->  | C40: días
A41: Locs en circulación | B41: =+B34*B36/2*B40*12/365 ->  | C41: Nro.
A42: Locs de reserva/en taller | B42: 0.1 | C42: %
A43: Total locomotoras necesarias | B43: =(1+B42)*B41 ->  | C43: Nro.
A44: Tiempo extra de locomotoras respecto a trenes | B44: =+Parametros!E20 -> 0.03 | C44: %
A45: Tiempo anual de locomotoras de línea | B45: =(1+B44)*B37*B27 ->  | C45: horas
A46: Jornadas anuales por agente | B46: =+Parametros!$E$50 -> 270 | C46: días
A47: Tiempo diario por agente | B47: =+Parametros!$E$51 -> 8 | C47: horas
A48: Factor de aprovechamiento | B48: =+Parametros!$E$52 -> 0.75 | C48: Nro.
A49: Tiempo anual neto por agente | B49: =+B46*B47*B48 -> 1620 | C49: horas
A50: Conductores de línea necesarios | B50: =B45/B49 ->  | C50: Nro.
A51: Tiempo de maniobras por tren | B51: =+Parametros!E23 -> 2 | C51: horas
A52: Tiempo anual de locomotoras de maniobras | B52: =+B51*B27 ->  | C52: horas
A53: Jornadas anuales por agente | B53: =+Parametros!$E$50 -> 270 | C53: días
A54: Tiempo diario por agente | B54: =+Parametros!$E$51 -> 8 | C54: horas
A55: Factor de aprovechamiento | B55: =+Parametros!$E$53 -> 0.9 | C55: Nro.
A56: Tiempo anual neto por agente | B56: =+B53*B54*B55 -> 1944 | C56: horas
A57: Conductores de maniobras necesarios | B57: =B52/B56 ->  | C57: Nro.
A58: Total conductores necesarios | B58: =+B50+B57 ->  | C58: Nro.
A59: Total ayudantes necesarios | B59: =+B58 ->  | C59: Nro.
A60: Total personal de administración | B60: =+(Ingreso_de_datos!C45/Parametros!E61)*Parametros!E60 -> 0 | C60: Nro.
A61: Total personal de tráfico | B61: =+(Ingreso_de_datos!C6/Parametros!E63)*Parametros!E62 -> 0 | C61: Nro.

Sheet MatRod
A4: LOCOMOTORAS | B4: =+Parametros!H72 -> Locomotora GT-22 CW Remanufacturada - 2500 HP - Motor EMD-12-645E3 | C4: =+Parametros!H73 -> Locomotora GT-23 CW Remanufacturada - 2200 HP - Motor EMD-16-645E | D4: =+Parametros!H74 -> Locomotora GT-22 C3 Nueva - 2500 HP - Motor 12-645E3 | E4: =+Parametros!H75 -> Locomotora NVIROMOTIVE 3GS24CW - 2400 HP - Motor Cummins QSK19 | F4: =+Parametros!H76 -> Locomotora NVIROMOTIVE 2GS16CW - 1600 HP - Motor Cummins QSK19 | G4: =+Parametros!H77 -> Locomotora Remanufacturada 1500 HP - Motor EMD 12-645E | H4: =+Parametros!H78 -> Locomotora GP-9 - 1750 HP - Motor EMD 16-567C | I4: =+Parametros!H79 -> Locomotora GP40-2 - 3000 HP - Motor EMD 16-645E3 B | J4: TOTAL LOCOMOTORAS
A5: Origen | B5: Croacia | C5: Croacia | D5: USA | E5: USA | F5: USA | G5: Mexico | H5: Mexico | I5: Mexico
A6: Valor u$s | B6: =+Parametros!E72 -> 1975000 | C6: =+Parametros!E73 -> 1550000 | D6: =+Parametros!E74 -> 2750000 | E6: =+Parametros!E75 -> 2750000 | F6: =+Parametros!E76 -> 2450000 | G6: =+Parametros!E77 -> 960000 | H6: =+Parametros!E78 -> 540000 | I6: =+Parametros!E79 -> 660000
A7: Tasa de descuento | B7: =+Parametros!$E$5 -> 0.05 | C7: =+Parametros!$E$5 -> 0.05 | D7: =+Parametros!$E$5 -> 0.05 | E7: =+Parametros!$E$5 -> 0.05 | F7: =+Parametros!$E$5 -> 0.05 | G7: =+Parametros!$E$5 -> 0.05 | H7: =+Parametros!$E$5 -> 0.05 | I7: =+Parametros!$E$5 -> 0.05
A8: Vida útil | B8: =+Parametros!$E$68 -> 30 | C8: =+B8 -> 30 | D8: 30 | E8: 30 | F8: 30 | G8: 30 | H8: 30 | I8: 30
A9: Valor residual % | B9: =+Parametros!E70 -> 0.1 | C9: 0.1 | D9: 0.1 | E9: 0.1 | F9: 0.1 | G9: 0.1 | H9: 0.1 | I9: 0.1
A10: Valor residual | B10: =+B9*MatRod!B6*-1 -> -197500 | C10: =+C9*MatRod!C6*-1 -> -155000 | D10: =+D9*MatRod!D6*-1 -> -275000 | E10: =+E9*MatRod!E6*-1 -> -275000 | F10: =+F9*MatRod!F6*-1 -> -245000 | G10: =+G9*MatRod!G6*-1 -> -96000 | H10: =+H9*MatRod!H6*-1 -> -54000 | I10: =+I9*MatRod!I6*-1 -> -66000
A11: CAE | B11: =+IFERROR(PMT(B7,B8,MatRod!B6,B10,0)*-1,0) -> 125503.9259 | C11: =+IFERROR(PMT(C7,C8,MatRod!C6,C10,0)*-1,0) -> 98496.75194 | D11: =+IFERROR(PMT(D7,D8,MatRod!D6,D10,0)*-1,0) -> 174752.3018 | E11: =+IFERROR(PMT(E7,E8,MatRod!E6,E10,0)*-1,0) -> 174752.3018 | F11: =+IFERROR(PMT(F7,F8,MatRod!F6,F10,0)*-1,0) -> 155688.4144 | G11: =+IFERROR(PMT(G7,G8,MatRod!G6,G10,0)*-1,0) -> 61004.43991 | H11: =+IFERROR(PMT(H7,H8,MatRod!H6,H10,0)*-1,0) -> 34314.99745 | I11: =+IFERROR(PMT(I7,I8,MatRod!I6,I10,0)*-1,0) -> 41940.55244 | J11: =+SUMPRODUCT(B11:I11,MatRod!B12:I12) -> 111523.7417
A12: % | B12: =+Parametros!E80 -> 0.2 | C12: =+Parametros!E81 -> 0.2 | D12: =+Parametros!E82 -> 0.2 | E12: =+Parametros!E83 -> 0.1 | F12: =+Parametros!E84 -> 0 | G12: =+Parametros!E85 -> 0.15 | H12: =+Parametros!E86 -> 0.15 | I12: =+Parametros!E87 -> 0
A14: VAGONES | B14: Refrigerado | C14: Tolva grano | D14: Tolva minero | E14: Tanque | F14: PC - Plataforma | G14: Varios | H14: Vagón 7 | I14: Vagón 8 | J14: TOTAL VAGONES
A15: Valor u$s | B15: =+Parametros!E88 -> 150000 | C15: =+Parametros!E89 -> 129376.3333 | D15: =+Parametros!E90 -> 117913.6667 | E15: =+Parametros!E91 -> 130000 | F15: =+Parametros!E92 -> 107359.5 | G15: =+Parametros!E93 -> 126162.375 | H15: =+Parametros!E94 -> 0 | I15: =+Parametros!E95 -> 0
A16: Tasa de descuento | B16: =+Parametros!$E$5 -> 0.05 | C16: =+Parametros!$E$5 -> 0.05 | D16: =+Parametros!$E$5 -> 0.05 | E16: =+Parametros!$E$5 -> 0.05 | F16: =+Parametros!$E$5 -> 0.05 | G16: =+Parametros!$E$5 -> 0.05 | H16: =+Parametros!$E$5 -> 0.05 | I16: =+Parametros!$E$5 -> 0.05
A17: Vida útil | B17: 50 | C17: =+B17 -> 50 | D17: 50 | E17: 50 | F17: 50 | G17: 50 | H17: 50 | I17: 50
A18: Valor residual % | B18: =+Parametros!E71 -> 0.1 | C18: 0.1 | D18: 0.1 | E18: 0.1 | F18: 0.1 | G18: 0.1 | H18: 0.1 | I18: 0.1
A19: Valor residual | B19: =+B18*B15*-1 -> -15000 | C19: -12937.63333 | D19: -11791.36667 | E19: -13000 | F19: -10735.95 | G19: -12616.2375 | H19: 0 | I19: 0
A20: CAE | B20: =+IFERROR(PMT(B16,B17,B15,B19,0)*-1,0) -> 8144.859291 | C20: =+IFERROR(PMT(C16,C17,C15,C19,0)*-1,0) -> 7025.013537 | D20: 6402.60149 | E20: 7058.878052 | F20: 5829.52014 | G20: 6850.498614 | H20: 0 | I20: 0 | J20: =+SUMPRODUCT(B20:I20,B21:I21) -> 
A21: Va | B21: =+H27 ->  | C21: =+C27 ->  | D21: =+E27+D27 ->  | E21: =+G27 ->  | F21: =+B27 ->  | G21: =+F27 ->  | H21: =+G27 ->  | I21: =+H27 -> 
A22: Recorrido anual por vagón | B22: =+Parametros!E112 -> 25000 | C22: =+Parametros!E113 -> 40380.35928 | D22: =+Parametros!E114 -> 31555.07435 | E22: =+Parametros!E115 -> 21412.04594 | F22: =+Parametros!E116 -> 30726.74755 | G22: =+Parametros!E117 -> 28066.74774 | H22: =+Parametros!E118 -> 0 | I22: =+Parametros!E119 -> 0
A23: Carga máxima neta (Ton) | B23: =+MIN(Ingreso_de_datos!$C$13*4-Parametros!E104,Parametros!E96-Parametros!E104) -> -30 | C23: =+MIN(Ingreso_de_datos!$C$13*4-Parametros!E105,Parametros!E97-Parametros!E105) -> -23.9 | D23: =+MIN(Ingreso_de_datos!$C$13*4-Parametros!E106,Parametros!E98-Parametros!E106) -> -21.6 | E23: =+MIN(Ingreso_de_datos!$C$13*4-Parametros!E107,Parametros!E99-Parametros!E107) -> -27 | F23: =+MIN(Ingreso_de_datos!$C$13*4-Parametros!E108,Parametros!E100-Parametros!E108) -> -19.8 | G23: =+MIN(Ingreso_de_datos!$C$13*4-Parametros!E109,Parametros!E101-Parametros!E109) -> -30 | H23: =+MIN(Ingreso_de_datos!$C$13*4-Parametros!E110,Parametros!E102-Parametros!E110) -> 0 | I23: =+MIN(Ingreso_de_datos!$C$13*4-Parametros!E111,Parametros!E103-Parametros!E111) -> 0
A25: Producto | B25: =+Ingreso_de_datos!B83 -> Industrializados | C25: =+Ingreso_de_datos!B84 -> Granos | D25: =+Ingreso_de_datos!B85 -> Semiterminados | E25: =+Ingreso_de_datos!B86 -> Mineria | F25: =+Ingreso_de_datos!B87 -> Regionales | G25: =+Ingreso_de_datos!B88 -> Combustible | H25: =+Ingreso_de_datos!B89 -> Carnes
A26: Corresponde | B26: =+Parametros!E122 -> PC - Plataforma | C26: =+Parametros!E123 -> Tolva grano | D26: =+Parametros!E124 -> Tolva minero | E26: =+Parametros!E125 -> Tolva minero | F26: =+Parametros!E126 -> Varios | G26: =+Parametros!E127 -> Tanque | H26: =+Parametros!E128 -> Refrigerado
A27: % | B27: =+Ingreso_de_datos!C83/SUM(Ingreso_de_datos!$C$83:$C$89) ->  | C27: =+Ingreso_de_datos!C84/SUM(Ingreso_de_datos!$C$83:$C$89) ->  | D27: =+Ingreso_de_datos!C85/SUM(Ingreso_de_datos!$C$83:$C$89) ->  | E27: =+Ingreso_de_datos!C86/SUM(Ingreso_de_datos!$C$83:$C$89) ->  | F27: =+Ingreso_de_datos!C87/SUM(Ingreso_de_datos!$C$83:$C$89) ->  | G27: =+Ingreso_de_datos!C88/SUM(Ingreso_de_datos!$C$83:$C$89) ->  | H27: =+Ingreso_de_datos!C89/SUM(Ingreso_de_datos!$C$83:$C$89) -> 
A29: MANTENIMIENTO DE LOCOMOTORAS
A30: PREVENTIVO
A31: KILOMETRAJE ANUAL | B31: =+Recursos!B30 -> 
A32: KILOMETRAJE x CICLO | B32: =+Parametros!E129 -> 2400000
A33: CICLOS | B33: =B31/B32 -> 
A35: Intervención | B35: Por ciclo | C35: Anuales | D35: Materiales x intervencion u$s | E35: Materiales AÑO | F35: Horas hombre x intervencion con factor | G35: Horas hombre año | H35: Horas hombre x intervencion
A36: Alistamiento | B36: - | C36: =+Recursos!B27 ->  | D36: 13.33615431 | E36: =+C36*D36 ->  | F36: =H36/Parametros!$E$54 -> 3 | G36: =+C36*F36 ->  | H36: 2.4
A37: E x CICLO | B37: =12*12 -> 144 | C37: =B37*B33 ->  | D37: 147.080292 | E37: =+C37*D37 ->  | F37: =H37/Parametros!$E$54 -> 40 | H37: 32
A38: A x CICLO | B38: =8*12 -> 96 | C38: =B38*B33 ->  | D38: 203.649635 | E38: =+C38*D38 ->  | F38: =H38/Parametros!$E$54 -> 80 | H38: 64
A39: AB x CICLO | B39: =2*12 -> 24 | C39: =B39*B33 ->  | D39: 192.3357664 | E39: =+C39*D39 ->  | F39: =H39/Parametros!$E$54 -> 160 | H39: 128
A40: ABC x CICLO | B40: 12 | C40: =B40*B33 ->  | D40: 365.8150852 | E40: =+C40*D40 ->  | F40: =H40/Parametros!$E$54 -> 240 | H40: 192
A41: N1-11 x CICLO | B41: 11 | C41: =B41*B33 ->  | D41: 54306.56934 | E41: =+D41*C41 ->  | F41: =H41/Parametros!$E$54 -> 2973.625 | H41: =+(1828.9+200+(350)) -> 2378.9
A42: N12 x CICLO | B42: 1 | C42: =B42*B33 ->  | D42: 622871.0462 | E42: =+D42*C42 ->  | F42: =H42/Parametros!$E$54 -> 3680.025 | H42: =+(2764.02+180) -> 2944.02
A44: Total Materiales año preventivo | B44: =SUM(E36:E42) ->  | E44: TOTAL MATERIALES LOCOMOTORAS | F44: TOTAL HORAS HOMBRE AÑO LOCOMOTORAS
A45: Total Horas Hombre año preventivo | B45: =SUM(G36:G42) -> 
A47: ACCIDENTAL/CORRECTIVO
A48: Factor accidental con via SIN OBRA | B48: =+Parametros!E130 -> 0.2
A49: Factor accidental con via CON OBRA | B49: =+Parametros!E131 -> 0.05
A50: Materiales respecto a preventivo | B50: =+B48-(B48-B49)*SUM(Ingreso_de_datos!C19:C22) -> 0.2 | E50: =+B51+B44 ->  | F50: =+B53+B45 -> 
A51: Total Materiales año accidental | B51: =+B50*B44 -> 
A52: Horas Hombre respecto a preventivo | B52: =+Parametros!E132 -> 0.35
A53: Total Horas Hombre año accidental | B53: =+B52*B45 -> 
A55: MANTENIMIENTO DE VAGONES
A56: PREVENTIVO
A57: UNIDADES | B57: =+Recursos!B21 -> 
A58: AÑOS x CICLO | B58: =+Parametros!E133 -> 12
A59: CICLOS | B59: =B57/B58 -> 
A61: Intervención | B61: Por ciclo | C61: Anuales | D61: Materiales x intervencion u$s | E61: Materiales AÑO | F61: Horas hombre x intervencion con factor | G61: Horas hombre año | H61: Horas hombre x intervencion
A62: AV x CICLO | B62: 6 | C62: =+B62*$B$59 ->  | D62: 25.2676399 | E62: =+D62*C62 ->  | F62: =H62/Parametros!$E$54 -> 34.75 | G62: =+F62*C62 ->  | H62: 27.8
A63: BV x CICLO | B63: 4 | C63: =+B63*$B$59 ->  | D63: 33.94160584 | E63: =+D63*C63 ->  | F63: =H63/Parametros!$E$54 -> 39.2625 | G63: =+F63*C63 ->  | H63: 31.41
A64: RA x CICLO | B64: 1 | C64: =+B64*$B$59 ->  | D64: 9352.798054 | E64: =+D64*C64 ->  | F64: =H64/Parametros!$E$54 -> 625 | G64: =+F64*C64 ->  | H64: 500
A65: RB x CICLO | B65: 1 | C65: =+B65*$B$59 ->  | D65: 10257.90754 | E65: =+D65*C65 ->  | F65: =H65/Parametros!$E$54 -> 750 | G65: =+F65*C65 ->  | H65: 600
A67: Total Materiales año preventivo | B67: =SUM(E62:E65) ->  | E67: TOTAL MATERIALES VAGONES | F67: TOTAL HORAS HOMBRE AÑO VAGONES
A68: Total Horas Hombre año preventivo | B68: =SUM(G62:G65) -> 
A70: ACCIDENTAL/CORRECTIVO
A71: Factor accidental con via SIN OBRA | B71: =+B48 -> 0.2
A72: Factor accidental con via CON OBRA | B72: =+B49 -> 0.05
A73: Factor respecto a preventivo | B73: =+B50 -> 0.2 | E73: =+B74+B67 ->  | F73: =+B76+B68 -> 
A74: Total Materiales año accidental | B74: =+B73*B67 -> 
A75: Horas Hombre respecto a preventivo | B75: =+Parametros!E134 -> 0.25
A76: Total Horas Hombre año accidental | B76: =+B75*B68 -> 
A78: Horas/mes por trabajador de taller | B78: =+Parametros!E135 -> 180
A79: Trabajadores taller de locomotoras | B79: =+(F50/12)/$B$78 -> 
A80: Trabajadores taller de vagones | B80: =+(F73/12)/$B$78 -> 
A81: Total trabajadores de taller | B81: =+B80+B79 -> 
A83: Peon general | B83: =+Parametros!E55 -> 0.25 | C83: Proporción de trabajadores en taller
A84: Ayudante taller/medio oficial de taller/ayudante mecanica (fpsa) | B84: =+Parametros!E56 -> 0.3
A85: Oficial C de taller | B85: =+Parametros!E57 -> 0.25
A86: Oficial B mecánico/electricista | B86: =+Parametros!E58 -> 0.15
A87: Oficial A electromecánico | B87: =+Parametros!E59 -> 0.05

Sheet Mantenimiento
A4: Toneladas Ficticias | B4: =+(B5*B7)/(18*IF(Ingreso_de_datos!C5="angosta",Mantenimiento!B9,Mantenimiento!B8)) -> 
A5: Toneladas brutas remolcadas diarias | B5: =+(Recursos!B5/365)*Mantenimiento!B6 -> 
A6: Relación peso bruto / neto | B6: 1.5
A7: Toneladas por eje | B7: =+Ingreso_de_datos!C13 -> 0
A8: Diametro de las ruedas de los vagones (trocha ancha y media) | B8: 0.94
A9: Diametro de las ruedas de los vagones (trocha angosta) | B9: 0.68
A11: Mas de 25 mil TF diarias | B11: 4 | C11: cantidad de años que dura el ciclo | D11: Durmientes de madera | E11: QUEDA
A12: Entre 6 y 25 mil TF diarias | B12: 6 | C12: años del ciclo | E12: =+IF($B$4>25000,B11,IF($B$4>6000,B12,B13)) -> 
A13: Menos de 6 mil TF diarias | B13: 8 | C13: años del ciclo
A14: Mas de 25 mil TF diarias | B14: =+B11 -> 4 | C14: cantidad de años que dura el ciclo | D14: Durmientes de hormigón | E14: QUEDA
A15: Entre 6 y 25 mil TF diarias | B15: =+B12 -> 6 | C15: años del ciclo | E15: =+IF($B$4>25000,B14,IF($B$4>6000,B15,B16)) -> 
A16: Menos de 6 mil TF diarias | B16: =+B13 -> 8 | C16: años del ciclo
A18: Durmientes | B18: Personal | C18: Mantenimiento | D18: Mecanizado | E18: Codigo | F18: TOTAL AÑO $ | G18: TOTAL AÑO U$S | H18: TOTAL ANUAL
A19: Madera | B19: Propio | C19: Manual | D19: No | E19: MA1 | F19: =+D41 ->  | G19: =+F19/Parametros!$E$6 -> 
A20: Madera | B20: Contratado | C20: Manual | D20: No | E20: MA2 | F20: =+D54 ->  | G20: =+F20/Parametros!$E$6 -> 
A21: Madera | B21: Propio | C21: Trabajos previos con personal propio | D21: Pesado | E21: ME1 | F21: =+D89 ->  | G21: =+F21/Parametros!$E$6 -> 
A22: Hormigon | B22: Propio | C22: Trabajos previos con personal propio | D22: Pesado | E22: ME2 | F22: =+D121 ->  | G22: =+F22/Parametros!$E$6 ->  | H22: =SUM(G19:G22) -> 
A24: MA1 | H24: MA1 Incluye
A25: Categoría | B25: Cantidad | C25: $ unitario | D25: $ total | H25: Depuración parcial de balasto
A26: Capataz de vía | B26: =+$I$33 ->  | C26: =+Parametros!E208 -> 81266.51 | D26: =+C26*B26*12 ->  | E26: Unitario es Mensual - Bruto + Cargas Sociales + ART + SAC (con 10 años de antigüedad) | H26: Reemplazo parcial de durmientes
A27: Subcapataz | B27: =+$I$33 ->  | C27: =+Parametros!E209 -> 60933.35 | D27: =+C27*B27*12 ->  | H27: Tratamiento de fijaciones
A28: Oficiales especializados | B28: =+$I$33*2 ->  | C28: =+Parametros!E210 -> 50366.3 | H28: Aporte de piedra de balasto
A29: Operarios de vía | B29: =+$I$33*16 ->  | C29: =+Parametros!E211 -> 42562.6 | H29: Tratamiento de juntas mecánicas
D30: =SUM(D26:D29) ->  | H30: Nivelación, alineación y compactación manual de vía
A31: Camión volcador (alquiler) | B31: =+I33/5 ->  | C31: =+Parametros!E216*Parametros!$E$6 -> 348863.9921 | E31: Unitario es Mensual | H31: Otros trabajos menores
A32: Bus para el transporte del personal (alquiler) | B32: =+$I$33 ->  | C32: =+Parametros!E217*Parametros!$E$6 -> 173273.643 | H32: Producción media por cuadrilla (kms por mes ) | I32: =+Parametros!E204 -> 0.4
D33: =SUM(D31:D32) ->  | H33: Cantidad de cuadrillas | I33: =+I35/I32/12 -> 
A34: Durmientes 20% | B34: =4822/14*$I$35 ->  | C34: =+Parametros!E218*Parametros!$E$6 -> 1654.496 | D34: =+C34*B34 ->  | H34: Ciclo de mantenimiento (años) | I34: =+E12 -> 
A35: Balasto 500 tn/km | B35: =500*I35 ->  | C35: =+Parametros!E219*Parametros!$E$6 -> 1198.910145 | H35: Produccion anual (kms) | I35: =+Ingreso_de_datos!$C$6*Ingreso_de_datos!$C$39/Mantenimiento!I34 -> 
A36: Fijaciones 40% | B36: =38573/14*I35 ->  | C36: =+Parametros!E220*Parametros!$E$6 -> 53.95095652
A37: Eclisas (par) 20% | B37: =311/14*I35 ->  | C37: =+Parametros!E221*Parametros!$E$6 -> 3096.185449
A38: Bulones 25% | B38: =389/14*I35 ->  | C38: =+Parametros!E222*Parametros!$E$6 -> 134.8773913
A39: Varios 10% | B39: 1 | C39: =SUM(D34:D36)*Parametros!E223 ->  | E39: Se aplica sobre durmientes, balasto y fijaciones
D40: =SUM(D34:D39) -> 
A41: TOTAL | D41: =+D40+D33+D30 -> 
A42: TOTAL POR KM | D42: =+IFERROR(D41/I35,0) -> 0
A44: MA2 | H44: MA2 Incluye
A45: Categoría | B45: Cantidad | C45: $ unitario | D45: $ total | H45: Depuración parcial de balasto
A46: Cantidad de personas por cuadrilla | B46: =20*I53 ->  | C46: =+Parametros!E212 -> 7572.170696 | D46: =+C46*B46*B47 ->  | E46: Incluye los vehículos para el transporte del personal y materiales, seguros, EPP, etc. | H46: Reemplazo parcial de durmientes
A47: Dias trabajados al año | B47: =22*12 -> 264 | H47: Tratamiento de fijaciones
A48: Durmientes 20% | B48: =4822/14*I55 ->  | C48: =+C34 -> 1654.496 | D48: =+C48*B48 ->  | H48: Aporte de piedra de balasto
A49: Balasto 500 tn/km | B49: =500*I55 ->  | C49: =+C35 -> 1198.910145 | H49: Tratamiento de juntas mecánicas
A50: Fijaciones 40% | B50: =38573/14*I55 ->  | C50: =+C36 -> 53.95095652 | H50: Nivelación, alineación y compactación manual de vía
A51: Eclisas (par) 20% | B51: =311/14*I55 ->  | C51: =+C37 -> 3096.185449 | H51: Otros trabajos menores
A52: Bulones 25% | B52: =389/14*I55 ->  | C52: =+C38 -> 134.8773913 | H52: Producción media por cuadrilla (kms por mes ) | I52: =+Parametros!E205 -> 0.6
A53: Varios 10% | B53: 1 | C53: =SUM(D48:D50)*Parametros!E223 ->  | E53: Se aplica sobre durmientes, balasto y fijaciones | H53: Cantidad de cuadrillas | I53: =+I55/I52/12 -> 
A54: TOTAL | D54: =SUM(D46:D53) ->  | H54: Ciclo de mantenimiento (años) | I54: =+E12 -> 
A55: TOTAL POR KM | D55: =+IFERROR(D54/I55,0) -> 0 | H55: Produccion anual (kms) | I55: =+Ingreso_de_datos!$C$6*Ingreso_de_datos!$C$40/Mantenimiento!I54 -> 
A57: ME1 | H57: Ítem | I57: Cantidad | J57: Unidad
A58: Equipo | B58: Bateadora - 16 bates | C58: Perfiladora de balasto | D58: Estabilizadora | E58: Esmeriladora de rieles | F58: Dresina | H58: Produccion de Bateadora (2 unidades) | I58: =+Parametros!E236*Parametros!$E$235*Parametros!$E$234*12*2 -> 571.2 | J58: km/año
A59: Compra u$s | B59: =+Parametros!E224 -> 3061000 | C59: =+Parametros!E225 -> 1048000 | D59: =+Parametros!E226 -> 2739000 | E59: =+Parametros!E227 -> 9188000 | F59: =+Parametros!E228 -> 8141000 | H59: Produccion de Perfiladora | I59: =+Parametros!E237*Parametros!$E$235*Parametros!$E$234*12 -> 4080 | J59: km/año
A60: Compra $ | B60: =+B59*Parametros!$E$6 -> 126610306.4 | C60: =+C59*Parametros!$E$6 -> 43347795.2 | D60: =+D59*Parametros!$E$6 -> 113291613.6 | E60: =+E59*Parametros!$E$6 -> 380037731.2 | F60: =+F59*Parametros!$E$6 -> 336731298.4 | H60: Produccion de Estabilizadora | I60: =+Parametros!E238*Parametros!$E$235*Parametros!$E$234*12 -> 2040 | J60: km/año
A61: Valor residual | B61: =+Parametros!$E$230*B60 -> 12661030.64 | C61: =+Parametros!$E$230*C60 -> 4334779.52 | D61: =+Parametros!$E$230*D60 -> 11329161.36 | E61: =+Parametros!$E$230*E60 -> 38003773.12 | F61: =+Parametros!$E$230*F60 -> 33673129.84 | H61: Anualmente se puede realizar | I61: =+I58 -> 571.2 | J61: km de via
A62: Seguro anual | B62: =+B60*Parametros!$E$231 -> 2532206.128 | C62: =+C60*Parametros!$E$231 -> 866955.904 | D62: =+D60*Parametros!$E$231 -> 2265832.272 | E62: =+E60*Parametros!$E$231 -> 7600754.624 | F62: =+F60*Parametros!$E$231 -> 6734625.968 | H62: Produccion de Esmeriladora | I62: =+Parametros!E239*Parametros!$E$235*Parametros!$E$234*12 -> 4080 | J62: km/año
A63: Mantenimiento y operación anual | B63: =+B60*Parametros!$E$232 -> 6963566.852 | C63: =+C60*Parametros!$E$232 -> 2384128.736 | D63: =+D60*Parametros!$E$232 -> 6231038.748 | E63: =+E60*Parametros!$E$233 -> 38003773.12 | F63: =+F60*Parametros!$E$233 -> 33673129.84 | H63: Produccion de Dresina | I63: =+Parametros!E240*Parametros!$E$235*Parametros!$E$234*12 -> 32640 | J63: km/año
A64: CAE equipos | B64: =+PMT(Parametros!$E$5,Parametros!$E$229,B60,B61,0)*-1 -> 12784667.68 | C64: =+PMT(Parametros!$E$5,Parametros!$E$229,C60,C61,0)*-1 -> 4377109.352 | D64: =+PMT(Parametros!$E$5,Parametros!$E$229,D60,D61,0)*-1 -> 11439792.48 | E64: =+PMT(Parametros!$E$5,Parametros!$E$229,E60,E61,0)*-1 -> 38374886.19 | F64: =+PMT(Parametros!$E$5,Parametros!$E$229,F60,F61,0)*-1 -> 34001953.47
A65: Costo de personal (anual) | B65: =+(Parametros!$E$214+Parametros!$E$215+Parametros!$E$216/3)*12 -> 1490108.509 | C65: =+(Parametros!$E$214+Parametros!$E$215+Parametros!$E$216/3)*12 -> 1490108.509 | D65: =+(Parametros!$E$214+Parametros!$E$215+Parametros!$E$216/3)*12 -> 1490108.509 | E65: =+(Parametros!$E$214+Parametros!$E$215)*12 -> 1456371.203 | F65: =+(Parametros!$E$214+Parametros!$E$215)*12 -> 1456371.203 | G65: un operador, un ayudante y un proporcional de jefe de equipo
A66: Costo total por km | B66: =SUM(B62:B65)/$I$61 -> 41615.10708 | C66: =SUM(C62:C65)/$I$61 -> 15963.41474 | D66: =SUM(D62:D65)/$I$61 -> 37511.85575 | E66: =SUM(E62:E65)/$I$62 -> 20940.14341 | F66: =SUM(F62:F65)/$I$63 -> 2324.328446
A68: Trabajos previos | H68: Trabajos previos de ME1 Incluye
A69: Categoría | B69: Cantidad | C69: $ unitario | D69: $ total | H69: Depuración parcial de balasto
A70: Capataz de vía | B70: =+$I$75 ->  | C70: =+C26 -> 81266.51 | D70: =+C70*B70*12 ->  | E70: Unitario es Mensual - Bruto + Cargas Sociales + ART + SAC (con 10 años de antigüedad) | H70: Reemplazo parcial de durmientes
A71: Subcapataz | B71: =+$I$75 ->  | C71: =+C27 -> 60933.35 | D71: =+C71*B71*12 ->  | H71: Tratamiento de fijaciones
A72: Oficiales especializados | B72: =+$I$75*2 ->  | C72: =+C28 -> 50366.3 | D72: =+C72*B72*12 ->  | H72: Aporte de piedra de balasto
A73: Operarios de vía | B73: =+$I$75*16 ->  | C73: =+C29 -> 42562.6 | D73: =+C73*B73*12 ->  | H73: Tratamiento de juntas mecánicas
D74: =SUM(D70:D73) ->  | H74: Producción media por cuadrilla (kms por mes ) | I74: =+Parametros!E206 -> 1
H75: Cantidad de cuadrillas | I75: =+I77/I74/12 -> 
H76: Ciclo de mantenimiento (años) | I76: =+E12 -> 
A77: Camión volcador (alquiler) | B77: =+I75/5 ->  | C77: =+C31 -> 348863.9921 | D77: =+C77*B77*12 ->  | E77: Unitario es Mensual | H77: Produccion anual (kms) | I77: =+Ingreso_de_datos!$C$6*Ingreso_de_datos!$C$41/Mantenimiento!I76 -> 
A78: Bus para el transporte del personal (alquiler) | B78: =+$I$75 ->  | C78: =+C32 -> 173273.643 | D78: =+C78*B78*12 -> 
D79: =SUM(D77:D78) -> 
A81: Durmientes 20% | B81: =4822/14*$I$77 ->  | C81: =+C34 -> 1654.496 | D81: =+C81*B81 -> 
A82: Balasto 500 tn/km | B82: =500*I77 ->  | C82: =+C35 -> 1198.910145
A83: Fijaciones 40% | B83: =38573/14*I77 ->  | C83: =+C36 -> 53.95095652
A84: Eclisas (par) 20% | B84: =311/14*I77 ->  | C84: =+C37 -> 3096.185449
A85: Bulones 25% | B85: =389/14*I77 ->  | C85: =+C38 -> 134.8773913
A86: Varios 10% | B86: 1 | C86: =SUM(D81:D83)*Parametros!E223 ->  | E86: Se aplica sobre durmientes, balasto y fijaciones
D87: =SUM(D81:D86) -> 
A89: TOTAL | D89: =+D87+D79+D74+SUM(B66:F66)*I77 -> 
A90: TOTAL POR KM | D90: =+IFERROR(D89/I77,0) -> 0
A92: ME2 | H92: Ítem | I92: Cantidad | J92: Unidad
A93: Equipo | B93: Bateadora - 16 bates | C93: Perfiladora de balasto | D93: Estabilizadora | E93: Esmeriladora de rieles | F93: Dresina | H93: Produccion de Bateadora (2 unidades) | I93: =+Parametros!E236*Parametros!$E$235*Parametros!$E$234*12*2 -> 571.2 | J93: km/año
A94: Compra u$s | B94: =+Parametros!E224 -> 3061000 | C94: =+Parametros!E225 -> 1048000 | D94: =+Parametros!E226 -> 2739000 | E94: =+Parametros!E227 -> 9188000 | F94: =+Parametros!E228 -> 8141000 | H94: Produccion de Perfiladora | I94: =+Parametros!E237*Parametros!$E$235*Parametros!$E$234*12 -> 4080 | J94: km/año
A95: Compra $ | B95: =+B94*Parametros!$E$6 -> 126610306.4 | C95: =+C94*Parametros!$E$6 -> 43347795.2 | D95: =+D94*Parametros!$E$6 -> 113291613.6 | E95: =+E94*Parametros!$E$6 -> 380037731.2 | F95: =+F94*Parametros!$E$6 -> 336731298.4 | H95: Produccion de Estabilizadora | I95: =+Parametros!E238*Parametros!$E$235*Parametros!$E$234*12 -> 2040 | J95: km/año
A96: Valor residual | B96: =+Parametros!$E$230*B95 -> 12661030.64 | C96: =+Parametros!$E$230*C95 -> 4334779.52 | D96: =+Parametros!$E$230*D95 -> 11329161.36 | E96: =+Parametros!$E$230*E95 -> 38003773.12 | F96: =+Parametros!$E$230*F95 -> 33673129.84 | H96: Anualmente se puede realizar | I96: =+I93 -> 571.2 | J96: km de via
A97: Seguro anual | B97: =+B95*Parametros!$E$231 -> 2532206.128 | C97: =+C95*Parametros!$E$231 -> 866955.904 | D97: =+D95*Parametros!$E$231 -> 2265832.272 | E97: =+E95*Parametros!$E$231 -> 7600754.624 | F97: =+F95*Parametros!$E$231 -> 6734625.968 | H97: Produccion de Esmeriladora | I97: =+Parametros!E239*Parametros!$E$235*Parametros!$E$234*12 -> 4080 | J97: km/año
A98: Mantenimiento y operación anual | B98: =+B95*Parametros!$E$232 -> 6963566.852 | C98: =+C95*Parametros!$E$232 -> 2384128.736 | D98: =+D95*Parametros!$E$232 -> 6231038.748 | E98: =+E95*Parametros!$E$233 -> 38003773.12 | F98: =+F95*Parametros!$E$233 -> 33673129.84 | H98: Produccion de Dresina | I98: =+Parametros!E240*Parametros!$E$235*Parametros!$E$234*12 -> 32640 | J98: km/año
A99: CAE equipos | B99: =+PMT(Parametros!$E$5,Parametros!$E$229,B95,B96,0)*-1 -> 12784667.68 | C99: =+PMT(Parametros!$E$5,Parametros!$E$229,C95,C96,0)*-1 -> 4377109.352 | D99: =+PMT(Parametros!$E$5,Parametros!$E$229,D95,D96,0)*-1 -> 11439792.48 | E99: =+PMT(Parametros!$E$5,Parametros!$E$229,E95,E96,0)*-1 -> 38374886.19 | F99: =+PMT(Parametros!$E$5,Parametros!$E$229,F95,F96,0)*-1 -> 34001953.47
A100: Costo de personal (anual) | B100: =+(Parametros!$E$214+Parametros!$E$215+Parametros!$E$216/3)*12 -> 1490108.509 | C100: =+(Parametros!$E$214+Parametros!$E$215+Parametros!$E$216/3)*12 -> 1490108.509 | D100: =+(Parametros!$E$214+Parametros!$E$215+Parametros!$E$216/3)*12 -> 1490108.509 | E100: =+(Parametros!$E$214+Parametros!$E$215)*12 -> 1456371.203 | F100: =+(Parametros!$E$214+Parametros!$E$215)*12 -> 1456371.203 | G100: un operador, un ayudante y un proporcional de jefe de equipo
A101: Costo total por km | B101: =SUM(B97:B100)/$I$96 -> 41615.10708 | C101: =SUM(C97:C100)/$I$96 -> 15963.41474 | D101: =SUM(D97:D100)/$I$96 -> 37511.85575 | E101: =SUM(E97:E100)/$I$97 -> 20940.14341 | F101: =SUM(F97:F100)/$I$98 -> 2324.328446
A103: Trabajos previos | H103: Trabajos previos de ME2 Incluye
A104: Categoría | B104: Cantidad | C104: $ unitario | D104: $ total | H104: Depuración parcial de balasto
A105: Capataz de vía | B105: =+$I$108 ->  | C105: =+C26 -> 81266.51 | D105: =+C105*B105*12 ->  | E105: Unitario es Mensual - Bruto + Cargas Sociales + ART + SAC (con 10 años de antigüedad) | H105: Reemplazo parcial de durmientes
A106: Subcapataz | B106: =+$I$108 ->  | C106: =+C27 -> 60933.35 | D106: =+C106*B106*12 ->  | H106: Aporte de piedra de balasto
A107: Oficiales especializados | B107: =+$I$108*2 ->  | C107: =+C28 -> 50366.3 | D107: =+C107*B107*12 ->  | H107: Producción media por cuadrilla (kms por mes ) | I107: =+Parametros!E207 -> 3
A108: Operarios de vía | B108: =+$I$108*16 ->  | C108: =+C29 -> 42562.6 | D108: =+C108*B108*12 ->  | H108: Cantidad de cuadrillas | I108: =+I110/I107/12 -> 
D109: =SUM(D105:D108) ->  | H109: Ciclo de mantenimiento (años) | I109: =+E15 -> 
H110: Produccion anual (kms) | I110: =+Ingreso_de_datos!$C$6*Ingreso_de_datos!$C$42/Mantenimiento!I109 -> 
A112: Camión volcador (alquiler) | B112: =+I108/5 ->  | C112: =+C31 -> 348863.9921 | D112: =+C112*B112*12 ->  | E112: Unitario es Mensual
A113: Bus para el transporte del personal (alquiler) | B113: =+$I$108 ->  | C113: =+C32 -> 173273.643 | D113: =+C113*B113*12 -> 
D114: =SUM(D112:D113) -> 
A116: Durmientes 5% | B116: =78*$I$110 ->  | C116: =+IF(Ingreso_de_datos!A5=2,Parametros!E170*Parametros!E6,Parametros!E171*Parametros!E6) -> 3515.804 | D116: =+C116*B116 -> 
A117: Balasto 500 tn/km | B117: =500*I110 ->  | C117: =+C35 -> 1198.910145 | D117: =+C117*B117 -> 
A118: Varios 10%, ligas, soldaduras | B118: 1 | C118: =SUM(D116:D117)*Parametros!E223 ->  | D118: =+C118*B118 ->  | E118: Se aplica sobre durmientes y balasto
D119: =SUM(D116:D118) -> 
A121: TOTAL | D121: =+D119+D114+D109+SUM(B101:F101)*I110 -> 
A122: TOTAL POR KM | D122: =+IFERROR(D121/I110,0) -> 0

Sheet Infraestructura
B4: Renovación | C4: Mejoramiento Liviano | D4: Mejoramiento Semi Pesado | E4: Mejoramiento Pesado | F4: Mejoramiento definido por el Usuario | G4: TOTAL | I4: Mejoramiento Liviano | J4: Mejoramiento Semi Pesado | K4: Mejoramiento Pesado | L4: Mejoramiento definido por el Usuario
A5: $ sin IVA | B5: =+B7*Parametros!$E$6 ->  | C5: 0 | D5: 0 | E5: 0 | F5: 0 | G5: =SUM(B5:F5) ->  | I5: =+Mejoramiento!H15*Ingreso_de_datos!$C$20*Ingreso_de_datos!$C$6/100 -> 0 | J5: =+Mejoramiento!H15*Ingreso_de_datos!$C$21*Ingreso_de_datos!$C$6/100 -> 0 | K5: =+Mejoramiento!H15*Ingreso_de_datos!$C$22*Ingreso_de_datos!$C$6/100 -> 0 | L5: =+Mejoramiento!H15*Ingreso_de_datos!$C$23*Ingreso_de_datos!$C$6/100 -> 0
A6: $ con IVA | B6: =+B8*Parametros!$E$6 ->  | C6: 0 | D6: 0 | E6: 0 | F6: 0 | G6: =SUM(B6:F6) ->  | I6: =Mejoramiento!H16*Ingreso_de_datos!$C$20*Ingreso_de_datos!$C$6/100 -> 0 | J6: =Mejoramiento!H16*Ingreso_de_datos!$C$21*Ingreso_de_datos!$C$6/100 -> 0 | K6: =Mejoramiento!H16*Ingreso_de_datos!$C$22*Ingreso_de_datos!$C$6/100 -> 0 | L6: =+Mejoramiento!H16*Ingreso_de_datos!$C$23*Ingreso_de_datos!$C$6/100 -> 0
A7: u$s sin IVA | B7: =+Renovacion!G16*Ingreso_de_datos!C19*Ingreso_de_datos!$C$6 ->  | C7: 0 | D7: 0 | E7: 0 | F7: 0 | G7: =SUM(B7:F7) ->  | I7: =+I5/Parametros!$E$6 -> 0 | J7: =+J5/Parametros!$E$6 -> 0 | K7: =+K5/Parametros!$E$6 -> 0 | L7: =+L5/Parametros!$E$6 -> 0
A8: u$s con IVA | B8: =+B7*1.21 ->  | C8: 0 | D8: 0 | E8: 0 | F8: 0 | G8: =SUM(B8:F8) ->  | I8: =+I6/Parametros!$E$6 -> 0 | J8: =+J6/Parametros!$E$6 -> 0 | K8: =+K6/Parametros!$E$6 -> 0 | L8: =+L6/Parametros!$E$6 -> 0
A10: Vida útil (años) | B10: =+Parametros!E159 -> 40 | C10: =+Parametros!E160 -> 7 | D10: =+Parametros!E161 -> 10 | E10: =+Parametros!E162 -> 15 | F10: =+Parametros!E203 -> 10 | G10: =+Parametros!E164 -> 50 | H10: =+Parametros!E165 -> 20 | I10: =+Parametros!E166 -> 40
B12: Renovación | C12: Mejoramiento Liviano | D12: Mejoramiento Semi Pesado | E12: Mejoramiento Pesado | F12: Mejoramiento definido por el Usuario | G12: ODA | H12: PAN | I12: ADV | J12: Total
A13: Costo de rehabilitación de infraestructura | B13: =+B8 ->  | C13: =+C8 -> 0 | D13: =+D8 -> 0 | E13: =+E8 -> 0 | F13: =+F8 -> 0 | G13: =+F29 -> 0 | H13: =+D53 -> 0 | I13: =+E40 -> 
A14: Tasa de descuento | B14: =+Parametros!$E$5 -> 0.05 | C14: =+Parametros!$E$5 -> 0.05 | D14: =+Parametros!$E$5 -> 0.05 | E14: =+Parametros!$E$5 -> 0.05 | F14: =+Parametros!$E$5 -> 0.05 | G14: =+Parametros!$E$5 -> 0.05 | H14: =+Parametros!$E$5 -> 0.05 | I14: =+Parametros!$E$5 -> 0.05
A15: Valor residual % | B15: =+Parametros!$E$167 -> 0.05 | C15: =+Parametros!$E$168 -> 0 | D15: =+Parametros!$E$168 -> 0 | E15: =+Parametros!$E$168 -> 0 | F15: =+Parametros!$E$168 -> 0 | G15: =+Parametros!$E$169 -> 0.05 | H15: =+Parametros!$E$169 -> 0.05 | I15: =+Parametros!$E$169 -> 0.05
A16: Valor residual | B16: =+B15*B13*-1 ->  | C16: 0 | D16: 0 | E16: 0 | F16: =+F15*F13*-1 -> 0 | G16: 0 | H16: 0
A17: CAE | B17: =+IFERROR(PMT(B14,B10,B13,B16,0)*-1,0) -> 0 | C17: =+IFERROR(PMT(C14,C10,C13,C16,0)*-1,0) -> 0 | D17: 0 | E17: 0 | F17: =+IFERROR(PMT(F14,F10,F13,F16,0)*-1,0) -> 0 | G17: =+IFERROR(PMT(G14,G10,G13,G16,0)*-1,0) -> 0 | H17: =+IFERROR(PMT(H14,H10,H13,H16,0)*-1,0) -> 0 | I17: 0 | J17: =SUM(B17:I17) -> 0
A19: Obras de arte
A20: Trocha | B20: Longitud
B21: < 5m | C21: 5 a 15m | D21: 15 a 100m | E21: > 100m
A22: Todas | B22: =+Ingreso_de_datos!$C$25 -> 0 | C22: =+Ingreso_de_datos!$C$26 -> 0 | D22: =+Ingreso_de_datos!$C$27 -> 0 | E22: =+Ingreso_de_datos!$C$28 -> 0
B24: Longitud | F24: Total
B25: < 5m | C25: 5 a 15m | D25: 15 a 100m | E25: > 100m
A26: $ SIN IVA | B26: =+B22*B32*Ingreso_de_datos!$C$29 -> 0 | C26: =+C22*C32*Ingreso_de_datos!$C$29 -> 0 | D26: =+D22*D32*Ingreso_de_datos!$C$29 -> 0 | E26: =+E22*E32*Ingreso_de_datos!$C$29 -> 0 | F26: =SUM(B26:E26) -> 0
A27: $ CON IVA | B27: =+B26*1.21 -> 0 | C27: =+C26*1.21 -> 0 | D27: =+D26*1.21 -> 0 | E27: =+E26*1.21 -> 0 | F27: =SUM(B27:E27) -> 0
A28: U$S SIN IVA | B28: =+B22*B33*Ingreso_de_datos!$C$29 -> 0 | C28: =+C22*C33*Ingreso_de_datos!$C$29 -> 0 | D28: =+D22*D33*Ingreso_de_datos!$C$29 -> 0 | E28: =+E22*E33*Ingreso_de_datos!$C$29 -> 0 | F28: =SUM(B28:E28) -> 0
A29: U$S CON IVA | B29: =+B28*1.21 -> 0 | C29: =+C28*1.21 -> 0 | D29: =+D28*1.21 -> 0 | E29: =+E28*1.21 -> 0 | F29: =SUM(B29:E29) -> 0
B31: ml <5 | C31: ml 5<L<15 | D31: ml 15<L<100 | E31: ml >100
A32: $ | B32: =+B33*Parametros!$E$6 -> 593744.9958 | C32: =+C33*Parametros!$E$6 -> 1706431.341 | D32: =+D33*Parametros!$E$6 -> 1221415.399 | E32: =+E33*Parametros!$E$6 -> 894465.4241
A33: u$s | B33: =+Parametros!$E$174 -> 14354.70369 | C33: =+Parametros!$E$175 -> 41255.6172 | D33: =+Parametros!$E$176 -> 29529.60657 | E33: =+Parametros!$E$177 -> 21625.0852
A35: Aparatos de Vía
B36: Ancha | C36: Media | D36: Angosta | E36: QUEDA
A37: $ SIN IVA | B37: =+Ingreso_de_datos!$C$35*Ingreso_de_datos!$C$36*AVERAGE(B45:B46) -> 0 | C37: =+Ingreso_de_datos!$C$35*Ingreso_de_datos!$C$36*AVERAGE(C45:C46) -> 0 | D37: =+Ingreso_de_datos!$C$35*Ingreso_de_datos!$C$36*AVERAGE(D45:D46) -> 0 | E37: =+(Ingreso_de_datos!$C$77*B37+Ingreso_de_datos!$C$78*C37+Ingreso_de_datos!$C$79*D37)/Ingreso_de_datos!$C$6 -> 
A38: $ CON IVA | B38: =+B37*1.21 -> 0 | C38: =+C37*1.21 -> 0 | D38: =+D37*1.21 -> 0 | E38: =+(Ingreso_de_datos!$C$77*B38+Ingreso_de_datos!$C$78*C38+Ingreso_de_datos!$C$79*D38)/Ingreso_de_datos!$C$6 -> 
A39: U$S SIN IVA | B39: =+Ingreso_de_datos!$C$35*Ingreso_de_datos!$C$36*AVERAGE(B43:B44) -> 0 | C39: =+Ingreso_de_datos!$C$35*Ingreso_de_datos!$C$36*AVERAGE(C43:C44) -> 0 | D39: =+Ingreso_de_datos!$C$35*Ingreso_de_datos!$C$36*AVERAGE(D43:D44) -> 0 | E39: =+(Ingreso_de_datos!$C$77*B39+Ingreso_de_datos!$C$78*C39+Ingreso_de_datos!$C$79*D39)/Ingreso_de_datos!$C$6 -> 
A40: U$S CON IVA | B40: =+B39*1.21 -> 0 | C40: =+C39*1.21 -> 0 | D40: =+D39*1.21 -> 0 | E40: =+(Ingreso_de_datos!$C$77*B40+Ingreso_de_datos!$C$78*C40+Ingreso_de_datos!$C$79*D40)/Ingreso_de_datos!$C$6 -> 
A42: ADV | B42: Ancha | C42: Media | D42: Angosta | E42: Moneda
A43: 1:10 R300 | B43: =+Parametros!$E$178 -> 84195.9626 | C43: =+Parametros!$E$178 -> 84195.9626 | D43: =+Parametros!$E$179 -> 67356.77008 | E43: u$s
A44: 1:12 R500 | B44: =+Parametros!$E$180 -> 114865.9068 | C44: =+Parametros!$E$180 -> 114865.9068 | D44: =+Parametros!$E$181 -> 91892.72542
A45: 1:10 R300 | B45: =+B43*Parametros!$E$6 -> 3482547.084 | C45: =+C43*Parametros!$E$6 -> 3482547.084 | D45: =+D43*Parametros!$E$6 -> 2786037.667 | E45: $
A46: 1:12 R500 | B46: =+B44*Parametros!$E$6 -> 4751129.582 | C46: =+C44*Parametros!$E$6 -> 4751129.582 | D46: =+D44*Parametros!$E$6 -> 3800903.666
A48: Pasos a Nivel
B49: Tierra | C49: Pavimento | D49: Total
A50: $ SIN IVA | B50: =+Ingreso_de_datos!$C$31*B57*Ingreso_de_datos!$C$33 -> 0 | C50: =+Ingreso_de_datos!$C$32*C57*Ingreso_de_datos!$C$33 -> 0 | D50: =+C50+B50 -> 0
A51: $ CON IVA | B51: =+B50*1.21 -> 0 | C51: =+C50*1.21 -> 0 | D51: =+C51+B51 -> 0
A52: U$S SIN IVA | B52: =+B50/Parametros!$E$6 -> 0 | C52: =+C50/Parametros!$E$6 -> 0 | D52: =+C52+B52 -> 0
A53: U$S CON IVA | B53: =+B51/Parametros!$E$6 -> 0 | C53: =+C51/Parametros!$E$6 -> 0 | D53: =+C53+B53 -> 0
A55: PAN | B55: Tierra | C55: Pavimento
A56: $ | B56: =+B57*Parametros!$E$6 -> 1019121.295 | C56: =+C57*Parametros!$E$6 -> 2033812.058
A57: u$s | B57: =+Parametros!$E$182 -> 24638.83369 | C57: =+Parametros!$E$183 -> 49170.55242
A59: Mejoramiento incluye: | B59: Mejoramiento pesado | C59: Mejoramiento liviano | D59: Mejoramiento semi-pesado | F59: Renovación incluye | G59: % | H59: Ud
A60: Cantidad de kilómetros | B60: 100 | C60: 100 | D60: 100 | E60: km | F60: Obrador | H60: Gl
A61: Durmientes por kilómetro existente | B61: 1722 | C61: 1722 | D61: 1722 | E61: durm/km | F61: Limpieza de zona de vía - desmalezado | H61: Gl
A62: Fijaciones a cambiar | B62: 0.2 | C62: 0.3 | D62: 0.3 | E62: de los durmientes actuales | F62: Relevamiento, Proyecto Ejecutivo y replanteo | G62: 30 | H62: %
A63: Cambio de durmientes con PGL | B63: 0.6 | C63: 0.3 | D63: 0.3 | E63: de los durmientes actuales | F63: Retiro de la vía principal y su clasificación | G63: 30 | H63: %
A64: Longitud barras existente | B64: 12 | C64: 12 | D64: 12 | E64: m | F64: Conformación y perfilado de la nueva subrasante | G64: 30 | H64: %
A65: Longitud barras futura | B65: 36 | C65: 12 | D65: 12 | E65: m | F65: Armado y montaje de la nueva vía principal | G65: =14/91.7 -> 0.1526717557 | H65: Adv / km
A66: Juntas futuras a tratar | B66: 1 | C66: 1 | D66: 1 | F66: Colocación de balasto y levantes de vía nueva | G66: =29/91 -> 0.3186813187 | H66: Oda / km
A67: Reemplazo de eclisas de las juntas a tratar | B67: 0.6 | C67: 0.8 | D67: 0.8 | F67: Geotextil | G67: =26/91 -> 0.2857142857 | H67: PaN Tierra / km
A68: ADV cada 100 km | B68: 13 | C68: 13 | D68: 13 | E68: ADV/100km | F68: Terminado mecanizado de vía y reperfilado de talud | G68: =4/91 -> 0.04395604396 | H68: PaN Pavimento / km
A69: Durmientes por ADV existente | B69: 45 | C69: 45 | D69: 45 | E69: durm/ADV | F69: Soldadura Aluminotermica | G69: 300 | H69: ton/km
A70: ODA cada 1 km [m] | B70: 4.12 | C70: 4.12 | D70: 4.12 | E70: m ODA | F70: Liberación de tensiones | G70: 30 | H70: %
A71: ODA cada 100 km | B71: 16 | C71: 16 | D71: 16 | E71: ODA/100km | F71: Puesta a punto de desagües transversales | G71: 20 | H71: ud/km
A72: PAN Tierra cada 100 km | B72: 13 | C72: 13 | D72: 13 | E72: PAN/100km | F72: Cambio de rieles | G72: 10 | H72: %
A73: PAN Pavimento cada 100 km | B73: 5 | C73: 5 | D73: 5 | E73: PAN/100km
A74: Aporte de balasto del mecanizado | B74: 1000 | C74: 300 | D74: 1000 | E74: ton/km
A75: Reemplazo de barras de rieles | B75: 0.3 | C75: 0.1 | D75: 0.1
A76: Soldaduras a realizar | B76: =B60*1000/B64*2-B60*1000/B65*2 -> 11111.11111 | C76: =C60*1000/C64-C60*1000/C65 -> 0 | D76: =D60*1000/D64-D60*1000/D65 -> 0 | E76: soldaduras

Sheet Renovacion
A4: Zona | B4: Indicador de columnas para buscar monto | C4: Provincias | D4: Distancia media de transporte de durmientes desde bs as | E4: Costo medio zonal del transporte terrestre del durmiente de angosta (Ton-Km =) | F4: Costo medio zonal del transporte terrestre de durmientes de media y ancha(Ton-Km =) | G4: Distancia media de transporte de balasto desde cantera mas cercana | H4: Costo medio zonal del transporte terrestre de la tonelada de piedra | I4: Distancia media de transporte de rieles desde puerto mas cercano | J4: Costo medio zonal del transporte terrestre del Km lineal de riel 54E1 | K4: Adicional por mano de obra | L4: incidencia de la m.o en el costo total de acuerdo a la zona trocha ancha | M4: incidencia de la m.o en el costo total de acuerdo a la zona trocha angosta | O4: incidencia del transporte en general de acuerdo a zona en trocha ancha | P4: incidencia del transporte en general de acuerdo a zona en trocha Angosta
A5: Centro | B5: 2 | C5: CABA, Santa Fe, Buenos Aires, Córdoba y La Pampa | D5: 400 | E5: =$D$12*D5*0.25 -> 88 | F5: =$D$12*D5*0.32 -> 112.64 | G5: 300 | H5: =G5*$D$12 -> 264 | I5: 400 | J5: =I5*54*$D$12 -> 19008 | K5: 1 | L5: =(0.2066*K5)+1-0.2066 -> 1 | M5: =(0.2037*K5)+1-0.2037 -> 1 | O5: =(0.229632*(G5/$G$5))+(0.02973139*(I5/$I$5))+(0.07307961*(D5/$D$5))+1-0.332443 -> 1 | P5: =(0.17577*(G5/$G$6))+(0.008675*(I5/$I$6))+(0.026755*(D5/$D$6))+1-0.2112 -> 0.9489715
A6: Norte | B6: 3 | C6: Sgo del Estero, Catamarca, Jujuy, Formosa, La Rioja, Salta, Tucumán y Chaco. | D6: 500 | E6: 110 | F6: 140.8 | G6: 400 | H6: 352 | I6: 500 | J6: 23760 | K6: 1 | L6: =(0.2066*K6)+1-0.2066 -> 1 | M6: 1 | O6: 1.10224675 | P6: 1
A7: Mesopotamia | B7: 4 | C7: Corrientes, Misiones y Entre Ríos. | D7: 450 | E7: 99 | F7: 126.72 | G7: 100 | H7: 88 | I7: 450 | J7: 21384 | K7: 1 | L7: 1 | M7: 1 | O7: 0.859763375 | P7: 0.8646295
A8: Cuyo | B8: 5 | C8: Mendoza, , San Luis y San Juan. | D8: 700 | E8: 154 | F8: 197.12 | G8: 200 | H8: 176 | I8: 700 | J8: 33264 | K8: 1 | L8: 1 | M8: 1 | O8: 1.00056425 | P8: 0.926287
A9: Patagonia | B9: 6 | C9: Neuquén, Río Negro y Chubut | D9: 1200 | E9: 264 | F9: 337.92 | G9: 400 | H9: 352 | I9: 400 | J9: 19008 | K9: =(7.15+64.99)/64.99 -> 1.110016926 | L9: 1.022729497 | M9: 1.022410448 | O9: 1.22270322 | P9: 1.035722
A10: Patagonia 2 | B10: 7 | C10: Santa Cruz | D10: 1900 | E10: 418 | F10: 535.04 | G10: 400 | H10: 352 | I10: 300 | J10: 14256 | K10: =(34.78+64.99)/64.99 -> 1.535159255 | L10: 1.110563902 | M10: 1.10901194 | O10: 1.34315969 | P10: 1.071444
A11: Patagonia 3 | B11: 8 | C11: Tierra del Fuego | D11: 2700 | E11: 594 | F11: 760.32 | G11: 600 | H11: 528 | I11: 100 | J11: 4752 | K11: =((64.99+64.99)/64.99) -> 2 | L11: 1.2066 | M11: 1.2037 | O11: 1.627541215 | P11: 1.198667
C12: $ /Ton.Km | D12: 0.88
A13: Precio durmiente trocha angosta | B13: =+Parametros!E170 -> 56
A14: Precio durmiente trocha ancha | B14: =+Parametros!E171 -> 85
A15: Precio fijaciones | B15: =+Parametros!E172 -> 15.21 | G15: =+Ingreso_de_datos!C8 -> ELEGIR
A16: Kilometro de riel 54E1 [u$s] | B16: =+Parametros!E173 -> 50474.972 | G16: =+HLOOKUP(G15,B18:H19,2,FALSE) ->  | H16: Valor que va
A18: Trocha | B18: =+A5 -> Centro | C18: =+A6 -> Norte | D18: =+A7 -> Mesopotamia | E18: =+A8 -> Cuyo | F18: =+A9 -> Patagonia | G18: =+A10 -> Patagonia 2 | H18: =+A11 -> Patagonia 3
A19: =+Ingreso_de_datos!C5 -> ELEGIR | B19: =+VLOOKUP($A$19,$A$29:$H$31,COLUMN(B17),FALSE) -> 
A21: Renovación de vía [U$S + IVA] | D21: sin intervencion de la plataforma, aplicandose para 22 Ton/eje
A22: Trocha | B22: =+B18 -> Centro | C22: =+C18 -> Norte | D22: Mesopotamia | E22: Cuyo | F22: Patagonia | G22: Patagonia 2 | H22: Patagonia 3
A23: Ancha | B23: =667614.97*$L5*$O5 -> 667614.97 | C23: =667614.97*$L6*$O6 -> 735876.4309 | D23: =667614.97*$L7*$O7 -> 573990.8998 | E23: =667614.97*$L8*$O8 -> 667991.6717 | F23: =667614.97*$L9*$O9 -> 834848.9476 | G23: =667614.97*$L10*$O10 -> 995857.6616 | H23: =667614.97*$L11*$O11 -> 1311056.423
A24: Media | B24: =667614.97*L5*O5 -> 667614.97 | C24: =667614.97*$L6*$O6 -> 735876.4309 | D24: =667614.97*$L7*$O7 -> 573990.8998 | E24: =667614.97*$L8*$O8 -> 667991.6717 | F24: =667614.97*$L9*$O9 -> 834848.9476 | G24: =667614.97*$L10*$O10 -> 995857.6616 | H24: =667614.97*$L11*$O11 -> 1311056.423
A25: Angosta | B25: =593939.83*$M5*$P5 -> 563631.9714 | C25: =593939.83*$M6*$P6 -> 593939.83 | D25: =593939.83*$M7*$P7 -> 513537.8982 | E25: =593939.83*$M8*$P8 -> 550158.7433 | F25: =593939.83*$M9*$P9 -> 628942.4823 | G25: =593939.83*$M10*$P10 -> 705745.5518 | H25: =593939.83*$M11*$P11 -> 856957.4525
A27: Renovación de vía con materiales [U$S + IVA] | D27: sin intervencion de la plataforma, aplicandose para 22 Ton/eje
A28: Trocha | B28: =+B22 -> Centro | C28: =+C22 -> Norte | D28: Mesopotamia | E28: Cuyo | F28: Patagonia | G28: Patagonia 2 | H28: Patagonia 3
A29: Ancha | B29: =(1660*($B$14+$B$15))+($B$16*2)+B23 -> 934913.514 | C29: =(1660*($B$14+$B$15))+($B$16*2)+C23 -> 1003174.975 | D29: 841289.4438 | E29: 935290.2157 | F29: 1102147.492 | G29: 1263156.206 | H29: 1578354.967
A30: Media | B30: 934913.514 | C30: 1003174.975 | D30: 841289.4438 | E30: 935290.2157 | F30: 1102147.492 | G30: 1263156.206 | H30: 1578354.967
A31: Angosta | B31: =(1500*($B$13+$B$15))+($B$16*2)+B25 -> 771396.9154 | C31: 801704.774 | D31: 721302.8422 | E31: 757923.6873 | F31: 836707.4263 | G31: 913510.4958 | H31: 1064722.397
A33: Renovación incluye | E33: % | F33: Ud
A34: Obrador | F34: Gl
A35: Limpieza de zona de vía - desmalezado | F35: Gl
A36: Relevamiento, Proyecto Ejecutivo y replanteo | E36: 30 | F36: %
A37: Retiro de la vía principal y su clasificación | E37: 30 | F37: %
A38: Conformación y perfilado de la nueva subrasante | E38: 30 | F38: %
A39: Armado y montaje de la nueva vía principal | E39: =14/91.7 -> 0.1526717557 | F39: Adv / km
A40: Colocación de balasto y levantes de vía nueva | E40: =29/91 -> 0.3186813187 | F40: Oda / km
A41: Geotextil | E41: =26/91 -> 0.2857142857 | F41: PaN Tierra / km
A42: Terminado mecanizado de vía y reperfilado de talud | E42: =4/91 -> 0.04395604396 | F42: PaN Pavimento / km
A43: Soldadura Aluminotermica | E43: 300 | F43: ton/km
A44: Liberación de tensiones | E44: 30 | F44: %
A45: Puesta a punto de desagües transversales | E45: 20 | F45: ud/km
A46: Cambio de rieles | E46: 10 | F46: %
A48: 1 | B48: =+A5 -> Centro
A49: 2 | B49: =+A6 -> Norte
A50: 3 | B50: =+A7 -> Mesopotamia
A51: 4 | B51: =+A8 -> Cuyo
A52: 5 | B52: =+A9 -> Patagonia

Sheet Mejoramiento
AC1: 12 | AD1: 36
A4: DENOMINACIÓN DE LOS TRABAJOS | B4: UM | C4: Cantidad | D4: C.U. | E4: C.T. | G4: C.T. con obrador | H4: P.T sin IVA | I4: Mano de Obra | J4: Insumos Importados | K4: Insumos Nacionales | L4: Parámetro | M4: Fijo | N4: Variable | O4: Fijo | P4: Variable | R4: Panel de control | T4: Mejoramiento liviano | U4: Unidad | Z4: Mejoramiento pesado | AA4: Mejoramiento liviano | AB4: Mejoramiento semi-pesado | AC4: A Definir
A5: Relevamiento, Proyecto Ejecutivo y Replanteo + Conducción | B5: gl | C5: 1 | D5: =+L5 -> 2179109.566 | E5: =+C5*D5 -> 2179109.566 | F5: =+E5/$E$15 -> 0.003402205792 | G5: =+E5+F5*$E$14 -> 2192894.167 | H5: =+G5*$E$16 -> 2938478.183 | I5: 0.79 | J5: 0.11 | K5: 0.1 | L5: =+Parametros!E184 -> 2179109.566 | R5: Cantidad de kilómetros | T5: 100 | U5: km | V5: 2 | Y5: Cantidad de kilómetros | Z5: 100 | AA5: 100 | AB5: 100 | AC5: 100
A6: Limpieza de zona de vía - desmalezado | B6: mlv | C6: =1000*T5 -> 100000 | D6: =+L6 -> 49.88797546 | E6: =+C6*D6 -> 4988797.546 | F6: =+E6/$E$15 -> 0.007788922674 | G6: =+E6+F6*$E$14 -> 5020355.658 | H6: 6727276.582 | I6: 0.88 | J6: 0.08 | K6: 0.04 | L6: =+Parametros!E185 -> 49.88797546 | R6: Durmientes por kilómetro existente | T6: 1772 | U6: durm/km | V6: =1+V5 -> 3 | Y6: Durmientes por kilómetro existente | Z6: 1722 | AA6: 1722 | AB6: 1722 | AC6: =+Parametros!E194 -> 1772
A7: Cambio de Fijaciones | B7: mlv | C7: =+T5*T6*4*T7 -> 567040 | D7: =+(O7*L7+P7*L7*T7)/(4*T6*T5*T7) -> 43.26008747 | E7: =+C7*D7 -> 24530200 | F7: 0.0382985738 | G7: 24685373.02 | H7: 33078399.85 | I7: 0.586 | J7: 0.081 | K7: 0.333 | L7: =+Parametros!E186 -> 27574296.66 | M7: 8635000 | N7: 19869000 | O7: =+M7/L7 -> 0.313153953 | P7: =+N7/L7 -> 0.72056235 | R7: Fijaciones a cambiar | T7: 0.8 | U7: de los durmientes actuales | V7: =1+V6 -> 4 | Y7: Fijaciones a cambiar | Z7: 0.2 | AA7: 0.3 | AB7: 0.3 | AC7: =+Parametros!E195 -> 0.8
A8: Cambio de Durmientes con Fijaciones Gauge Lock | B8: un | C8: =+T6*T5*T8 -> 88600 | D8: =+L8 -> 2978.527858 | E8: 263897568.2 | F8: 0.4120186746 | G8: 265566930.2 | H8: 355859686.5 | I8: 0.373 | J8: 0.16 | K8: 0.467 | L8: =+Parametros!E187 -> 2978.527858 | R8: Cambio de durmientes con PGL | T8: 0.5 | U8: de los durmientes actuales | V8: 5 | Y8: Cambio de durmientes con PGL | Z8: 0.6 | AA8: 0.3 | AB8: 0.3 | AC8: =+Parametros!E196 -> 0.5
A9: Tratamiento de juntas | B9: un | C9: =+T5*2/T10*1000*T11 -> 10000 | D9: =O9*L9+P9*L9*T12 -> 2557.614 | E9: 25576140 | F9: 0.03993158169 | G9: 25737929.43 | H9: 34488825.43 | I9: 0.08 | J9: 0.011 | K9: 0.909 | L9: =+Parametros!E188 -> 121318556.7 | M9: 237.87 | N9: 3866.24 | O9: =+M9/L9 -> 1.960705818e-06 | P9: =+N9/L9 -> 3.18684965e-05 | R9: Longitud barras existente | T9: 12 | U9: m | V9: 6 | Y9: Longitud barras existente | Z9: 12 | AA9: 12 | AB9: 12 | AC9: =+Parametros!E197 -> 12
A10: Tratamiento mecanizado pesado con aporte de balasto 1000 tn/km | B10: mlv | C10: =+C6 -> 100000 | D10: =O10*L10+P10*L10*T13 -> 410.76 | E10: 41076000 | F10: 0.06413124301 | G10: 41335838.37 | H10: 55390023.41 | I10: 0.087 | J10: 0.11 | K10: 0.803 | L10: =+Parametros!E189 -> 44869361.81 | M10: 101.96 | N10: 0.386 | O10: =+M10/L10 -> 2.272374642e-06 | P10: =+N10/L10 -> 8.602752177e-09 | R10: Longitud barras futura | T10: 12 | U10: m | V10: 7 | Y10: Longitud barras futura | Z10: 36 | AA10: 12 | AB10: 12 | AC10: =+Parametros!E198 -> 12
A11: Despunte de rieles | B11: Un | C11: =1000/T10*2*2*T11*T5 -> 20000 | D11: =+L11 -> 424.6097083 | E11: 8492194.165 | F11: 0.01325871477 | G11: 8545914.047 | H11: 11451524.82 | I11: 0.65 | J11: 0.14 | K11: 0.21 | L11: =+Parametros!E190 -> 424.6097083 | R11: Juntas futuras a tratar | T11: 0.6 | U11: % de juntas | V11: 8 | Y11: Juntas futuras a tratar | Z11: 1 | AA11: 1 | AB11: 1 | AC11: =+Parametros!E199 -> 0.6
A12: Soldadura Aluminotérmica | B12: Un | C12: =+(C6/T9-C6/T10)*2 -> 0 | D12: =+L12 -> 2551.375644 | E12: 0 | F12: 0 | G12: 0 | H12: 0 | I12: 0.69 | J12: 0.17 | K12: 0.14 | L12: =+Parametros!E191 -> 2551.375644 | R12: Reemplazo de eclisas de las juntas a tratar | T12: 0.6 | U12: % de eclisas | V12: 9 | Y12: Reemplazo de eclisas de las juntas a tratar | Z12: 0.6 | AA12: 0.8 | AB12: 0.8 | AC12: =+Parametros!E200 -> 0.6
A13: Cambio de rieles | B13: mlr | C13: =+C6*T14*2 -> 2000000 | D13: =(O13*L13+T14*P13*L13)/(2*T5*1000*T14) -> 134.8795185 | E13: =+C13*D13 -> 269759037 | F13: 0.4211700837 | G13: 271465477.4 | H13: 363763739.8 | I13: 0.91 | J13: 0.06 | K13: 0.03 | L13: =+Parametros!E192 -> 5155964.867 | M13: 197917 | N13: 26956112 | O13: =+M13/L13 -> 0.03838602572 | P13: =+N13/L13 -> 5.228141133 | R13: Aporte de balasto del mecanizado | T13: 800 | U13: ton/km | V13: =1+V12 -> 10 | Y13: Aporte de balasto del mecanizado | Z13: 1000 | AA13: 300 | AB13: 1000 | AC13: =+Parametros!E201 -> 800
A14: Obrador | B14: gl | C14: 1 | D14: =+M14+(N14-M14)*(T8*0.85+T11*0.05+T14*0.1) -> 4051665.834 | E14: =+D14 -> 4051665.834 | I14: 0.342 | J14: 0 | K14: 0.658 | M14: 1291331.58 | N14: 3188468.525 | R14: Reemplazo de barras de rieles | T14: 10 | U14: % de rieles | V14: 11 | Y14: Reemplazo de barras de rieles | Z14: 0.3 | AA14: 0.1 | AB14: 0.1 | AC14: =+Parametros!E203 -> 10
C15: Total sin obrador | E15: =+SUM(E5:E13) -> 640499046.5 | G15: Subtotal | H15: =+SUM(H5:H13) -> 863697954.5
C16: Valor K | E16: 1.34 | G16: Total con IVA | H16: =+H15*1.21 -> 1045074525
G17: IVA | H17: =+H15*0.21 -> 181376570.5
